Service Delivery Area(T),Service Delivery Team(T),ExpenditureGroup(T),Account(T),Supplier Name(T),Trans Date,Amount
Adult Social Care,ASC Directorate,Employees,Cont Prof Development,Healthcare Conferences UK,08/01/2024,295.00
Adult Social Care,ASC Prevention & Enablement,Employees,Employee Costs Recharged,SHROPSHIRE COMMUNITY HEALTH NHS TRUST,02/01/2024,"19,662.00"
Adult Social Care,ASC Prevention & Enablement,Employees,Employee Costs Recharged,SHROPSHIRE COMMUNITY HEALTH NHS TRUST,02/01/2024,"19,662.00"
Adult Social Care,ASC Prevention & Enablement,Employees,Employee Costs Recharged,SHROPSHIRE COMMUNITY HEALTH NHS TRUST,02/01/2024,"19,662.00"
Adult Social Care,"Assurance, Transformation & Financial Management",Supplies & Services,Computer Software (Maint),LIQUIDLOGIC LIMITED,05/01/2024,"3,110.00"
Adult Social Care,"Assurance, Transformation & Financial Management",Supplies & Services,Systems Procurement,Prepaid Financial Services Limited,05/01/2024,-477.15
Adult Social Care,"Assurance, Transformation & Financial Management",Supplies & Services,Systems Procurement,Prepaid Financial Services Limited,05/01/2024,376.50
Adult Social Care,"Assurance, Transformation & Financial Management",Supplies & Services,Systems Procurement,Prepaid Financial Services Limited,05/01/2024,582.05
Adult Social Care,"Commissioning, Procurement & Brokerage",Supplies & Services,Other Grants (Expenses),Care Plus (Staffordshire) Limited,25/01/2024,"5,250.00"
Adult Social Care,"Commissioning, Procurement & Brokerage",Supplies & Services,Other Grants (Expenses),Nemphi Homes,25/01/2024,"1,392.00"
Adult Social Care,"Commissioning, Procurement & Brokerage",Supplies & Services,Other Grants (Expenses),Swanton Care & Community Ltd (Darwin Community Support),25/01/2024,"7,650.00"
Adult Social Care,"Commissioning, Procurement & Brokerage",Third Party Payments,Interpreters Fees,WORD 360 T/AEXPRESS INTERPRETING & TRANSLATION,08/01/2024,"5,389.76"
Adult Social Care,"Commissioning, Procurement & Brokerage",Third Party Payments,Interpreters Fees,WORD 360 T/AEXPRESS INTERPRETING & TRANSLATION,08/01/2024,"5,260.53"
Adult Social Care,"Commissioning, Procurement & Brokerage",Third Party Payments,Interpreters Fees,WORD 360 T/AEXPRESS INTERPRETING & TRANSLATION,24/01/2024,"2,684.10"
Adult Social Care,"Commissioning, Procurement & Brokerage",Supplies & Services,Other Grants (Expenses),THE STROKE ASSOCIATION,18/01/2024,"11,499.44"
Adult Social Care,"Commissioning, Procurement & Brokerage",Supplies & Services,Other Grants (Expenses),SHROPSHIRE COMMUNITY HEALTH NHS TRUST,02/01/2024,"12,453.91"
Adult Social Care,"Commissioning, Procurement & Brokerage",Supplies & Services,Other Grants (Expenses),TELFORD & WREKIN CVS,08/01/2024,"90,000.00"
Adult Social Care,"Commissioning, Procurement & Brokerage",Supplies & Services,Other Grants (Expenses),TELFORD & WREKIN CVS,08/01/2024,"18,500.00"
Adult Social Care,"Commissioning, Procurement & Brokerage",Employees,Staff Training,Gidea Solutions Limited,30/01/2024,"3,500.00"
Adult Social Care,Community Social Work & Adult Safeguarding,Supplies & Services,Other Grants (Expenses),Engaging Communities Solutions CIC,18/01/2024,"25,000.00"
Adult Social Care,Community Social Work & Adult Safeguarding,Supplies & Services,Other Grants (Expenses),POHWER,18/01/2024,"2,500.00"
Adult Social Care,Community Social Work & Adult Safeguarding,Supplies & Services,Other Grants (Expenses),VoiceAbility,18/01/2024,"7,434.75"
Adult Social Care,Community Social Work (Principal Social Worker),Transport-Related Expenditure,Taxi Costs,Ezy Car Ltd,08/01/2024,444.50
Adult Social Care,Community Social Work (Principal Social Worker),Transport-Related Expenditure,Taxi Costs,Ezy Car Ltd,08/01/2024,355.60
Adult Social Care,Community Social Work (Principal Social Worker),Third Party Payments,Other Care Purchasing,Severn Trent Water Ltd,08/01/2024,200.04
Adult Social Care,Community Social Work (Principal Social Worker),Supplies & Services,Other Services,Bristol City Council,25/01/2024,400.00
Adult Social Care,Community Social Work (Principal Social Worker),Premises-Related Expenditure,General Rents,BOURNVILLE VILLAGE TRUST,25/01/2024,"12,764.88"
Adult Social Care,Community Social Work (Principal Social Worker),Premises-Related Expenditure,General Rents,BOURNVILLE VILLAGE TRUST,25/01/2024,"12,764.88"
Adult Social Care,Community Social Work (Principal Social Worker),Premises-Related Expenditure,Gas,TOTAL GAS & POWER LIMITED,08/01/2024,470.85
Adult Social Care,Community Social Work (Principal Social Worker),Premises-Related Expenditure,Gas,TOTAL GAS & POWER LIMITED,08/01/2024,493.04
Adult Social Care,Community Social Work (Principal Social Worker),Supplies & Services,Other Grants (Expenses),Shropshire Parent and Carer Council (PACC),09/01/2024,"50,000.00"
Adult Social Care,Community Social Work (Principal Social Worker),Transport-Related Expenditure,Transport,More Than Care Telford,08/01/2024,"4,512.38"
Adult Social Care,Community Social Work (Principal Social Worker),Third Party Payments,Homecare Expenditure,Shawbirch Medical Health Practice Limited,30/01/2024,-326.35
Adult Social Care,Community Social Work (Principal Social Worker),Supplies & Services,Medical Consultants Fees, Sakum Ltd,09/01/2024,354.04
Adult Social Care,Community Social Work (Principal Social Worker),Supplies & Services,Medical Consultants Fees,Dr S G,09/01/2024,"1,415.38"
Adult Social Care,Community Social Work (Principal Social Worker),Supplies & Services,Medical Consultants Fees,Dr S G,09/01/2024,"1,056.59"
Adult Social Care,Community Social Work (Principal Social Worker),Supplies & Services,Medical Consultants Fees,Onside Independent Advocacy,10/01/2024,120.75
Adult Social Care,Community Social Work (Principal Social Worker),Supplies & Services,Medical Consultants Fees,St Teresa Ltd - Dr Rao,10/01/2024,180.33
Adult Social Care,Community Social Work (Principal Social Worker),Supplies & Services,Medical Consultants Fees,St Teresa Ltd - Dr Rao,10/01/2024,844.68
Adult Social Care,Community Social Work (Principal Social Worker),Supplies & Services,Medical Consultants Fees,St Teresa Ltd - Dr Rao,10/01/2024,900.89
Adult Social Care,Community Social Work (Principal Social Worker),Supplies & Services,Medical Consultants Fees,St Teresa Ltd - Dr Rao,10/01/2024,"1,600.78"
Adult Social Care,My Options,Supplies & Services,Equipment - Purchase,CARESHOP,04/01/2024,373.00
Adult Social Care,My Options,Premises-Related Expenditure,Clean Mats & Toilet Requisites,PHS GROUP,09/01/2024,125.22
Adult Social Care,My Options,Supplies & Services,Computer Software (Maint),Access UK Ltd,04/01/2024,150.00
Adult Social Care,My Options,Premises-Related Expenditure,Hire Of Rooms,All Saints Wellington,18/01/2024,420.00
Adult Social Care,My Options,Premises-Related Expenditure,Clean Mats & Toilet Requisites,PHS GROUP,09/01/2024,145.77
Adult Social Care,My Options,Premises-Related Expenditure,Clean Mats & Toilet Requisites,PHS GROUP,09/01/2024,140.10
Adult Social Care,My Options,Premises-Related Expenditure,Clean Mats & Toilet Requisites,BERWICK CARE EQUIPMENT LTD,04/01/2024,326.75
Adult Social Care,My Options,Supplies & Services,Equipment - Purchase,BERWICK CARE EQUIPMENT LTD,09/01/2024,222.00
Adult Social Care,My Options,Premises-Related Expenditure,Clean Mats & Toilet Requisites,BERWICK CARE EQUIPMENT LTD,09/01/2024,226.85
Adult Social Care,My Options,Premises-Related Expenditure,Clean Mats & Toilet Requisites,BERWICK CARE EQUIPMENT LTD,02/01/2024,210.00
Adult Social Care,My Options,Supplies & Services,Equipment - Purchase,BERWICK CARE EQUIPMENT LTD,11/01/2024,115.00
Adult Social Care,My Options,Supplies & Services,Registration / Licence Fees,CARE QUALITY COMMISSION,16/01/2024,"2,388.00"
Adult Social Care,My Options,Supplies & Services,Equipment - Purchase,MEDACO,18/01/2024,224.40
Adult Social Care,My Options,Supplies & Services,Equipment - Purchase,MEDACO,30/01/2024,"1,132.00"
Adult Social Care,My Options,Supplies & Services,Equipment - Purchase,MEDACO,09/01/2024,177.60
Adult Social Care,My Options,Employees,Agency Supply Costs,Nurse Plus and Carer Plus (UK) Limited,18/01/2024,119.70
Adult Social Care,My Options,Employees,Agency Supply Costs,Nurse Plus and Carer Plus (UK) Limited,30/01/2024,251.40
Adult Social Care,My Options,Employees,Agency Supply Costs,Nurse Plus and Carer Plus (UK) Limited,04/01/2024,239.40
Adult Social Care,My Options,Employees,Agency Supply Costs,Nurse Plus and Carer Plus (UK) Limited,09/01/2024,731.83
Adult Social Care,My Options,Employees,Agency Supply Costs,Nurse Plus and Carer Plus (UK) Limited,02/01/2024,"1,101.38"
Adult Social Care,My Options,Supplies & Services,Equipment - Purchase,PRICE & OLIVER LIMITED,18/01/2024,149.70
Adult Social Care,My Options,Employees,Agency Supply Costs,Safehands Recruitment,18/01/2024,"3,628.90"
Adult Social Care,My Options,Employees,Agency Supply Costs,Safehands Recruitment,04/01/2024,"7,423.48"
Adult Social Care,My Options,Employees,Agency Supply Costs,Safehands Recruitment,02/01/2024,"3,752.53"
Adult Social Care,My Options,Employees,Agency Supply Costs,Safehands Recruitment,11/01/2024,"6,727.88"
Adult Social Care,My Options,Employees,Agency Supply Costs,Safehands Recruitment,11/01/2024,"8,793.40"
Adult Social Care,My Options,Supplies & Services,Computer Software (Maint),Access UK Ltd,04/01/2024,494.40
Adult Social Care,My Options,Supplies & Services,Registration / Licence Fees,CARE QUALITY COMMISSION,16/01/2024,728.00
Adult Social Care,My Options,Employees,Agency Supply Costs,Safehands Recruitment,11/01/2024,156.75
Adult Social Care,My Options,Supplies & Services,Registration / Licence Fees,CARE QUALITY COMMISSION,16/01/2024,999.00
Adult Social Care,My Options,Supplies & Services,Adult Flexi / Day Care,Redated Personal Information ,11/01/2024,"1,212.54"
Adult Social Care,My Options,Supplies & Services,Respite Care,Redated Personal Information ,11/01/2024,230.96
Adult Social Care,My Options,Supplies & Services,Respite Care,Redated Personal Information ,09/01/2024,"1,030.40"
Adult Social Care,My Options,Premises-Related Expenditure,Clean Mats & Toilet Requisites,BERWICK CARE EQUIPMENT LTD,02/01/2024,268.99
Adult Social Care,My Options,Employees,Agency Supply Costs,Safehands Recruitment,18/01/2024,"7,613.10"
Adult Social Care,My Options,Employees,Agency Supply Costs,Safehands Recruitment,30/01/2024,"7,348.55"
Adult Social Care,My Options,Employees,Agency Supply Costs,Safehands Recruitment,04/01/2024,"8,521.70"
Adult Social Care,My Options,Employees,Agency Supply Costs,Safehands Recruitment,02/01/2024,438.90
Adult Social Care,My Options,Employees,Agency Supply Costs,Safehands Recruitment,02/01/2024,"2,506.35"
Adult Social Care,My Options,Employees,Agency Supply Costs,Safehands Recruitment,11/01/2024,"8,173.00"
Adult Social Care,My Options,Employees,Agency Supply Costs,Safehands Recruitment,11/01/2024,"7,523.45"
Adult Social Care,My Options,Employees,Agency Supply Costs,Safehands Recruitment,04/01/2024,"2,033.51"
Adult Social Care,My Options,Employees,Agency Supply Costs,Safehands Recruitment,02/01/2024,274.14
Adult Social Care,My Options,Employees,Agency Supply Costs,Safehands Recruitment,11/01/2024,"1,192.40"
Adult Social Care,My Options,Employees,Agency Supply Costs,Safehands Recruitment,11/01/2024,"1,517.88"
Adult Social Care,My Options,Supplies & Services,Respite Care,Redated Personal Information ,09/01/2024,856.80
Adult Social Care,My Options,Supplies & Services,Respite Care,Redated Personal Information ,09/01/2024,732.60
Adult Social Care,My Options,Supplies & Services,Respite Care,Redated Personal Information ,09/01/2024,"1,159.48"
Adult Social Care,Prevention & Independence - Older Adults & Disability,Supplies & Services,Furniture - Purchase,CHRISBEON OFFICE SUPPLIES,31/01/2024,349.00
Adult Social Care,Prevention & Independence - Older Adults & Disability,Supplies & Services,Medical Consultants Fees,Capacity Matters Ltd,15/01/2024,"1,196.03"
Adult Social Care,Prevention & Independence - Older Adults & Disability,Transport-Related Expenditure,Taxi Costs,Telford and Wrekin Community Enterprise LTD,22/01/2024,144.00
Adult Social Care,Prevention & Independence - Older Adults & Disability,Supplies & Services,Legal Expenses,WEIGHTMANS,03/01/2024,406.00
Adult Social Care,Prevention & Independence - Older Adults & Disability,Supplies & Services,Legal Expenses,WEIGHTMANS,26/01/2024,333.50
Adult Social Care,Prevention & Independence - Older Adults & Disability,Supplies & Services,Legal Expenses,WEIGHTMANS,26/01/2024,608.50
Adult Social Care,Prevention & Independence - Older Adults & Disability,Supplies & Services,Legal Expenses,WEIGHTMANS,26/01/2024,168.50
Adult Social Care,Prevention & Independence - Older Adults & Disability,Supplies & Services,Legal Expenses,WEIGHTMANS,26/01/2024,371.00
Adult Social Care,Prevention & Independence - Older Adults & Disability,Supplies & Services,Legal Expenses,WEIGHTMANS,26/01/2024,387.00
Adult Social Care,Prevention & Independence - Older Adults & Disability,Supplies & Services,Legal Expenses,WEIGHTMANS,26/01/2024,139.50
Adult Social Care,Prevention & Independence - Older Adults & Disability,Supplies & Services,Legal Expenses,WEIGHTMANS,26/01/2024,174.00
Adult Social Care,Prevention & Independence - Older Adults & Disability,Supplies & Services,Legal Expenses,WEIGHTMANS,26/01/2024,193.50
Adult Social Care,Prevention & Independence - Older Adults & Disability,Supplies & Services,Legal Expenses,WEIGHTMANS,26/01/2024,873.00
Adult Social Care,Prevention & Independence - Older Adults & Disability,Supplies & Services,Legal Expenses,WEIGHTMANS,26/01/2024,101.50
Adult Social Care,Prevention & Independence - Older Adults & Disability,Supplies & Services,Legal Expenses,WEIGHTMANS,26/01/2024,319.00
Adult Social Care,Prevention & Independence - Older Adults & Disability,Supplies & Services,Legal Expenses,WEIGHTMANS,26/01/2024,371.00
Adult Social Care,Prevention & Independence - Older Adults & Disability,Supplies & Services,Legal Expenses,WEIGHTMANS,26/01/2024,101.50
Adult Social Care,Prevention & Independence - Older Adults & Disability,Supplies & Services,Aids & Appliances,Easylink,24/01/2024,"1,105.47"
Adult Social Care,Prevention & Independence - Older Adults & Disability,Supplies & Services,Aids & Appliances,NRS Healthcare T/A Nottingham Rehab Ltd,15/01/2024,"1,048.50"
Adult Social Care,Prevention & Independence - Older Adults & Disability,Supplies & Services,Aids & Appliances,Possum Ltd,08/01/2024,895.00
Adult Social Care,Prevention & Independence - Older Adults & Disability,Supplies & Services,Aids & Appliances,THE WREKIN HOUSING TRUST,08/01/2024,331.92
Adult Social Care,Prevention & Independence - Older Adults & Disability,Supplies & Services,Aids & Appliances,THE WREKIN HOUSING TRUST ,08/01/2024,165.90
Adult Social Care,Prevention & Independence - Older Adults & Disability,Supplies & Services,Other Services,VISS Sign Language Interpreting Service,16/01/2024,120.00
Adult Social Care,Prevention & Independence - Older Adults & Disability,Supplies & Services,Other Services,VISS Sign Language Interpreting Service,16/01/2024,120.00
Adult Social Care,Prevention & Independence - Older Adults & Disability,Supplies & Services,Aids & Appliances,Closomat Limited,03/01/2024,364.00
Adult Social Care,Prevention & Independence - Older Adults & Disability,Supplies & Services,Aids & Appliances,Grosvenor Mobility Ltd,11/01/2024,"2,845.00"
Adult Social Care,Prevention & Independence - Older Adults & Disability,Supplies & Services,Aids & Appliances,NRS Healthcare T/A Nottingham Rehab Ltd,04/01/2024,"4,387.35"
Adult Social Care,Prevention & Independence - Older Adults & Disability,Supplies & Services,Aids & Appliances,NRS Healthcare T/A Nottingham Rehab Ltd,19/01/2024,441.74
Adult Social Care,Prevention & Independence - Older Adults & Disability,Supplies & Services,Aids & Appliances,OSPREY HEALTHCARE LTD,03/01/2024,260.07
Adult Social Care,Prevention & Independence - Older Adults & Disability,Supplies & Services,Aids & Appliances,OSPREY HEALTHCARE LTD,04/01/2024,224.00
Adult Social Care,Prevention & Independence - Older Adults & Disability,Supplies & Services,Aids & Appliances,OSPREY HEALTHCARE LTD,04/01/2024,344.00
Adult Social Care,Prevention & Independence - Older Adults & Disability,Supplies & Services,Aids & Appliances,OSPREY HEALTHCARE LTD,04/01/2024,722.24
Adult Social Care,Prevention & Independence - Older Adults & Disability,Supplies & Services,Aids & Appliances,PRISM MEDICAL WESTHOLME DIVISION,19/01/2024,897.88
Adult Social Care,Prevention & Independence - Older Adults & Disability,Supplies & Services,Equipment - Repair,STANNAH LIFT SERVICES LTD,12/01/2024,906.25
Adult Social Care,Prevention & Independence - Older Adults & Disability,Supplies & Services,Equipment - Repair,STANNAH LIFT SERVICES LTD,12/01/2024,"7,842.00"
Adult Social Care,Prevention & Independence - Older Adults & Disability,Supplies & Services,Aids & Appliances,SHROPSHIRE COMMUNITY HEALTH NHS TRUST,18/01/2024,"6,301.66"
Adult Social Care,Prevention & Independence - Older Adults & Disability,Supplies & Services,Other Grants (Expenses),Careium T/A Doro Care Uk,16/01/2024,320.00
Adult Social Care,Prevention & Independence - Older Adults & Disability,Supplies & Services,Other Grants (Expenses),Careium T/A Doro Care Uk,16/01/2024,668.00
Adult Social Care,Prevention & Independence - Older Adults & Disability,Supplies & Services,Other Grants (Expenses),Medequip,22/01/2024,"10,841.16"
Children�s Safeguarding & Family Support,Child Protection & Family Support,Third Party Payments,Childminders,Chec Mates Day Care,31/01/2024,746.00
Children�s Safeguarding & Family Support,Child Protection & Family Support,Third Party Payments,Childminders,Chec Mates Day Care,31/01/2024,495.00
Children�s Safeguarding & Family Support,Child Protection & Family Support,Transport-Related Expenditure,Taxi Costs,Ezy Car Ltd,31/01/2024,314.10
Children�s Safeguarding & Family Support,Child Protection & Family Support,Transport-Related Expenditure,Taxi Costs,Ezy Car Ltd,31/01/2024,129.90
Children�s Safeguarding & Family Support,Child Protection & Family Support,Transport-Related Expenditure,Taxi Costs,24X7 Ltd,31/01/2024,784.81
Children�s Safeguarding & Family Support,Child Protection & Family Support,Transport-Related Expenditure,Taxi Costs,Ezy Car Ltd,31/01/2024,"2,578.00"
Children�s Safeguarding & Family Support,Child Protection & Family Support,Transport-Related Expenditure,Taxi Costs,Ezy Car Ltd,31/01/2024,119.90
Children�s Safeguarding & Family Support,Child Protection & Family Support,Third Party Payments,Childminders,Busy Bees Day Nursery Telford,17/01/2024,177.50
Children�s Safeguarding & Family Support,Child Protection & Family Support,Supplies & Services,Other Services,Dudley Lodge Ltd,17/01/2024,"4,270.00"
Children�s Safeguarding & Family Support,Child Protection & Family Support,Transport-Related Expenditure,Taxi Costs,Ezy Car Ltd,31/01/2024,809.40
Children�s Safeguarding & Family Support,Child Protection & Family Support,Transport-Related Expenditure,Taxi Costs,Ezy Car Ltd,31/01/2024,899.00
Children�s Safeguarding & Family Support,Child Protection & Family Support,Transport-Related Expenditure,Outside Hire,Whitport Ltd t/a Wrekin Moving & Storage,31/01/2024,"1,575.00"
Children�s Safeguarding & Family Support,Child Protection & Family Support,Supplies & Services,Legal Expenses,FD Law Ltd,26/01/2024,"8,500.00"
Children�s Safeguarding & Family Support,Child Protection & Family Support,Employees,Agency Supply Costs,Venn Group Limited,15/01/2024,"2,148.13"
Children�s Safeguarding & Family Support,Child Protection & Family Support,Employees,Agency Supply Costs,Venn Group Limited,15/01/2024,613.75
Children�s Safeguarding & Family Support,Child Protection & Family Support,Employees,Agency Supply Costs,Venn Group Limited,29/01/2024,613.75
Children�s Safeguarding & Family Support,Child Protection & Family Support,Supplies & Services,Events,Ishami Foundation,29/01/2024,600.00
Children�s Safeguarding & Family Support,Child Protection & Family Support,Transport-Related Expenditure,Taxi Costs,24X7 Ltd,29/01/2024,444.32
Children�s Safeguarding & Family Support,Child Protection & Family Support,Supplies & Services,Comp Software (Purch / Hire),PHOENIX SOFTWARE LTD,17/01/2024,319.22
Children�s Safeguarding & Family Support,Child Protection & Family Support,Transport-Related Expenditure,Taxi Costs,Veezu Midlands Ltd t/a Go Carz,29/01/2024,"1,552.08"
Children�s Safeguarding & Family Support,Child Protection & Family Support,Supplies & Services,Other Services,TAKING PART,15/01/2024,235.56
Children�s Safeguarding & Family Support,Child Protection & Family Support,Supplies & Services,Other Services,TAKING PART,15/01/2024,410.22
Children�s Safeguarding & Family Support,Child Protection & Family Support,Supplies & Services,Other Services,TAKING PART,15/01/2024,216.78
Children�s Safeguarding & Family Support,Child Protection & Family Support,Supplies & Services,Other Services,TAKING PART,15/01/2024,108.00
Children�s Safeguarding & Family Support,Child Protection & Family Support,Supplies & Services,Other Services,TAKING PART,15/01/2024,171.78
Children�s Safeguarding & Family Support,Child Protection & Family Support,Supplies & Services,Other Services,TAKING PART,15/01/2024,134.64
Children�s Safeguarding & Family Support,Child Protection & Family Support,Supplies & Services,Other Services,TAKING PART,15/01/2024,202.14
Children�s Safeguarding & Family Support,Child Protection & Family Support,Supplies & Services,Other Services,TAKING PART,15/01/2024,194.76
Children�s Safeguarding & Family Support,Child Protection & Family Support,Supplies & Services,Other Services,TAKING PART,15/01/2024,108.42
Children�s Safeguarding & Family Support,Child Protection & Family Support,Supplies & Services,Other Services,TAKING PART,15/01/2024,268.92
Children�s Safeguarding & Family Support,Child Protection & Family Support,Supplies & Services,Other Services,TAKING PART,15/01/2024,133.38
Children�s Safeguarding & Family Support,Child Protection & Family Support,Supplies & Services,Registration / Licence Fees,SHROPSHIRE COUNCIL ,08/01/2024,"4,034.00"
Children�s Safeguarding & Family Support,Family Connect & Childrens Centres,Premises-Related Expenditure,R&M -Building Other,Eyton Solutions Ltd,08/01/2024,185.00
Children�s Safeguarding & Family Support,Family Connect & Childrens Centres,Premises-Related Expenditure,Electricity,Guinness Sustainable Schools,08/01/2024,148.82
Children�s Safeguarding & Family Support,Family Connect & Childrens Centres,Premises-Related Expenditure,R&M -Building Other,JCE & SONS LTD,08/01/2024,714.55
Children�s Safeguarding & Family Support,Family Connect & Childrens Centres,Premises-Related Expenditure,R&M -Building Other,Security Wise Ltd,19/01/2024,190.00
Children�s Safeguarding & Family Support,Family Connect & Childrens Centres,Premises-Related Expenditure,Hire Of Rooms,HOLLINSWOOD & RANDLAY PARISH COUNCIL,18/01/2024,137.50
Children�s Safeguarding & Family Support,Family Connect & Childrens Centres,Supplies & Services,Other Services,HOME-START TELFORD & WREKIN,03/01/2024,"1,500.00"
Children�s Safeguarding & Family Support,Family Connect & Childrens Centres,Supplies & Services,Other Services,HOME-START TELFORD & WREKIN,03/01/2024,"1,500.00"
Children�s Safeguarding & Family Support,Family Connect & Childrens Centres,Supplies & Services,Other Grants (Expenses),HOME-START TELFORD & WREKIN,03/01/2024,"3,000.00"
Children�s Safeguarding & Family Support,Family Connect & Childrens Centres,Supplies & Services,Other Services,HOME-START TELFORD & WREKIN,03/01/2024,"2,250.00"
Children�s Safeguarding & Family Support,Family Connect & Childrens Centres,Supplies & Services,Other Services,HOME-START TELFORD & WREKIN,03/01/2024,"1,500.00"
Children�s Safeguarding & Family Support,Family Connect & Childrens Centres,Supplies & Services,Other Services,HOME-START TELFORD & WREKIN,03/01/2024,"2,250.00"
Children�s Safeguarding & Family Support,Family Connect & Childrens Centres,Supplies & Services,Other Services,HOME-START TELFORD & WREKIN,03/01/2024,"2,250.00"
Children�s Safeguarding & Family Support,Family Connect & Childrens Centres,Supplies & Services,Other Services,PODS,03/01/2024,"6,250.00"
Children�s Safeguarding & Family Support,Family Connect & Childrens Centres,Supplies & Services,Other Services,The Breastfeeding Network,19/01/2024,"43,750.00"
Children�s Safeguarding & Family Support,Family Connect & Childrens Centres,Supplies & Services,Other Services,The Sea Change Trust,19/01/2024,"28,750.00"
Children�s Safeguarding & Family Support,"Family Placements, Children in Care, Leaving Care & Emergency Duty Team",Employees,Training Exp�s (Facilitators),ES-PBS Services,12/01/2024,"1,000.00"
Children�s Safeguarding & Family Support,"Family Placements, Children in Care, Leaving Care & Emergency Duty Team",Employees,Training Exp�s (Facilitators),ES-PBS Services,12/01/2024,500.00
Children�s Safeguarding & Family Support,"Family Placements, Children in Care, Leaving Care & Emergency Duty Team",Employees,Training Exp�s (Facilitators),ES-PBS Services,12/01/2024,"1,000.00"
Children�s Safeguarding & Family Support,"Family Placements, Children in Care, Leaving Care & Emergency Duty Team",Supplies & Services,Aids & Appliances,G & S SMIRTHWAITE LTD,25/01/2024,639.00
Children�s Safeguarding & Family Support,"Family Placements, Children in Care, Leaving Care & Emergency Duty Team",Supplies & Services,Aids & Appliances,G & S SMIRTHWAITE LTD,04/01/2024,"1,641.00"
Children�s Safeguarding & Family Support,"Family Placements, Children in Care, Leaving Care & Emergency Duty Team",Supplies & Services,Aids & Appliances,G & S SMIRTHWAITE LTD,04/01/2024,608.00
Children�s Safeguarding & Family Support,"Family Placements, Children in Care, Leaving Care & Emergency Duty Team",Supplies & Services,Aids & Appliances,G & S SMIRTHWAITE LTD,04/01/2024,566.00
Children�s Safeguarding & Family Support,"Family Placements, Children in Care, Leaving Care & Emergency Duty Team",Supplies & Services,Aids & Appliances,G & S SMIRTHWAITE LTD,23/01/2024,715.00
Children�s Safeguarding & Family Support,"Family Placements, Children in Care, Leaving Care & Emergency Duty Team",Supplies & Services,Aids & Appliances,M A Smith Associates,04/01/2024,920.00
Children�s Safeguarding & Family Support,"Family Placements, Children in Care, Leaving Care & Emergency Duty Team",Supplies & Services,Aids & Appliances,M A Smith Associates,04/01/2024,520.00
Children�s Safeguarding & Family Support,"Family Placements, Children in Care, Leaving Care & Emergency Duty Team",Supplies & Services,Aids & Appliances,M A Smith Associates,11/01/2024,325.00
Children�s Safeguarding & Family Support,"Family Placements, Children in Care, Leaving Care & Emergency Duty Team",Supplies & Services,Aids & Appliances,MIDSHIRES MOBILITY GROUP,04/01/2024,131.00
Children�s Safeguarding & Family Support,"Family Placements, Children in Care, Leaving Care & Emergency Duty Team",Supplies & Services,Aids & Appliances,OSPREY HEALTHCARE LTD,05/01/2024,"1,687.00"
Children�s Safeguarding & Family Support,"Family Placements, Children in Care, Leaving Care & Emergency Duty Team",Supplies & Services,Aids & Appliances,Safespaces,25/01/2024,"10,726.15"
Children�s Safeguarding & Family Support,"Family Placements, Children in Care, Leaving Care & Emergency Duty Team",Supplies & Services,Aids & Appliances,Schuchmann LLP,11/01/2024,645.00
Children�s Safeguarding & Family Support,"Family Placements, Children in Care, Leaving Care & Emergency Duty Team",Supplies & Services,Equipment - Repair,STANNAH LIFT SERVICES LTD,12/01/2024,448.00
Children�s Safeguarding & Family Support,"Family Placements, Children in Care, Leaving Care & Emergency Duty Team",Supplies & Services,Equipment - Repair,STANNAH LIFT SERVICES LTD,12/01/2024,115.50
Children�s Safeguarding & Family Support,"Family Placements, Children in Care, Leaving Care & Emergency Duty Team",Supplies & Services,Aids & Appliances,Tough Furniture Ltd,05/01/2024,-785.00
Children�s Safeguarding & Family Support,"Family Placements, Children in Care, Leaving Care & Emergency Duty Team",Supplies & Services,Aids & Appliances,Tough Furniture Ltd,04/01/2024,788.00
Children�s Safeguarding & Family Support,"Family Placements, Children in Care, Leaving Care & Emergency Duty Team",Transport-Related Expenditure,Outside Hire,Bees Knees Removals,05/01/2024,160.00
Children�s Safeguarding & Family Support,"Family Placements, Children in Care, Leaving Care & Emergency Duty Team",Transport-Related Expenditure,Travelling Expenses General,Veezu Midlands Ltd t/a Go Carz,26/01/2024,107.52
Children�s Safeguarding & Family Support,"Family Placements, Children in Care, Leaving Care & Emergency Duty Team",Supplies & Services,Comp Software (Purch / Hire),PHOENIX SOFTWARE LTD,18/01/2024,555.99
Children�s Safeguarding & Family Support,"Family Placements, Children in Care, Leaving Care & Emergency Duty Team",Third Party Payments,Childminders,HADLEY UNDER 5�S PLAYGROUP,31/01/2024,342.00
Children�s Safeguarding & Family Support,"Family Placements, Children in Care, Leaving Care & Emergency Duty Team",Supplies & Services,Section 17 Childrens Act,Birmingham City Council,05/01/2024,120.00
Children�s Safeguarding & Family Support,"Family Placements, Children in Care, Leaving Care & Emergency Duty Team",Premises-Related Expenditure,Hire Of Rooms,MEETING POINT TRUST LTD,05/01/2024,917.08
Children�s Safeguarding & Family Support,"Family Placements, Children in Care, Leaving Care & Emergency Duty Team",Premises-Related Expenditure,General Rents,THE WREKIN HOUSING TRUST ,26/01/2024,151.19
Children�s Safeguarding & Family Support,"Family Placements, Children in Care, Leaving Care & Emergency Duty Team",Supplies & Services,Doctors Fees,IRONBRIDGE MEDICAL PRACTICE,04/01/2024,352.00
Children�s Safeguarding & Family Support,"Family Placements, Children in Care, Leaving Care & Emergency Duty Team",Supplies & Services,Doctors Fees,IRONBRIDGE MEDICAL PRACTICE,11/01/2024,176.00
Children�s Safeguarding & Family Support,"Family Placements, Children in Care, Leaving Care & Emergency Duty Team",Supplies & Services,Doctors Fees,IRONBRIDGE MEDICAL PRACTICE,11/01/2024,176.00
Children�s Safeguarding & Family Support,"Family Placements, Children in Care, Leaving Care & Emergency Duty Team",Supplies & Services,Doctors Fees,IRONBRIDGE MEDICAL PRACTICE,29/01/2024,352.00
Children�s Safeguarding & Family Support,"Family Placements, Children in Care, Leaving Care & Emergency Duty Team",Supplies & Services,Form F Assessments,PC Assessments Ltd,11/01/2024,330.32
Children�s Safeguarding & Family Support,"Family Placements, Children in Care, Leaving Care & Emergency Duty Team",Employees,Staff Training,POWYS COUNTY COUNCIL,17/01/2024,170.00
Children�s Safeguarding & Family Support,"Family Placements, Children in Care, Leaving Care & Emergency Duty Team",Supplies & Services,Advertising,Bauer Radio Ltd,03/01/2024,300.00
Children�s Safeguarding & Family Support,"Family Placements, Children in Care, Leaving Care & Emergency Duty Team",Supplies & Services,Advertising,Bauer Radio Ltd,11/01/2024,"1,189.88"
Children�s Safeguarding & Family Support,"Family Placements, Children in Care, Leaving Care & Emergency Duty Team",Supplies & Services,Advertising,Bauer Radio Ltd,11/01/2024,887.00
Children�s Safeguarding & Family Support,"Family Placements, Children in Care, Leaving Care & Emergency Duty Team",Third Party Payments,Childminders,CHILDCARE SOS,11/01/2024,172.50
Children�s Safeguarding & Family Support,"Family Placements, Children in Care, Leaving Care & Emergency Duty Team",Supplies & Services,Books,Coram Academy Limited,03/01/2024,453.45
Children�s Safeguarding & Family Support,"Family Placements, Children in Care, Leaving Care & Emergency Duty Team",Premises-Related Expenditure,Hire Of Rooms,Dawley Baptist Church,03/01/2024,330.00
Children�s Safeguarding & Family Support,"Family Placements, Children in Care, Leaving Care & Emergency Duty Team",Supplies & Services,Advertising,Newsquest Media Group,03/01/2024,"2,800.00"
Children�s Safeguarding & Family Support,"Family Placements, Children in Care, Leaving Care & Emergency Duty Team",Supplies & Services,Advertising,Newsquest Media Group,04/01/2024,"2,800.00"
Children�s Safeguarding & Family Support,"Family Placements, Children in Care, Leaving Care & Emergency Duty Team",Premises-Related Expenditure,Trade Refuse,Restore Datashred,03/01/2024,100.33
Children�s Safeguarding & Family Support,"Family Placements, Children in Care, Leaving Care & Emergency Duty Team",Premises-Related Expenditure,Trade Refuse,Restore Datashred,03/01/2024,100.33
Children�s Safeguarding & Family Support,"Family Placements, Children in Care, Leaving Care & Emergency Duty Team",Premises-Related Expenditure,Trade Refuse,Restore Datashred,03/01/2024,100.33
Children�s Safeguarding & Family Support,"Family Placements, Children in Care, Leaving Care & Emergency Duty Team",Employees,Staff Training,School of Shabs,17/01/2024,375.00
Children�s Safeguarding & Family Support,"Family Placements, Children in Care, Leaving Care & Emergency Duty Team",Employees,Recruitment Advertising,TELFORD COLLEGE,25/01/2024,170.00
Children�s Safeguarding & Family Support,"Family Placements, Children in Care, Leaving Care & Emergency Duty Team",Employees,Recruitment Advertising,The Purple Company (UK) Ltd,29/01/2024,302.50
Children�s Safeguarding & Family Support,"Family Placements, Children in Care, Leaving Care & Emergency Duty Team",Third Party Payments,Childminders,Country Kids Day Nursery,04/01/2024,346.00
Children�s Safeguarding & Family Support,"Family Placements, Children in Care, Leaving Care & Emergency Duty Team",Third Party Payments,Childminders,Country Kids Day Nursery,04/01/2024,344.00
Children�s Safeguarding & Family Support,"Family Placements, Children in Care, Leaving Care & Emergency Duty Team",Third Party Payments,Childminders,HADLEY UNDER 5�S PLAYGROUP,12/01/2024,342.00
Children�s Safeguarding & Family Support,Safeguarding Advisory,Employees,Training Expenses,Pegasus Solutions TA Lads Like Us,18/01/2024,"3,000.00"
"Communities, Customer & Commercial Services",Community Services,Supplies & Services,Grants To Voluntary Organis,DAWLEY HAMLETS P/COUNCIL ,24/01/2024,500.00
"Communities, Customer & Commercial Services",Community Services,Supplies & Services,Grants To Voluntary Organis,DONNINGTON & MUXTON PARISH COUNCIL,30/01/2024,"1,000.00"
"Communities, Customer & Commercial Services",Community Services,Supplies & Services,Grants To Voluntary Organis,GREAT DAWLEY PARISH COUNCIL,04/01/2024,750.00
"Communities, Customer & Commercial Services",Community Services,Supplies & Services,Grants To Voluntary Organis,GREAT DAWLEY PARISH COUNCIL,15/01/2024,425.00
"Communities, Customer & Commercial Services",Community Services,Supplies & Services,Grants To Voluntary Organis,GREAT DAWLEY PARISH COUNCIL,15/01/2024,"2,000.00"
"Communities, Customer & Commercial Services",Community Services,Supplies & Services,Grants To Voluntary Organis,GREAT DAWLEY PARISH COUNCIL,16/01/2024,"4,385.00"
"Communities, Customer & Commercial Services",Community Services,Supplies & Services,Grants To Voluntary Organis,GREAT DAWLEY PARISH COUNCIL,22/01/2024,"1,826.00"
"Communities, Customer & Commercial Services",Community Services,Supplies & Services,Grants To Voluntary Organis,Great Dawley Town Council,04/01/2024,"1,000.00"
"Communities, Customer & Commercial Services",Community Services,Supplies & Services,Grants To Voluntary Organis,HADLEY & LEEGOMERY PARISH COUNCIL,04/01/2024,876.00
"Communities, Customer & Commercial Services",Community Services,Supplies & Services,Grants To Voluntary Organis,HOME-START TELFORD & WREKIN,09/01/2024,"1,000.00"
"Communities, Customer & Commercial Services",Community Services,Supplies & Services,Grants To Voluntary Organis,HOME-START TELFORD & WREKIN,15/01/2024,500.00
"Communities, Customer & Commercial Services",Community Services,Supplies & Services,Grants To Voluntary Organis,LAWLEY & OVERDALE PARISH COUNCIL,24/01/2024,112.79
"Communities, Customer & Commercial Services",Community Services,Supplies & Services,Grants To Voluntary Organis,MADELEY TOWN COUNCIL ,15/01/2024,"5,600.00"
"Communities, Customer & Commercial Services",Community Services,Supplies & Services,Grants To Voluntary Organis,Old Park Primary SCHOOL,04/01/2024,"1,000.00"
"Communities, Customer & Commercial Services",Community Services,Supplies & Services,Grants To Voluntary Organis,TELFORD WEST INDIAN ASSOCIATION,18/01/2024,"1,800.00"
"Communities, Customer & Commercial Services",Community Services,Supplies & Services,Grants To Voluntary Organis,THE SILVER THREADS HALL,04/01/2024,300.00
"Communities, Customer & Commercial Services",Community Services,Supplies & Services,Grants To Voluntary Organis,Wrockwardine Wood Toddler Group,24/01/2024,500.00
"Communities, Customer & Commercial Services",Community Services,Supplies & Services,Grants To Voluntary Organis,Connecting Communities Telford,24/01/2024,"2,000.00"
"Communities, Customer & Commercial Services",Community Services,Premises-Related Expenditure,Electricity,West Mercia Energy (WME),12/01/2024,976.53
"Communities, Customer & Commercial Services",Community Services,Premises-Related Expenditure,Electricity,West Mercia Energy (WME),19/01/2024,"1,006.29"
"Communities, Customer & Commercial Services",Culture & Events,Supplies & Services,Marketing & Publicity,Blue Sail Consulting Limited,12/01/2024,"15,962.40"
"Communities, Customer & Commercial Services",Culture & Events,Supplies & Services,Marketing & Publicity,New Mind Internet Consultancy Ltd T/A Simpleview Europe,03/01/2024,"11,071.00"
"Communities, Customer & Commercial Services",Culture & Events,Supplies & Services,Marketing & Publicity,Shropshire Festivals Limited,31/01/2024,150.00
"Communities, Customer & Commercial Services",Culture & Events,Supplies & Services,Advertising,Colston Media Ltd,11/01/2024,150.00
"Communities, Customer & Commercial Services",Culture & Events,Supplies & Services,Promotion Expenses,crowdEngage Limited,12/01/2024,429.52
"Communities, Customer & Commercial Services",Culture & Events,Supplies & Services,Advertising,Radiant Media Ltd t/a Alight Media,12/01/2024,"3,000.00"
"Communities, Customer & Commercial Services",Culture & Events,Supplies & Services,Advertising,Sign Language Interpreting Services Ltd,23/01/2024,404.00
"Communities, Customer & Commercial Services",Culture & Events,Supplies & Services,Promotion Expenses,Spektrix Limited,09/01/2024,"3,646.49"
"Communities, Customer & Commercial Services",Culture & Events,Supplies & Services,Promotion Expenses,Sure Digital Limited,06/01/2024,"2,292.00"
"Communities, Customer & Commercial Services",Culture & Events,Supplies & Services,Advertising,THE SIGN SHOP,16/01/2024,420.00
"Communities, Customer & Commercial Services",Culture & Events,Supplies & Services,Advertising,WHATS ON MAGAZINES LTD,09/01/2024,275.00
"Communities, Customer & Commercial Services",Culture & Events,Supplies & Services,Artistes Fees,Anstice Community Trust,09/01/2024,576.00
"Communities, Customer & Commercial Services",Culture & Events,Supplies & Services,Artistes Fees,Anstice Community Trust,06/01/2024,284.16
"Communities, Customer & Commercial Services",Culture & Events,Supplies & Services,Artistes Fees,Casey�s Cordingley Hall,06/01/2024,101.75
"Communities, Customer & Commercial Services",Culture & Events,Supplies & Services,Artistes Fees,ENTERTAINERS MANAGEMENT LTD,18/01/2024,"4,514.30"
"Communities, Customer & Commercial Services",Culture & Events,Supplies & Services,Artistes Fees,National Production Company Limited,06/01/2024,294.40
"Communities, Customer & Commercial Services",Culture & Events,Supplies & Services,Artistes Fees,Soul Promotions Ltd,06/01/2024,"2,732.35"
"Communities, Customer & Commercial Services",Culture & Events,Supplies & Services,Artistes Fees,Ticketplan Limited,06/01/2024,760.24
"Communities, Customer & Commercial Services",Culture & Events,Supplies & Services,Provisions,BIKOLD,11/01/2024,147.92
"Communities, Customer & Commercial Services",Culture & Events,Supplies & Services,Audit Services,DMC STOCKTAKING,09/01/2024,160.00
"Communities, Customer & Commercial Services",Culture & Events,Premises-Related Expenditure,Service Contracts,Ductbusters Ltd,06/01/2024,400.00
"Communities, Customer & Commercial Services",Culture & Events,Supplies & Services,Wet Resale Provision,MOLSON COORS BREWING COMPANY UK LTD,16/01/2024,232.74
"Communities, Customer & Commercial Services",Culture & Events,Supplies & Services,Wet Resale Provision,MOLSON COORS BREWING COMPANY UK LTD,16/01/2024,291.46
"Communities, Customer & Commercial Services",Culture & Events,Supplies & Services,Wet Resale Provision,MOLSON COORS BREWING COMPANY UK LTD,16/01/2024,232.74
"Communities, Customer & Commercial Services",Culture & Events,Supplies & Services,Wet Resale Provision,MOLSON COORS BREWING COMPANY UK LTD,16/01/2024,145.73
"Communities, Customer & Commercial Services",Culture & Events,Supplies & Services,Wet Resale Provision,MOLSON COORS BREWING COMPANY UK LTD,16/01/2024,107.35
"Communities, Customer & Commercial Services",Culture & Events,Supplies & Services,Wet Resale Provision,MOLSON COORS BREWING COMPANY UK LTD,10/01/2024,291.46
"Communities, Customer & Commercial Services",Culture & Events,Supplies & Services,Wet Resale Provision,MOLSON COORS BREWING COMPANY UK LTD,10/01/2024,221.26
"Communities, Customer & Commercial Services",Culture & Events,Supplies & Services,Wet Resale Provision,MOLSON COORS BREWING COMPANY UK LTD,06/01/2024,145.89
"Communities, Customer & Commercial Services",Culture & Events,Supplies & Services,Wet Resale Provision,MOLSON COORS BREWING COMPANY UK LTD,06/01/2024,232.74
"Communities, Customer & Commercial Services",Culture & Events,Supplies & Services,Wet Resale Provision,MOLSON COORS BREWING COMPANY UK LTD,10/01/2024,"1,377.37"
"Communities, Customer & Commercial Services",Culture & Events,Supplies & Services,Crockery/Hardware/Light Equip,A1 BARSTUFF LTD,11/01/2024,259.92
"Communities, Customer & Commercial Services",Culture & Events,Supplies & Services,Wet Resale Provision,MOLSON COORS BREWING COMPANY UK LTD,16/01/2024,145.73
"Communities, Customer & Commercial Services",Culture & Events,Supplies & Services,Wet Resale Provision,MOLSON COORS BREWING COMPANY UK LTD,16/01/2024,437.19
"Communities, Customer & Commercial Services",Culture & Events,Supplies & Services,Wet Resale Provision,MOLSON COORS BREWING COMPANY UK LTD,16/01/2024,167.34
"Communities, Customer & Commercial Services",Culture & Events,Supplies & Services,Wet Resale Provision,MOLSON COORS BREWING COMPANY UK LTD,18/01/2024,497.03
"Communities, Customer & Commercial Services",Culture & Events,Supplies & Services,Wet Resale Provision,MOLSON COORS BREWING COMPANY UK LTD,06/01/2024,437.19
"Communities, Customer & Commercial Services",Culture & Events,Supplies & Services,Wet Resale Provision,MOLSON COORS BREWING COMPANY UK LTD,10/01/2024,541.71
"Communities, Customer & Commercial Services",Culture & Events,Supplies & Services,Audit Services,DMC STOCKTAKING,09/01/2024,160.00
"Communities, Customer & Commercial Services",Culture & Events,Supplies & Services,Audit Services,DMC STOCKTAKING,09/01/2024,160.00
"Communities, Customer & Commercial Services",Culture & Events,Supplies & Services,Confectionery & Snacks,Eden Farm Hulleys,18/01/2024,121.60
"Communities, Customer & Commercial Services",Culture & Events,Supplies & Services,Confectionery & Snacks,Eden Farm Hulleys,18/01/2024,121.60
"Communities, Customer & Commercial Services",Culture & Events,Supplies & Services,Confectionery & Snacks,Eden Farm Hulleys,18/01/2024,182.40
"Communities, Customer & Commercial Services",Culture & Events,Supplies & Services,Confectionery & Snacks,Eden Farm Hulleys,18/01/2024,121.60
"Communities, Customer & Commercial Services",Culture & Events,Supplies & Services,Confectionery & Snacks,Eden Farm Hulleys,16/01/2024,121.60
"Communities, Customer & Commercial Services",Culture & Events,Supplies & Services,Confectionery & Snacks,Eden Farm Hulleys,16/01/2024,121.60
"Communities, Customer & Commercial Services",Culture & Events,Supplies & Services,Confectionery & Snacks,Eden Farm Hulleys,16/01/2024,121.60
"Communities, Customer & Commercial Services",Culture & Events,Supplies & Services,Confectionery & Snacks,Eden Farm Hulleys,16/01/2024,121.60
"Communities, Customer & Commercial Services",Culture & Events,Supplies & Services,Confectionery & Snacks,Eden Farm Hulleys,16/01/2024,121.60
"Communities, Customer & Commercial Services",Culture & Events,Supplies & Services,Confectionery & Snacks,Eden Farm Hulleys,10/01/2024,121.60
"Communities, Customer & Commercial Services",Culture & Events,Supplies & Services,Confectionery & Snacks,Eden Farm Hulleys,10/01/2024,121.60
"Communities, Customer & Commercial Services",Culture & Events,Supplies & Services,Confectionery & Snacks,Eden Farm Hulleys,10/01/2024,121.60
"Communities, Customer & Commercial Services",Culture & Events,Supplies & Services,Confectionery & Snacks,Eden Farm Hulleys,10/01/2024,243.20
"Communities, Customer & Commercial Services",Culture & Events,Supplies & Services,Confectionery & Snacks,Eden Farm Hulleys,10/01/2024,243.20
"Communities, Customer & Commercial Services",Culture & Events,Supplies & Services,Confectionery & Snacks,Eden Farm Hulleys,10/01/2024,243.20
"Communities, Customer & Commercial Services",Culture & Events,Supplies & Services,Confectionery & Snacks,Eden Farm Hulleys,10/01/2024,121.60
"Communities, Customer & Commercial Services",Culture & Events,Supplies & Services,Confectionery & Snacks,Eden Farm Hulleys,10/01/2024,243.20
"Communities, Customer & Commercial Services",Culture & Events,Supplies & Services,Confectionery & Snacks,Eden Farm Hulleys,15/01/2024,486.40
"Communities, Customer & Commercial Services",Culture & Events,Supplies & Services,Confectionery & Snacks,Eden Farm Hulleys,15/01/2024,364.80
"Communities, Customer & Commercial Services",Culture & Events,Supplies & Services,Confectionery & Snacks,Eden Farm Hulleys,15/01/2024,243.20
"Communities, Customer & Commercial Services",Culture & Events,Supplies & Services,Confectionery & Snacks,Eden Farm Hulleys,15/01/2024,243.20
"Communities, Customer & Commercial Services",Culture & Events,Supplies & Services,Wet Resale Provision,MOLSON COORS BREWING COMPANY UK LTD,16/01/2024,116.88
"Communities, Customer & Commercial Services",Culture & Events,Supplies & Services,Wet Resale Provision,MOLSON COORS BREWING COMPANY UK LTD,16/01/2024,291.46
"Communities, Customer & Commercial Services",Culture & Events,Supplies & Services,Wet Resale Provision,MOLSON COORS BREWING COMPANY UK LTD,16/01/2024,116.37
"Communities, Customer & Commercial Services",Culture & Events,Supplies & Services,Wet Resale Provision,MOLSON COORS BREWING COMPANY UK LTD,16/01/2024,107.35
"Communities, Customer & Commercial Services",Culture & Events,Supplies & Services,Wet Resale Provision,MOLSON COORS BREWING COMPANY UK LTD,16/01/2024,126.27
"Communities, Customer & Commercial Services",Culture & Events,Supplies & Services,Wet Resale Provision,MOLSON COORS BREWING COMPANY UK LTD,18/01/2024,"1,016.85"
"Communities, Customer & Commercial Services",Culture & Events,Supplies & Services,Wet Resale Provision,MOLSON COORS BREWING COMPANY UK LTD,10/01/2024,877.56
"Communities, Customer & Commercial Services",Culture & Events,Supplies & Services,Wet Resale Provision,MOLSON COORS BREWING COMPANY UK LTD,10/01/2024,"2,010.07"
"Communities, Customer & Commercial Services",Culture & Events,Supplies & Services,Service Contracts,PROKILL UK LIMITED,16/01/2024,159.60
"Communities, Customer & Commercial Services",Culture & Events,Supplies & Services,Equipment - Hire,Blachere Illumination UK Ltd,03/01/2024,"2,400.00"
"Communities, Customer & Commercial Services",Culture & Events,Transport-Related Expenditure,Outside Hire,BOULTONS OF SHROPSHIRE,29/01/2024,340.00
"Communities, Customer & Commercial Services",Culture & Events,Supplies & Services,Artistes Fees,Fools Paradise Ltd,05/01/2024,"1,415.00"
"Communities, Customer & Commercial Services",Culture & Events,Supplies & Services,Equipment - Hire,Illuminate Audio Visual Effects,03/01/2024,"5,803.00"
"Communities, Customer & Commercial Services",Culture & Events,Supplies & Services,Equipment - Hire,JCE & SONS LTD,10/01/2024,"5,523.39"
"Communities, Customer & Commercial Services",Culture & Events,Supplies & Services,Subscriptions,LAEOG uk,22/01/2024,120.00
"Communities, Customer & Commercial Services",Culture & Events,Supplies & Services,First Aid,MW MEDICS LTD,03/01/2024,810.00
"Communities, Customer & Commercial Services",Culture & Events,Supplies & Services,Artistes Fees,Worldbeaters Ltd,09/01/2024,"2,932.50"
"Communities, Customer & Commercial Services",Customer Relationships & Welfare Services,Supplies & Services,Other Grants (Expenses),Discretionary Household Support,31/01/2024,525.00
"Communities, Customer & Commercial Services",Customer Relationships & Welfare Services,Supplies & Services,Other Grants (Expenses),Discretionary Household Support,31/01/2024,506.59
"Communities, Customer & Commercial Services",Customer Relationships & Welfare Services,Employees,Agency Supply Costs,EDEN BROWN LTD,05/01/2024,"1,012.50"
"Communities, Customer & Commercial Services",Customer Relationships & Welfare Services,Employees,Agency Supply Costs,EDEN BROWN LTD,02/01/2024,607.50
"Communities, Customer & Commercial Services",Customer Relationships & Welfare Services,Supplies & Services,Other Grants (Expenses),Hawk Incentives Ltd (Crown Commercial Services),03/01/2024,"19,744.00"
"Communities, Customer & Commercial Services",Customer Relationships & Welfare Services,Supplies & Services,Other Grants (Expenses),Hawk Incentives Ltd (Crown Commercial Services),05/01/2024,"530,126.40"
"Communities, Customer & Commercial Services",Customer Relationships & Welfare Services,Supplies & Services,Other Grants (Expenses),Hawk Incentives Ltd (Crown Commercial Services),25/01/2024,"158,445.60"
"Communities, Customer & Commercial Services",Customer Relationships & Welfare Services,Supplies & Services,Other Grants (Expenses),Hawk Incentives Ltd (Crown Commercial Services),30/01/2024,"19,744.00"
"Communities, Customer & Commercial Services",Customer Relationships & Welfare Services,Transfer Payments,Crisis Assistance Awards,PayPoint Network Limited,02/01/2024,960.00
"Communities, Customer & Commercial Services",Customer Relationships & Welfare Services,Transfer Payments,Crisis Assistance Awards,PayPoint Network Limited,22/01/2024,490.00
"Communities, Customer & Commercial Services",Customer Relationships & Welfare Services,Transfer Payments,Crisis Assistance Awards,PayPoint Network Limited,17/01/2024,305.00
"Communities, Customer & Commercial Services",Customer Relationships & Welfare Services,Transfer Payments,Crisis Assistance Awards,PayPoint Network Limited,31/01/2024,340.00
"Communities, Customer & Commercial Services",Customer Relationships & Welfare Services,Supplies & Services,Postages,Financial Data Management plc,24/01/2024,103.52
"Communities, Customer & Commercial Services",Customer Relationships & Welfare Services,Supplies & Services,Postages,Financial Data Management plc,24/01/2024,100.47
"Communities, Customer & Commercial Services",Customer Relationships & Welfare Services,Supplies & Services,Postages,Financial Data Management plc,24/01/2024,127.67
"Communities, Customer & Commercial Services",Customer Relationships & Welfare Services,Supplies & Services,Postages,Financial Data Management plc,24/01/2024,131.55
"Communities, Customer & Commercial Services",Customer Relationships & Welfare Services,Supplies & Services,Permit Production - Blue Badge,APS Group,08/01/2024,824.29
"Communities, Customer & Commercial Services",Customer Relationships & Welfare Services,Supplies & Services,Blue Badge Assessments,Ascenti,08/01/2024,300.00
"Communities, Customer & Commercial Services",Customer Relationships & Welfare Services,Supplies & Services,Blue Badge Assessments,Ascenti,08/01/2024,240.00
"Communities, Customer & Commercial Services",Customer Relationships & Welfare Services,Supplies & Services,Bus Pass Production,Euclid Limited,08/01/2024,638.88
"Communities, Customer & Commercial Services",Customer Relationships & Welfare Services,Transfer Payments,Crisis Assistance Awards,Kings of the Road,22/01/2024,495.00
"Communities, Customer & Commercial Services",Customer Relationships & Welfare Services,Transfer Payments,Crisis Assistance Awards,Kings of the Road,31/01/2024,395.00
"Communities, Customer & Commercial Services",Customer Relationships & Welfare Services,Transfer Payments,Crisis Assistance Awards,Kings of the Road,31/01/2024,425.00
"Communities, Customer & Commercial Services",Customer Relationships & Welfare Services,Supplies & Services,Permit Production - Blue Badge,Valtech Limited,05/01/2024,371.22
"Communities, Customer & Commercial Services",Customer Relationships & Welfare Services,Employees,Staff Training,LOCAL REGISTRATION SERVICES ASSOCIATION,05/01/2024,300.00
"Communities, Customer & Commercial Services",ICT,Premises-Related Expenditure,Hire Of Rooms,KETLEY PARISH COUNCIL,18/01/2024,234.00
"Communities, Customer & Commercial Services",ICT,Premises-Related Expenditure,Hire Of Rooms,PARK LANE CENTRE,04/01/2024,114.00
"Communities, Customer & Commercial Services",ICT,Supplies & Services,Telecomms,Airband Community Internet,12/01/2024,295.00
"Communities, Customer & Commercial Services",ICT,Supplies & Services,Telecomms,VIRGIN MEDIA BUSINESS ,04/01/2024,"3,100.00"
"Communities, Customer & Commercial Services",ICT,Supplies & Services,Telephones,BRITISH TELECOMMUNICATIONS PLC ,18/01/2024,"7,808.83"
"Communities, Customer & Commercial Services",ICT,Supplies & Services,Mobile Phones,EE LTD AIRTIME ,16/01/2024,"13,415.84"
"Communities, Customer & Commercial Services",ICT,Supplies & Services,Text Messages,KONICA MINOLTA BUSINESS SOLUTIONS UK LTD,18/01/2024,304.98
"Communities, Customer & Commercial Services",ICT,Supplies & Services,Telephones,Trustmarque Solutions Limited,25/01/2024,"2,793.00"
"Communities, Customer & Commercial Services",ICT,Supplies & Services,Comp Software (Purch / Hire),Community Brands UK Ltd,18/01/2024,"4,320.00"
"Communities, Customer & Commercial Services",ICT,Premises-Related Expenditure,Service Contracts,AVK/SEG (UK) Ltd,29/01/2024,"1,785.42"
"Communities, Customer & Commercial Services",ICT,Premises-Related Expenditure,R&M -Building Other,Charlton Academy,12/01/2024,"3,311.03"
"Communities, Customer & Commercial Services",ICT,Premises-Related Expenditure,R&M -Building Other,Charlton Academy,25/01/2024,"3,393.10"
"Communities, Customer & Commercial Services",ICT,Premises-Related Expenditure,R&M -Buildings DLO Charge,COOL SERVICES LTD,16/01/2024,360.00
"Communities, Customer & Commercial Services",ICT,Supplies & Services,Comp Software (Purch / Hire),ICS.Al Ltd,24/01/2024,"30,000.00"
"Communities, Customer & Commercial Services",ICT,Supplies & Services,Comp Software (Purch / Hire),PHOENIX SOFTWARE LTD,12/01/2024,"1,734.78"
"Communities, Customer & Commercial Services",ICT,Supplies & Services,Comp Software (Purch / Hire),PHOENIX SOFTWARE LTD,04/01/2024,"16,074.35"
"Communities, Customer & Commercial Services",ICT,Premises-Related Expenditure,R&M -Buildings DLO Charge,PP ELECTRICAL SERVICES (Shropshire) Ltd,09/01/2024,220.00
"Communities, Customer & Commercial Services",ICT,Supplies & Services,Comp Software (Purch / Hire),V1 Limited,17/01/2024,"2,445.52"
"Communities, Customer & Commercial Services",ICT,Supplies & Services,Comp Software (Purch / Hire),V1 Limited,17/01/2024,843.16
"Communities, Customer & Commercial Services",ICT,Supplies & Services,Comp Software (Purch / Hire),V1 Limited,17/01/2024,"9,094.37"
"Communities, Customer & Commercial Services",ICT,Supplies & Services,Equipment - Purchase,ICTn Limited,30/01/2024,237.00
"Communities, Customer & Commercial Services",ICT,Supplies & Services,Equipment - Purchase,ICTn Limited,30/01/2024,112.64
"Communities, Customer & Commercial Services",ICT,Supplies & Services,Equipment - Purchase,ICTn Limited,30/01/2024,295.00
"Communities, Customer & Commercial Services",ICT,Supplies & Services,Telephones,Ghekko LTD,31/01/2024,170.00
"Communities, Customer & Commercial Services",ICT,Supplies & Services,Telephones,Ghekko LTD,31/01/2024,125.00
"Communities, Customer & Commercial Services",ICT,Supplies & Services,Comp Software (Purch / Hire),Bromcom Computers Plc,10/01/2024,"1,150.00"
"Communities, Customer & Commercial Services",ICT,Supplies & Services,Comp Software (Purch / Hire),Bromcom Computers Plc,10/01/2024,"2,411.20"
"Communities, Customer & Commercial Services",ICT,Supplies & Services,Comp Software (Purch / Hire),Bromcom Computers Plc,04/01/2024,"1,150.00"
"Communities, Customer & Commercial Services",ICT,Supplies & Services,Comp Software (Purch / Hire),Bromcom Computers Plc,04/01/2024,"2,392.00"
"Communities, Customer & Commercial Services",ICT,Supplies & Services,Comp Software (Purch / Hire),Bromcom Computers Plc,04/01/2024,"1,150.00"
"Communities, Customer & Commercial Services",ICT,Supplies & Services,Comp Software (Purch / Hire),Bromcom Computers Plc,04/01/2024,"1,859.20"
"Communities, Customer & Commercial Services",ICT,Supplies & Services,Comp Software (Purch / Hire),Bromcom Computers Plc,04/01/2024,"1,150.00"
"Communities, Customer & Commercial Services",ICT,Supplies & Services,Comp Software (Purch / Hire),Bromcom Computers Plc,04/01/2024,"1,547.20"
"Communities, Customer & Commercial Services",ICT,Supplies & Services,Comp Software (Purch / Hire),Bromcom Computers Plc,31/01/2024,"1,150.00"
"Communities, Customer & Commercial Services",ICT,Supplies & Services,Comp Software (Purch / Hire),Bromcom Computers Plc,31/01/2024,"1,955.20"
"Communities, Customer & Commercial Services",ICT,Supplies & Services,Comp Software (Purch / Hire),Bromcom Computers Plc,31/01/2024,"1,150.00"
"Communities, Customer & Commercial Services",ICT,Supplies & Services,Comp Software (Purch / Hire),Bromcom Computers Plc,31/01/2024,"1,854.40"
"Communities, Customer & Commercial Services",ICT,Supplies & Services,Comp Software (Purch / Hire),ScholarPack,16/01/2024,"3,474.00"
"Communities, Customer & Commercial Services",ICT,Supplies & Services,Comp Software (Purch / Hire),ScholarPack,16/01/2024,"5,467.00"
"Communities, Customer & Commercial Services",ICT,Capital Expenditure,Payments to Contractor,Bramble Hub Limited,18/01/2024,"1,517.76"
"Communities, Customer & Commercial Services",ICT,Capital Expenditure,Computer Hardware,CCS MEDIA LIMITED,04/01/2024,"62,793.20"
"Communities, Customer & Commercial Services",ICT,Capital Expenditure,Payments to Contractor,FarrPoint Ltd,12/01/2024,"1,584.00"
"Communities, Customer & Commercial Services",ICT,Capital Expenditure,Payments to Contractor,Zellis UK Ltd,12/01/2024,"3,760.00"
"Communities, Customer & Commercial Services",Sport & Leisure,Premises-Related Expenditure,Electricity,EON next,15/01/2024,598.92
"Communities, Customer & Commercial Services",Sport & Leisure,Supplies & Services,Protective Clothing,Border Janitorial Supplies Limited,08/01/2024,196.00
"Communities, Customer & Commercial Services",Sport & Leisure,Supplies & Services,Protective Clothing,IMAGE@WORK LTD,31/01/2024,965.06
"Communities, Customer & Commercial Services",Sport & Leisure,Supplies & Services,EEC Whole Milk,JOHAL DAIRIES,30/01/2024,792.35
"Communities, Customer & Commercial Services",Sport & Leisure,Supplies & Services,EEC Whole Milk,JOHAL DAIRIES,30/01/2024,"1,755.60"
"Communities, Customer & Commercial Services",Sport & Leisure,Supplies & Services,EEC Whole Milk,JOHAL DAIRIES,08/01/2024,750.75
"Communities, Customer & Commercial Services",Sport & Leisure,Supplies & Services,EEC Whole Milk,JOHAL DAIRIES,08/01/2024,"1,592.90"
"Communities, Customer & Commercial Services",Sport & Leisure,Supplies & Services,EEC Whole Milk,JOHAL DAIRIES,17/01/2024,769.99
"Communities, Customer & Commercial Services",Sport & Leisure,Supplies & Services,EEC Whole Milk,JOHAL DAIRIES,17/01/2024,"1,698.20"
"Communities, Customer & Commercial Services",Sport & Leisure,Supplies & Services,EEC Whole Milk,JOHAL DAIRIES,31/01/2024,794.95
"Communities, Customer & Commercial Services",Sport & Leisure,Supplies & Services,EEC Whole Milk,JOHAL DAIRIES,31/01/2024,"1,768.40"
"Communities, Customer & Commercial Services",Sport & Leisure,Supplies & Services,Provisions,BIKOLD,11/01/2024,102.21
"Communities, Customer & Commercial Services",Sport & Leisure,Supplies & Services,Provisions,BIKOLD,18/01/2024,109.05
"Communities, Customer & Commercial Services",Sport & Leisure,Supplies & Services,Provisions,BIKOLD,25/01/2024,122.28
"Communities, Customer & Commercial Services",Sport & Leisure,Supplies & Services,Provisions,BIKOLD,04/01/2024,102.18
"Communities, Customer & Commercial Services",Sport & Leisure,Supplies & Services,Provisions,BIKOLD,04/01/2024,216.10
"Communities, Customer & Commercial Services",Sport & Leisure,Supplies & Services,Provisions,BIKOLD,04/01/2024,586.56
"Communities, Customer & Commercial Services",Sport & Leisure,Supplies & Services,Provisions,BIKOLD,04/01/2024,122.90
"Communities, Customer & Commercial Services",Sport & Leisure,Supplies & Services,Provisions,BIKOLD,11/01/2024,670.33
"Communities, Customer & Commercial Services",Sport & Leisure,Supplies & Services,Provisions,BIKOLD,11/01/2024,171.85
"Communities, Customer & Commercial Services",Sport & Leisure,Supplies & Services,Provisions,BIKOLD,11/01/2024,190.29
"Communities, Customer & Commercial Services",Sport & Leisure,Supplies & Services,Provisions,BIKOLD,11/01/2024,312.72
"Communities, Customer & Commercial Services",Sport & Leisure,Supplies & Services,Provisions,BIKOLD,11/01/2024,320.90
"Communities, Customer & Commercial Services",Sport & Leisure,Supplies & Services,Provisions,BIKOLD,11/01/2024,177.47
"Communities, Customer & Commercial Services",Sport & Leisure,Supplies & Services,Provisions,BIKOLD,11/01/2024,118.93
"Communities, Customer & Commercial Services",Sport & Leisure,Supplies & Services,Provisions,BIKOLD,11/01/2024,450.05
"Communities, Customer & Commercial Services",Sport & Leisure,Supplies & Services,Provisions,BIKOLD,11/01/2024,169.60
"Communities, Customer & Commercial Services",Sport & Leisure,Supplies & Services,Provisions,BIKOLD,11/01/2024,149.75
"Communities, Customer & Commercial Services",Sport & Leisure,Supplies & Services,Provisions,BIKOLD,11/01/2024,137.19
"Communities, Customer & Commercial Services",Sport & Leisure,Supplies & Services,Provisions,BIKOLD,11/01/2024,108.11
"Communities, Customer & Commercial Services",Sport & Leisure,Supplies & Services,Provisions,BIKOLD,11/01/2024,117.01
"Communities, Customer & Commercial Services",Sport & Leisure,Supplies & Services,Provisions,BIKOLD,11/01/2024,165.07
"Communities, Customer & Commercial Services",Sport & Leisure,Supplies & Services,Provisions,BIKOLD,11/01/2024,140.68
"Communities, Customer & Commercial Services",Sport & Leisure,Supplies & Services,Provisions,BIKOLD,11/01/2024,126.09
"Communities, Customer & Commercial Services",Sport & Leisure,Supplies & Services,Provisions,BIKOLD,11/01/2024,195.14
"Communities, Customer & Commercial Services",Sport & Leisure,Supplies & Services,Provisions,BIKOLD,11/01/2024,124.39
"Communities, Customer & Commercial Services",Sport & Leisure,Supplies & Services,Provisions,BIKOLD,11/01/2024,300.09
"Communities, Customer & Commercial Services",Sport & Leisure,Supplies & Services,Provisions,BIKOLD,11/01/2024,227.04
"Communities, Customer & Commercial Services",Sport & Leisure,Supplies & Services,Provisions,BIKOLD,11/01/2024,226.80
"Communities, Customer & Commercial Services",Sport & Leisure,Supplies & Services,Provisions,BIKOLD,11/01/2024,183.22
"Communities, Customer & Commercial Services",Sport & Leisure,Supplies & Services,Provisions,BIKOLD,11/01/2024,152.92
"Communities, Customer & Commercial Services",Sport & Leisure,Supplies & Services,Provisions,BIKOLD,11/01/2024,327.23
"Communities, Customer & Commercial Services",Sport & Leisure,Supplies & Services,Provisions,BIKOLD,11/01/2024,163.51
"Communities, Customer & Commercial Services",Sport & Leisure,Supplies & Services,Provisions,BIKOLD,11/01/2024,396.99
"Communities, Customer & Commercial Services",Sport & Leisure,Supplies & Services,Provisions,BIKOLD,11/01/2024,134.50
"Communities, Customer & Commercial Services",Sport & Leisure,Supplies & Services,Provisions,BIKOLD,11/01/2024,347.97
"Communities, Customer & Commercial Services",Sport & Leisure,Supplies & Services,Provisions,BIKOLD,11/01/2024,118.32
"Communities, Customer & Commercial Services",Sport & Leisure,Supplies & Services,Provisions,BIKOLD,11/01/2024,122.96
"Communities, Customer & Commercial Services",Sport & Leisure,Supplies & Services,Provisions,BIKOLD,11/01/2024,135.08
"Communities, Customer & Commercial Services",Sport & Leisure,Supplies & Services,Provisions,BIKOLD,11/01/2024,156.72
"Communities, Customer & Commercial Services",Sport & Leisure,Supplies & Services,Provisions,BIKOLD,11/01/2024,274.17
"Communities, Customer & Commercial Services",Sport & Leisure,Supplies & Services,Provisions,BIKOLD,11/01/2024,297.44
"Communities, Customer & Commercial Services",Sport & Leisure,Supplies & Services,Provisions,BIKOLD,11/01/2024,424.99
"Communities, Customer & Commercial Services",Sport & Leisure,Supplies & Services,Provisions,BIKOLD,11/01/2024,243.59
"Communities, Customer & Commercial Services",Sport & Leisure,Supplies & Services,Provisions,BIKOLD,11/01/2024,196.15
"Communities, Customer & Commercial Services",Sport & Leisure,Supplies & Services,Provisions,BIKOLD,11/01/2024,550.97
"Communities, Customer & Commercial Services",Sport & Leisure,Supplies & Services,Provisions,BIKOLD,11/01/2024,339.33
"Communities, Customer & Commercial Services",Sport & Leisure,Supplies & Services,Provisions,BIKOLD,11/01/2024,211.59
"Communities, Customer & Commercial Services",Sport & Leisure,Supplies & Services,Provisions,BIKOLD,11/01/2024,484.76
"Communities, Customer & Commercial Services",Sport & Leisure,Supplies & Services,Provisions,BIKOLD,11/01/2024,214.36
"Communities, Customer & Commercial Services",Sport & Leisure,Supplies & Services,Provisions,BIKOLD,11/01/2024,146.04
"Communities, Customer & Commercial Services",Sport & Leisure,Supplies & Services,Provisions,BIKOLD,11/01/2024,418.99
"Communities, Customer & Commercial Services",Sport & Leisure,Supplies & Services,Provisions,BIKOLD,11/01/2024,410.86
"Communities, Customer & Commercial Services",Sport & Leisure,Supplies & Services,Provisions,BIKOLD,11/01/2024,213.48
"Communities, Customer & Commercial Services",Sport & Leisure,Supplies & Services,Provisions,BIKOLD,11/01/2024,383.36
"Communities, Customer & Commercial Services",Sport & Leisure,Supplies & Services,Provisions,BIKOLD,11/01/2024,183.17
"Communities, Customer & Commercial Services",Sport & Leisure,Supplies & Services,Provisions,BIKOLD,11/01/2024,200.10
"Communities, Customer & Commercial Services",Sport & Leisure,Supplies & Services,Provisions,BIKOLD,11/01/2024,496.43
"Communities, Customer & Commercial Services",Sport & Leisure,Supplies & Services,Provisions,BIKOLD,11/01/2024,193.66
"Communities, Customer & Commercial Services",Sport & Leisure,Supplies & Services,Provisions,BIKOLD,11/01/2024,340.92
"Communities, Customer & Commercial Services",Sport & Leisure,Supplies & Services,Provisions,BIKOLD,11/01/2024,140.50
"Communities, Customer & Commercial Services",Sport & Leisure,Supplies & Services,Provisions,BIKOLD,11/01/2024,102.83
"Communities, Customer & Commercial Services",Sport & Leisure,Supplies & Services,Provisions,BIKOLD,11/01/2024,462.86
"Communities, Customer & Commercial Services",Sport & Leisure,Supplies & Services,Provisions,BIKOLD,11/01/2024,460.45
"Communities, Customer & Commercial Services",Sport & Leisure,Supplies & Services,Provisions,BIKOLD,11/01/2024,111.68
"Communities, Customer & Commercial Services",Sport & Leisure,Supplies & Services,Provisions,BIKOLD,11/01/2024,182.88
"Communities, Customer & Commercial Services",Sport & Leisure,Supplies & Services,Provisions,BIKOLD,11/01/2024,266.55
"Communities, Customer & Commercial Services",Sport & Leisure,Supplies & Services,Provisions,BIKOLD,11/01/2024,232.30
"Communities, Customer & Commercial Services",Sport & Leisure,Supplies & Services,Provisions,BIKOLD,11/01/2024,155.87
"Communities, Customer & Commercial Services",Sport & Leisure,Supplies & Services,Provisions,BIKOLD,11/01/2024,117.59
"Communities, Customer & Commercial Services",Sport & Leisure,Supplies & Services,Provisions,BIKOLD,11/01/2024,274.01
"Communities, Customer & Commercial Services",Sport & Leisure,Supplies & Services,Provisions,BIKOLD,11/01/2024,143.23
"Communities, Customer & Commercial Services",Sport & Leisure,Supplies & Services,Provisions,BIKOLD,11/01/2024,447.25
"Communities, Customer & Commercial Services",Sport & Leisure,Supplies & Services,Provisions,BIKOLD,11/01/2024,224.83
"Communities, Customer & Commercial Services",Sport & Leisure,Supplies & Services,Provisions,BIKOLD,11/01/2024,434.31
"Communities, Customer & Commercial Services",Sport & Leisure,Supplies & Services,Provisions,BIKOLD,11/01/2024,291.84
"Communities, Customer & Commercial Services",Sport & Leisure,Supplies & Services,Provisions,BIKOLD,11/01/2024,179.52
"Communities, Customer & Commercial Services",Sport & Leisure,Supplies & Services,Provisions,BIKOLD,11/01/2024,310.75
"Communities, Customer & Commercial Services",Sport & Leisure,Supplies & Services,Provisions,BIKOLD,11/01/2024,200.26
"Communities, Customer & Commercial Services",Sport & Leisure,Supplies & Services,Provisions,BIKOLD,11/01/2024,103.71
"Communities, Customer & Commercial Services",Sport & Leisure,Supplies & Services,Provisions,BIKOLD,11/01/2024,219.26
"Communities, Customer & Commercial Services",Sport & Leisure,Supplies & Services,Provisions,BIKOLD,11/01/2024,376.37
"Communities, Customer & Commercial Services",Sport & Leisure,Supplies & Services,Provisions,BIKOLD,11/01/2024,206.34
"Communities, Customer & Commercial Services",Sport & Leisure,Supplies & Services,Provisions,BIKOLD,11/01/2024,360.26
"Communities, Customer & Commercial Services",Sport & Leisure,Supplies & Services,Provisions,BIKOLD,11/01/2024,385.60
"Communities, Customer & Commercial Services",Sport & Leisure,Supplies & Services,Provisions,BIKOLD,11/01/2024,345.15
"Communities, Customer & Commercial Services",Sport & Leisure,Supplies & Services,Provisions,BIKOLD,11/01/2024,427.60
"Communities, Customer & Commercial Services",Sport & Leisure,Supplies & Services,Provisions,BIKOLD,11/01/2024,112.13
"Communities, Customer & Commercial Services",Sport & Leisure,Supplies & Services,Provisions,BIKOLD,11/01/2024,249.21
"Communities, Customer & Commercial Services",Sport & Leisure,Supplies & Services,Provisions,BIKOLD,11/01/2024,127.33
"Communities, Customer & Commercial Services",Sport & Leisure,Supplies & Services,Provisions,BIKOLD,11/01/2024,118.32
"Communities, Customer & Commercial Services",Sport & Leisure,Supplies & Services,Provisions,BIKOLD,11/01/2024,226.11
"Communities, Customer & Commercial Services",Sport & Leisure,Supplies & Services,Provisions,BIKOLD,11/01/2024,471.21
"Communities, Customer & Commercial Services",Sport & Leisure,Supplies & Services,Provisions,BIKOLD,11/01/2024,260.11
"Communities, Customer & Commercial Services",Sport & Leisure,Supplies & Services,Provisions,BIKOLD,11/01/2024,280.46
"Communities, Customer & Commercial Services",Sport & Leisure,Supplies & Services,Provisions,BIKOLD,11/01/2024,102.00
"Communities, Customer & Commercial Services",Sport & Leisure,Supplies & Services,Provisions,BIKOLD,11/01/2024,183.57
"Communities, Customer & Commercial Services",Sport & Leisure,Supplies & Services,Provisions,BIKOLD,11/01/2024,241.98
"Communities, Customer & Commercial Services",Sport & Leisure,Supplies & Services,Provisions,BIKOLD,11/01/2024,493.31
"Communities, Customer & Commercial Services",Sport & Leisure,Supplies & Services,Provisions,BIKOLD,11/01/2024,164.72
"Communities, Customer & Commercial Services",Sport & Leisure,Supplies & Services,Provisions,BIKOLD,11/01/2024,123.68
"Communities, Customer & Commercial Services",Sport & Leisure,Supplies & Services,Provisions,BIKOLD,11/01/2024,326.87
"Communities, Customer & Commercial Services",Sport & Leisure,Supplies & Services,Provisions,BIKOLD,11/01/2024,106.56
"Communities, Customer & Commercial Services",Sport & Leisure,Supplies & Services,Provisions,BIKOLD,11/01/2024,314.89
"Communities, Customer & Commercial Services",Sport & Leisure,Supplies & Services,Provisions,BIKOLD,11/01/2024,206.78
"Communities, Customer & Commercial Services",Sport & Leisure,Supplies & Services,Provisions,BIKOLD,11/01/2024,221.46
"Communities, Customer & Commercial Services",Sport & Leisure,Supplies & Services,Provisions,BIKOLD,11/01/2024,447.89
"Communities, Customer & Commercial Services",Sport & Leisure,Supplies & Services,Provisions,BIKOLD,11/01/2024,315.65
"Communities, Customer & Commercial Services",Sport & Leisure,Supplies & Services,Provisions,BIKOLD,11/01/2024,116.40
"Communities, Customer & Commercial Services",Sport & Leisure,Supplies & Services,Provisions,BIKOLD,11/01/2024,375.64
"Communities, Customer & Commercial Services",Sport & Leisure,Supplies & Services,Provisions,BIKOLD,11/01/2024,172.61
"Communities, Customer & Commercial Services",Sport & Leisure,Supplies & Services,Provisions,BIKOLD,11/01/2024,105.34
"Communities, Customer & Commercial Services",Sport & Leisure,Supplies & Services,Provisions,BIKOLD,11/01/2024,249.04
"Communities, Customer & Commercial Services",Sport & Leisure,Supplies & Services,Provisions,BIKOLD,11/01/2024,486.11
"Communities, Customer & Commercial Services",Sport & Leisure,Supplies & Services,Provisions,BIKOLD,11/01/2024,102.19
"Communities, Customer & Commercial Services",Sport & Leisure,Supplies & Services,Provisions,BIKOLD,11/01/2024,167.36
"Communities, Customer & Commercial Services",Sport & Leisure,Supplies & Services,Provisions,BIKOLD,11/01/2024,514.38
"Communities, Customer & Commercial Services",Sport & Leisure,Supplies & Services,Provisions,BIKOLD,11/01/2024,111.70
"Communities, Customer & Commercial Services",Sport & Leisure,Supplies & Services,Provisions,BIKOLD,11/01/2024,409.02
"Communities, Customer & Commercial Services",Sport & Leisure,Supplies & Services,Provisions,BIKOLD,11/01/2024,395.36
"Communities, Customer & Commercial Services",Sport & Leisure,Supplies & Services,Provisions,BIKOLD,11/01/2024,111.55
"Communities, Customer & Commercial Services",Sport & Leisure,Supplies & Services,Provisions,BIKOLD,11/01/2024,116.64
"Communities, Customer & Commercial Services",Sport & Leisure,Supplies & Services,Provisions,BIKOLD,11/01/2024,166.71
"Communities, Customer & Commercial Services",Sport & Leisure,Supplies & Services,Provisions,BIKOLD,11/01/2024,103.28
"Communities, Customer & Commercial Services",Sport & Leisure,Supplies & Services,Provisions,BIKOLD,11/01/2024,159.56
"Communities, Customer & Commercial Services",Sport & Leisure,Supplies & Services,Provisions,BIKOLD,11/01/2024,216.55
"Communities, Customer & Commercial Services",Sport & Leisure,Supplies & Services,Provisions,BIKOLD,11/01/2024,-187.92
"Communities, Customer & Commercial Services",Sport & Leisure,Supplies & Services,Provisions,BIKOLD,11/01/2024,179.05
"Communities, Customer & Commercial Services",Sport & Leisure,Supplies & Services,Provisions,BIKOLD,11/01/2024,362.90
"Communities, Customer & Commercial Services",Sport & Leisure,Supplies & Services,Provisions,BIKOLD,11/01/2024,335.27
"Communities, Customer & Commercial Services",Sport & Leisure,Supplies & Services,Provisions,BIKOLD,11/01/2024,169.38
"Communities, Customer & Commercial Services",Sport & Leisure,Supplies & Services,Provisions,BIKOLD,11/01/2024,149.46
"Communities, Customer & Commercial Services",Sport & Leisure,Supplies & Services,Provisions,BIKOLD,11/01/2024,109.61
"Communities, Customer & Commercial Services",Sport & Leisure,Supplies & Services,Provisions,BIKOLD,11/01/2024,145.04
"Communities, Customer & Commercial Services",Sport & Leisure,Supplies & Services,Provisions,BIKOLD,11/01/2024,102.78
"Communities, Customer & Commercial Services",Sport & Leisure,Supplies & Services,Provisions,BIKOLD,11/01/2024,359.42
"Communities, Customer & Commercial Services",Sport & Leisure,Supplies & Services,Provisions,BIKOLD,11/01/2024,271.01
"Communities, Customer & Commercial Services",Sport & Leisure,Supplies & Services,Provisions,BIKOLD,11/01/2024,192.68
"Communities, Customer & Commercial Services",Sport & Leisure,Supplies & Services,Provisions,BIKOLD,11/01/2024,267.30
"Communities, Customer & Commercial Services",Sport & Leisure,Supplies & Services,Provisions,BIKOLD,11/01/2024,457.66
"Communities, Customer & Commercial Services",Sport & Leisure,Supplies & Services,Provisions,BIKOLD,11/01/2024,254.98
"Communities, Customer & Commercial Services",Sport & Leisure,Supplies & Services,Provisions,BIKOLD,11/01/2024,413.15
"Communities, Customer & Commercial Services",Sport & Leisure,Supplies & Services,Provisions,BIKOLD,18/01/2024,131.15
"Communities, Customer & Commercial Services",Sport & Leisure,Supplies & Services,Provisions,BIKOLD,18/01/2024,117.00
"Communities, Customer & Commercial Services",Sport & Leisure,Supplies & Services,Provisions,BIKOLD,18/01/2024,120.28
"Communities, Customer & Commercial Services",Sport & Leisure,Supplies & Services,Provisions,BIKOLD,18/01/2024,719.87
"Communities, Customer & Commercial Services",Sport & Leisure,Supplies & Services,Provisions,BIKOLD,18/01/2024,319.61
"Communities, Customer & Commercial Services",Sport & Leisure,Supplies & Services,Provisions,BIKOLD,18/01/2024,234.75
"Communities, Customer & Commercial Services",Sport & Leisure,Supplies & Services,Provisions,BIKOLD,18/01/2024,238.27
"Communities, Customer & Commercial Services",Sport & Leisure,Supplies & Services,Provisions,BIKOLD,18/01/2024,322.39
"Communities, Customer & Commercial Services",Sport & Leisure,Supplies & Services,Provisions,BIKOLD,18/01/2024,227.96
"Communities, Customer & Commercial Services",Sport & Leisure,Supplies & Services,Provisions,BIKOLD,18/01/2024,329.77
"Communities, Customer & Commercial Services",Sport & Leisure,Supplies & Services,Provisions,BIKOLD,18/01/2024,806.50
"Communities, Customer & Commercial Services",Sport & Leisure,Supplies & Services,Provisions,BIKOLD,18/01/2024,137.86
"Communities, Customer & Commercial Services",Sport & Leisure,Supplies & Services,Provisions,BIKOLD,18/01/2024,194.58
"Communities, Customer & Commercial Services",Sport & Leisure,Supplies & Services,Provisions,BIKOLD,18/01/2024,147.66
"Communities, Customer & Commercial Services",Sport & Leisure,Supplies & Services,Provisions,BIKOLD,18/01/2024,275.51
"Communities, Customer & Commercial Services",Sport & Leisure,Supplies & Services,Provisions,BIKOLD,18/01/2024,245.50
"Communities, Customer & Commercial Services",Sport & Leisure,Supplies & Services,Provisions,BIKOLD,18/01/2024,430.26
"Communities, Customer & Commercial Services",Sport & Leisure,Supplies & Services,Provisions,BIKOLD,18/01/2024,337.44
"Communities, Customer & Commercial Services",Sport & Leisure,Supplies & Services,Provisions,BIKOLD,18/01/2024,410.54
"Communities, Customer & Commercial Services",Sport & Leisure,Supplies & Services,Provisions,BIKOLD,18/01/2024,375.57
"Communities, Customer & Commercial Services",Sport & Leisure,Supplies & Services,Provisions,BIKOLD,18/01/2024,152.06
"Communities, Customer & Commercial Services",Sport & Leisure,Supplies & Services,Provisions,BIKOLD,18/01/2024,143.16
"Communities, Customer & Commercial Services",Sport & Leisure,Supplies & Services,Provisions,BIKOLD,18/01/2024,"1,096.90"
"Communities, Customer & Commercial Services",Sport & Leisure,Supplies & Services,Provisions,BIKOLD,18/01/2024,164.32
"Communities, Customer & Commercial Services",Sport & Leisure,Supplies & Services,Provisions,BIKOLD,18/01/2024,231.81
"Communities, Customer & Commercial Services",Sport & Leisure,Supplies & Services,Provisions,BIKOLD,18/01/2024,318.05
"Communities, Customer & Commercial Services",Sport & Leisure,Supplies & Services,Provisions,BIKOLD,18/01/2024,389.61
"Communities, Customer & Commercial Services",Sport & Leisure,Supplies & Services,Provisions,BIKOLD,18/01/2024,245.38
"Communities, Customer & Commercial Services",Sport & Leisure,Supplies & Services,Provisions,BIKOLD,18/01/2024,168.01
"Communities, Customer & Commercial Services",Sport & Leisure,Supplies & Services,Provisions,BIKOLD,18/01/2024,116.53
"Communities, Customer & Commercial Services",Sport & Leisure,Supplies & Services,Provisions,BIKOLD,18/01/2024,490.40
"Communities, Customer & Commercial Services",Sport & Leisure,Supplies & Services,Provisions,BIKOLD,18/01/2024,260.68
"Communities, Customer & Commercial Services",Sport & Leisure,Supplies & Services,Provisions,BIKOLD,18/01/2024,380.20
"Communities, Customer & Commercial Services",Sport & Leisure,Supplies & Services,Provisions,BIKOLD,18/01/2024,146.09
"Communities, Customer & Commercial Services",Sport & Leisure,Supplies & Services,Provisions,BIKOLD,18/01/2024,474.69
"Communities, Customer & Commercial Services",Sport & Leisure,Supplies & Services,Provisions,BIKOLD,18/01/2024,104.80
"Communities, Customer & Commercial Services",Sport & Leisure,Supplies & Services,Provisions,BIKOLD,18/01/2024,393.04
"Communities, Customer & Commercial Services",Sport & Leisure,Supplies & Services,Provisions,BIKOLD,18/01/2024,168.79
"Communities, Customer & Commercial Services",Sport & Leisure,Supplies & Services,Provisions,BIKOLD,18/01/2024,116.88
"Communities, Customer & Commercial Services",Sport & Leisure,Supplies & Services,Provisions,BIKOLD,18/01/2024,100.13
"Communities, Customer & Commercial Services",Sport & Leisure,Supplies & Services,Provisions,BIKOLD,18/01/2024,395.00
"Communities, Customer & Commercial Services",Sport & Leisure,Supplies & Services,Provisions,BIKOLD,18/01/2024,410.41
"Communities, Customer & Commercial Services",Sport & Leisure,Supplies & Services,Provisions,BIKOLD,18/01/2024,180.35
"Communities, Customer & Commercial Services",Sport & Leisure,Supplies & Services,Provisions,BIKOLD,18/01/2024,180.54
"Communities, Customer & Commercial Services",Sport & Leisure,Supplies & Services,Provisions,BIKOLD,18/01/2024,428.84
"Communities, Customer & Commercial Services",Sport & Leisure,Supplies & Services,Provisions,BIKOLD,18/01/2024,308.29
"Communities, Customer & Commercial Services",Sport & Leisure,Supplies & Services,Provisions,BIKOLD,18/01/2024,105.05
"Communities, Customer & Commercial Services",Sport & Leisure,Supplies & Services,Provisions,BIKOLD,18/01/2024,358.19
"Communities, Customer & Commercial Services",Sport & Leisure,Supplies & Services,Provisions,BIKOLD,18/01/2024,529.61
"Communities, Customer & Commercial Services",Sport & Leisure,Supplies & Services,Provisions,BIKOLD,18/01/2024,321.60
"Communities, Customer & Commercial Services",Sport & Leisure,Supplies & Services,Provisions,BIKOLD,18/01/2024,259.07
"Communities, Customer & Commercial Services",Sport & Leisure,Supplies & Services,Provisions,BIKOLD,18/01/2024,512.23
"Communities, Customer & Commercial Services",Sport & Leisure,Supplies & Services,Provisions,BIKOLD,18/01/2024,251.59
"Communities, Customer & Commercial Services",Sport & Leisure,Supplies & Services,Provisions,BIKOLD,18/01/2024,167.07
"Communities, Customer & Commercial Services",Sport & Leisure,Supplies & Services,Provisions,BIKOLD,18/01/2024,458.82
"Communities, Customer & Commercial Services",Sport & Leisure,Supplies & Services,Provisions,BIKOLD,18/01/2024,271.37
"Communities, Customer & Commercial Services",Sport & Leisure,Supplies & Services,Provisions,BIKOLD,18/01/2024,-282.90
"Communities, Customer & Commercial Services",Sport & Leisure,Supplies & Services,Provisions,BIKOLD,18/01/2024,117.24
"Communities, Customer & Commercial Services",Sport & Leisure,Supplies & Services,Provisions,BIKOLD,18/01/2024,103.49
"Communities, Customer & Commercial Services",Sport & Leisure,Supplies & Services,Provisions,BIKOLD,18/01/2024,110.72
"Communities, Customer & Commercial Services",Sport & Leisure,Supplies & Services,Provisions,BIKOLD,18/01/2024,138.97
"Communities, Customer & Commercial Services",Sport & Leisure,Supplies & Services,Provisions,BIKOLD,18/01/2024,561.73
"Communities, Customer & Commercial Services",Sport & Leisure,Supplies & Services,Provisions,BIKOLD,18/01/2024,156.94
"Communities, Customer & Commercial Services",Sport & Leisure,Supplies & Services,Provisions,BIKOLD,18/01/2024,250.96
"Communities, Customer & Commercial Services",Sport & Leisure,Supplies & Services,Provisions,BIKOLD,18/01/2024,136.63
"Communities, Customer & Commercial Services",Sport & Leisure,Supplies & Services,Provisions,BIKOLD,18/01/2024,273.10
"Communities, Customer & Commercial Services",Sport & Leisure,Supplies & Services,Provisions,BIKOLD,18/01/2024,247.44
"Communities, Customer & Commercial Services",Sport & Leisure,Supplies & Services,Provisions,BIKOLD,18/01/2024,364.37
"Communities, Customer & Commercial Services",Sport & Leisure,Supplies & Services,Provisions,BIKOLD,18/01/2024,221.59
"Communities, Customer & Commercial Services",Sport & Leisure,Supplies & Services,Provisions,BIKOLD,18/01/2024,155.52
"Communities, Customer & Commercial Services",Sport & Leisure,Supplies & Services,Provisions,BIKOLD,18/01/2024,209.52
"Communities, Customer & Commercial Services",Sport & Leisure,Supplies & Services,Provisions,BIKOLD,18/01/2024,183.86
"Communities, Customer & Commercial Services",Sport & Leisure,Supplies & Services,Provisions,BIKOLD,18/01/2024,192.07
"Communities, Customer & Commercial Services",Sport & Leisure,Supplies & Services,Provisions,BIKOLD,18/01/2024,159.82
"Communities, Customer & Commercial Services",Sport & Leisure,Supplies & Services,Provisions,BIKOLD,18/01/2024,122.05
"Communities, Customer & Commercial Services",Sport & Leisure,Supplies & Services,Provisions,BIKOLD,18/01/2024,218.83
"Communities, Customer & Commercial Services",Sport & Leisure,Supplies & Services,Provisions,BIKOLD,18/01/2024,268.19
"Communities, Customer & Commercial Services",Sport & Leisure,Supplies & Services,Provisions,BIKOLD,18/01/2024,103.02
"Communities, Customer & Commercial Services",Sport & Leisure,Supplies & Services,Provisions,BIKOLD,18/01/2024,170.09
"Communities, Customer & Commercial Services",Sport & Leisure,Supplies & Services,Provisions,BIKOLD,18/01/2024,154.02
"Communities, Customer & Commercial Services",Sport & Leisure,Supplies & Services,Provisions,BIKOLD,18/01/2024,122.22
"Communities, Customer & Commercial Services",Sport & Leisure,Supplies & Services,Provisions,BIKOLD,18/01/2024,152.71
"Communities, Customer & Commercial Services",Sport & Leisure,Supplies & Services,Provisions,BIKOLD,18/01/2024,153.50
"Communities, Customer & Commercial Services",Sport & Leisure,Supplies & Services,Provisions,BIKOLD,18/01/2024,157.36
"Communities, Customer & Commercial Services",Sport & Leisure,Supplies & Services,Provisions,BIKOLD,18/01/2024,263.08
"Communities, Customer & Commercial Services",Sport & Leisure,Supplies & Services,Provisions,BIKOLD,18/01/2024,322.09
"Communities, Customer & Commercial Services",Sport & Leisure,Supplies & Services,Provisions,BIKOLD,18/01/2024,407.46
"Communities, Customer & Commercial Services",Sport & Leisure,Supplies & Services,Provisions,BIKOLD,18/01/2024,153.09
"Communities, Customer & Commercial Services",Sport & Leisure,Supplies & Services,Provisions,BIKOLD,18/01/2024,542.98
"Communities, Customer & Commercial Services",Sport & Leisure,Supplies & Services,Provisions,BIKOLD,18/01/2024,260.38
"Communities, Customer & Commercial Services",Sport & Leisure,Supplies & Services,Provisions,BIKOLD,18/01/2024,334.78
"Communities, Customer & Commercial Services",Sport & Leisure,Supplies & Services,Provisions,BIKOLD,18/01/2024,472.61
"Communities, Customer & Commercial Services",Sport & Leisure,Supplies & Services,Provisions,BIKOLD,18/01/2024,109.35
"Communities, Customer & Commercial Services",Sport & Leisure,Supplies & Services,Provisions,BIKOLD,18/01/2024,139.65
"Communities, Customer & Commercial Services",Sport & Leisure,Supplies & Services,Provisions,BIKOLD,18/01/2024,125.28
"Communities, Customer & Commercial Services",Sport & Leisure,Supplies & Services,Provisions,BIKOLD,18/01/2024,238.86
"Communities, Customer & Commercial Services",Sport & Leisure,Supplies & Services,Provisions,BIKOLD,18/01/2024,219.06
"Communities, Customer & Commercial Services",Sport & Leisure,Supplies & Services,Provisions,BIKOLD,18/01/2024,351.12
"Communities, Customer & Commercial Services",Sport & Leisure,Supplies & Services,Provisions,BIKOLD,18/01/2024,336.30
"Communities, Customer & Commercial Services",Sport & Leisure,Supplies & Services,Provisions,BIKOLD,18/01/2024,233.00
"Communities, Customer & Commercial Services",Sport & Leisure,Supplies & Services,Provisions,BIKOLD,18/01/2024,274.41
"Communities, Customer & Commercial Services",Sport & Leisure,Supplies & Services,Provisions,BIKOLD,18/01/2024,131.50
"Communities, Customer & Commercial Services",Sport & Leisure,Supplies & Services,Provisions,BIKOLD,18/01/2024,403.65
"Communities, Customer & Commercial Services",Sport & Leisure,Supplies & Services,Provisions,BIKOLD,18/01/2024,-148.75
"Communities, Customer & Commercial Services",Sport & Leisure,Supplies & Services,Provisions,BIKOLD,18/01/2024,116.09
"Communities, Customer & Commercial Services",Sport & Leisure,Supplies & Services,Provisions,BIKOLD,18/01/2024,113.25
"Communities, Customer & Commercial Services",Sport & Leisure,Supplies & Services,Provisions,BIKOLD,18/01/2024,366.04
"Communities, Customer & Commercial Services",Sport & Leisure,Supplies & Services,Provisions,BIKOLD,18/01/2024,412.52
"Communities, Customer & Commercial Services",Sport & Leisure,Supplies & Services,Provisions,BIKOLD,18/01/2024,233.37
"Communities, Customer & Commercial Services",Sport & Leisure,Supplies & Services,Provisions,BIKOLD,18/01/2024,219.94
"Communities, Customer & Commercial Services",Sport & Leisure,Supplies & Services,Provisions,BIKOLD,18/01/2024,107.37
"Communities, Customer & Commercial Services",Sport & Leisure,Supplies & Services,Provisions,BIKOLD,18/01/2024,248.82
"Communities, Customer & Commercial Services",Sport & Leisure,Supplies & Services,Provisions,BIKOLD,18/01/2024,259.35
"Communities, Customer & Commercial Services",Sport & Leisure,Supplies & Services,Provisions,BIKOLD,18/01/2024,456.91
"Communities, Customer & Commercial Services",Sport & Leisure,Supplies & Services,Provisions,BIKOLD,18/01/2024,157.72
"Communities, Customer & Commercial Services",Sport & Leisure,Supplies & Services,Provisions,BIKOLD,18/01/2024,143.44
"Communities, Customer & Commercial Services",Sport & Leisure,Supplies & Services,Provisions,BIKOLD,18/01/2024,604.78
"Communities, Customer & Commercial Services",Sport & Leisure,Supplies & Services,Provisions,BIKOLD,18/01/2024,495.95
"Communities, Customer & Commercial Services",Sport & Leisure,Supplies & Services,Provisions,BIKOLD,18/01/2024,377.11
"Communities, Customer & Commercial Services",Sport & Leisure,Supplies & Services,Provisions,BIKOLD,18/01/2024,266.10
"Communities, Customer & Commercial Services",Sport & Leisure,Supplies & Services,Provisions,BIKOLD,18/01/2024,517.80
"Communities, Customer & Commercial Services",Sport & Leisure,Supplies & Services,Provisions,BIKOLD,18/01/2024,106.69
"Communities, Customer & Commercial Services",Sport & Leisure,Supplies & Services,Provisions,BIKOLD,18/01/2024,123.83
"Communities, Customer & Commercial Services",Sport & Leisure,Supplies & Services,Provisions,BIKOLD,18/01/2024,264.69
"Communities, Customer & Commercial Services",Sport & Leisure,Supplies & Services,Provisions,BIKOLD,18/01/2024,275.56
"Communities, Customer & Commercial Services",Sport & Leisure,Supplies & Services,Provisions,BIKOLD,25/01/2024,331.71
"Communities, Customer & Commercial Services",Sport & Leisure,Supplies & Services,Provisions,BIKOLD,25/01/2024,208.68
"Communities, Customer & Commercial Services",Sport & Leisure,Supplies & Services,Provisions,BIKOLD,25/01/2024,115.84
"Communities, Customer & Commercial Services",Sport & Leisure,Supplies & Services,Provisions,BIKOLD,25/01/2024,318.03
"Communities, Customer & Commercial Services",Sport & Leisure,Supplies & Services,Provisions,BIKOLD,25/01/2024,349.89
"Communities, Customer & Commercial Services",Sport & Leisure,Supplies & Services,Provisions,BIKOLD,25/01/2024,228.84
"Communities, Customer & Commercial Services",Sport & Leisure,Supplies & Services,Provisions,BIKOLD,25/01/2024,502.04
"Communities, Customer & Commercial Services",Sport & Leisure,Supplies & Services,Provisions,BIKOLD,25/01/2024,244.20
"Communities, Customer & Commercial Services",Sport & Leisure,Supplies & Services,Provisions,BIKOLD,25/01/2024,276.43
"Communities, Customer & Commercial Services",Sport & Leisure,Supplies & Services,Provisions,BIKOLD,25/01/2024,547.77
"Communities, Customer & Commercial Services",Sport & Leisure,Supplies & Services,Provisions,BIKOLD,25/01/2024,162.17
"Communities, Customer & Commercial Services",Sport & Leisure,Supplies & Services,Provisions,BIKOLD,25/01/2024,292.40
"Communities, Customer & Commercial Services",Sport & Leisure,Supplies & Services,Provisions,BIKOLD,25/01/2024,154.15
"Communities, Customer & Commercial Services",Sport & Leisure,Supplies & Services,Provisions,BIKOLD,25/01/2024,124.88
"Communities, Customer & Commercial Services",Sport & Leisure,Supplies & Services,Provisions,BIKOLD,25/01/2024,125.30
"Communities, Customer & Commercial Services",Sport & Leisure,Supplies & Services,Provisions,BIKOLD,25/01/2024,173.56
"Communities, Customer & Commercial Services",Sport & Leisure,Supplies & Services,Provisions,BIKOLD,25/01/2024,209.80
"Communities, Customer & Commercial Services",Sport & Leisure,Supplies & Services,Provisions,BIKOLD,25/01/2024,211.58
"Communities, Customer & Commercial Services",Sport & Leisure,Supplies & Services,Provisions,BIKOLD,25/01/2024,321.66
"Communities, Customer & Commercial Services",Sport & Leisure,Supplies & Services,Provisions,BIKOLD,25/01/2024,490.71
"Communities, Customer & Commercial Services",Sport & Leisure,Supplies & Services,Provisions,BIKOLD,25/01/2024,185.64
"Communities, Customer & Commercial Services",Sport & Leisure,Supplies & Services,Provisions,BIKOLD,25/01/2024,581.53
"Communities, Customer & Commercial Services",Sport & Leisure,Supplies & Services,Provisions,BIKOLD,25/01/2024,130.46
"Communities, Customer & Commercial Services",Sport & Leisure,Supplies & Services,Provisions,BIKOLD,25/01/2024,154.59
"Communities, Customer & Commercial Services",Sport & Leisure,Supplies & Services,Provisions,BIKOLD,25/01/2024,361.37
"Communities, Customer & Commercial Services",Sport & Leisure,Supplies & Services,Provisions,BIKOLD,25/01/2024,158.36
"Communities, Customer & Commercial Services",Sport & Leisure,Supplies & Services,Provisions,BIKOLD,25/01/2024,109.05
"Communities, Customer & Commercial Services",Sport & Leisure,Supplies & Services,Provisions,BIKOLD,25/01/2024,297.97
"Communities, Customer & Commercial Services",Sport & Leisure,Supplies & Services,Provisions,BIKOLD,25/01/2024,281.25
"Communities, Customer & Commercial Services",Sport & Leisure,Supplies & Services,Provisions,BIKOLD,25/01/2024,645.88
"Communities, Customer & Commercial Services",Sport & Leisure,Supplies & Services,Provisions,BIKOLD,25/01/2024,209.72
"Communities, Customer & Commercial Services",Sport & Leisure,Supplies & Services,Provisions,BIKOLD,25/01/2024,225.12
"Communities, Customer & Commercial Services",Sport & Leisure,Supplies & Services,Provisions,BIKOLD,25/01/2024,140.50
"Communities, Customer & Commercial Services",Sport & Leisure,Supplies & Services,Provisions,BIKOLD,25/01/2024,135.13
"Communities, Customer & Commercial Services",Sport & Leisure,Supplies & Services,Provisions,BIKOLD,25/01/2024,537.09
"Communities, Customer & Commercial Services",Sport & Leisure,Supplies & Services,Provisions,BIKOLD,25/01/2024,113.14
"Communities, Customer & Commercial Services",Sport & Leisure,Supplies & Services,Provisions,BIKOLD,25/01/2024,213.42
"Communities, Customer & Commercial Services",Sport & Leisure,Supplies & Services,Provisions,BIKOLD,25/01/2024,468.98
"Communities, Customer & Commercial Services",Sport & Leisure,Supplies & Services,Provisions,BIKOLD,25/01/2024,293.71
"Communities, Customer & Commercial Services",Sport & Leisure,Supplies & Services,Provisions,BIKOLD,25/01/2024,126.02
"Communities, Customer & Commercial Services",Sport & Leisure,Supplies & Services,Provisions,BIKOLD,25/01/2024,405.64
"Communities, Customer & Commercial Services",Sport & Leisure,Supplies & Services,Provisions,BIKOLD,25/01/2024,190.36
"Communities, Customer & Commercial Services",Sport & Leisure,Supplies & Services,Provisions,BIKOLD,25/01/2024,124.47
"Communities, Customer & Commercial Services",Sport & Leisure,Supplies & Services,Provisions,BIKOLD,25/01/2024,180.38
"Communities, Customer & Commercial Services",Sport & Leisure,Supplies & Services,Provisions,BIKOLD,25/01/2024,201.82
"Communities, Customer & Commercial Services",Sport & Leisure,Supplies & Services,Provisions,BIKOLD,25/01/2024,415.08
"Communities, Customer & Commercial Services",Sport & Leisure,Supplies & Services,Provisions,BIKOLD,25/01/2024,153.06
"Communities, Customer & Commercial Services",Sport & Leisure,Supplies & Services,Provisions,BIKOLD,25/01/2024,491.20
"Communities, Customer & Commercial Services",Sport & Leisure,Supplies & Services,Provisions,BIKOLD,25/01/2024,156.22
"Communities, Customer & Commercial Services",Sport & Leisure,Supplies & Services,Provisions,BIKOLD,25/01/2024,146.28
"Communities, Customer & Commercial Services",Sport & Leisure,Supplies & Services,Provisions,BIKOLD,25/01/2024,168.78
"Communities, Customer & Commercial Services",Sport & Leisure,Supplies & Services,Provisions,BIKOLD,25/01/2024,270.79
"Communities, Customer & Commercial Services",Sport & Leisure,Supplies & Services,Provisions,BIKOLD,25/01/2024,127.52
"Communities, Customer & Commercial Services",Sport & Leisure,Supplies & Services,Provisions,BIKOLD,25/01/2024,195.55
"Communities, Customer & Commercial Services",Sport & Leisure,Supplies & Services,Provisions,BIKOLD,25/01/2024,164.99
"Communities, Customer & Commercial Services",Sport & Leisure,Supplies & Services,Provisions,BIKOLD,25/01/2024,176.25
"Communities, Customer & Commercial Services",Sport & Leisure,Supplies & Services,Provisions,BIKOLD,25/01/2024,329.51
"Communities, Customer & Commercial Services",Sport & Leisure,Supplies & Services,Provisions,BIKOLD,25/01/2024,300.20
"Communities, Customer & Commercial Services",Sport & Leisure,Supplies & Services,Provisions,BIKOLD,25/01/2024,101.66
"Communities, Customer & Commercial Services",Sport & Leisure,Supplies & Services,Provisions,BIKOLD,25/01/2024,462.60
"Communities, Customer & Commercial Services",Sport & Leisure,Supplies & Services,Provisions,BIKOLD,25/01/2024,115.30
"Communities, Customer & Commercial Services",Sport & Leisure,Supplies & Services,Provisions,BIKOLD,25/01/2024,285.33
"Communities, Customer & Commercial Services",Sport & Leisure,Supplies & Services,Provisions,BIKOLD,25/01/2024,139.43
"Communities, Customer & Commercial Services",Sport & Leisure,Supplies & Services,Provisions,BIKOLD,25/01/2024,487.29
"Communities, Customer & Commercial Services",Sport & Leisure,Supplies & Services,Provisions,BIKOLD,25/01/2024,403.71
"Communities, Customer & Commercial Services",Sport & Leisure,Supplies & Services,Provisions,BIKOLD,25/01/2024,359.98
"Communities, Customer & Commercial Services",Sport & Leisure,Supplies & Services,Provisions,BIKOLD,25/01/2024,201.87
"Communities, Customer & Commercial Services",Sport & Leisure,Supplies & Services,Provisions,BIKOLD,25/01/2024,173.36
"Communities, Customer & Commercial Services",Sport & Leisure,Supplies & Services,Provisions,BIKOLD,25/01/2024,286.51
"Communities, Customer & Commercial Services",Sport & Leisure,Supplies & Services,Provisions,BIKOLD,25/01/2024,179.53
"Communities, Customer & Commercial Services",Sport & Leisure,Supplies & Services,Provisions,BIKOLD,25/01/2024,124.81
"Communities, Customer & Commercial Services",Sport & Leisure,Supplies & Services,Provisions,BIKOLD,25/01/2024,118.54
"Communities, Customer & Commercial Services",Sport & Leisure,Supplies & Services,Provisions,BIKOLD,25/01/2024,200.60
"Communities, Customer & Commercial Services",Sport & Leisure,Supplies & Services,Provisions,BIKOLD,25/01/2024,269.15
"Communities, Customer & Commercial Services",Sport & Leisure,Supplies & Services,Provisions,BIKOLD,25/01/2024,499.67
"Communities, Customer & Commercial Services",Sport & Leisure,Supplies & Services,Provisions,BIKOLD,25/01/2024,210.08
"Communities, Customer & Commercial Services",Sport & Leisure,Supplies & Services,Provisions,BIKOLD,25/01/2024,115.28
"Communities, Customer & Commercial Services",Sport & Leisure,Supplies & Services,Provisions,BIKOLD,25/01/2024,723.29
"Communities, Customer & Commercial Services",Sport & Leisure,Supplies & Services,Provisions,BIKOLD,25/01/2024,389.33
"Communities, Customer & Commercial Services",Sport & Leisure,Supplies & Services,Provisions,BIKOLD,25/01/2024,130.47
"Communities, Customer & Commercial Services",Sport & Leisure,Supplies & Services,Provisions,BIKOLD,25/01/2024,258.85
"Communities, Customer & Commercial Services",Sport & Leisure,Supplies & Services,Provisions,BIKOLD,25/01/2024,227.17
"Communities, Customer & Commercial Services",Sport & Leisure,Supplies & Services,Provisions,BIKOLD,25/01/2024,225.44
"Communities, Customer & Commercial Services",Sport & Leisure,Supplies & Services,Provisions,BIKOLD,25/01/2024,432.38
"Communities, Customer & Commercial Services",Sport & Leisure,Supplies & Services,Provisions,BIKOLD,25/01/2024,775.77
"Communities, Customer & Commercial Services",Sport & Leisure,Supplies & Services,Provisions,BIKOLD,25/01/2024,219.19
"Communities, Customer & Commercial Services",Sport & Leisure,Supplies & Services,Provisions,BIKOLD,25/01/2024,255.23
"Communities, Customer & Commercial Services",Sport & Leisure,Supplies & Services,Provisions,BIKOLD,25/01/2024,233.90
"Communities, Customer & Commercial Services",Sport & Leisure,Supplies & Services,Provisions,BIKOLD,25/01/2024,411.39
"Communities, Customer & Commercial Services",Sport & Leisure,Supplies & Services,Provisions,BIKOLD,25/01/2024,146.61
"Communities, Customer & Commercial Services",Sport & Leisure,Supplies & Services,Provisions,BIKOLD,25/01/2024,302.51
"Communities, Customer & Commercial Services",Sport & Leisure,Supplies & Services,Provisions,BIKOLD,25/01/2024,353.33
"Communities, Customer & Commercial Services",Sport & Leisure,Supplies & Services,Provisions,BIKOLD,25/01/2024,211.90
"Communities, Customer & Commercial Services",Sport & Leisure,Supplies & Services,Provisions,BIKOLD,25/01/2024,327.74
"Communities, Customer & Commercial Services",Sport & Leisure,Supplies & Services,Provisions,BIKOLD,25/01/2024,199.00
"Communities, Customer & Commercial Services",Sport & Leisure,Supplies & Services,Provisions,BIKOLD,25/01/2024,318.75
"Communities, Customer & Commercial Services",Sport & Leisure,Supplies & Services,Provisions,BIKOLD,25/01/2024,206.13
"Communities, Customer & Commercial Services",Sport & Leisure,Supplies & Services,Provisions,BIKOLD,25/01/2024,289.12
"Communities, Customer & Commercial Services",Sport & Leisure,Supplies & Services,Provisions,BIKOLD,25/01/2024,146.26
"Communities, Customer & Commercial Services",Sport & Leisure,Supplies & Services,Provisions,BIKOLD,25/01/2024,116.41
"Communities, Customer & Commercial Services",Sport & Leisure,Supplies & Services,Provisions,BIKOLD,25/01/2024,124.71
"Communities, Customer & Commercial Services",Sport & Leisure,Supplies & Services,Provisions,BIKOLD,25/01/2024,146.83
"Communities, Customer & Commercial Services",Sport & Leisure,Supplies & Services,Provisions,BIKOLD,25/01/2024,308.78
"Communities, Customer & Commercial Services",Sport & Leisure,Supplies & Services,Provisions,BIKOLD,25/01/2024,173.83
"Communities, Customer & Commercial Services",Sport & Leisure,Supplies & Services,Provisions,BIKOLD,25/01/2024,397.27
"Communities, Customer & Commercial Services",Sport & Leisure,Supplies & Services,Provisions,BIKOLD,25/01/2024,134.88
"Communities, Customer & Commercial Services",Sport & Leisure,Supplies & Services,Provisions,BIKOLD,25/01/2024,161.94
"Communities, Customer & Commercial Services",Sport & Leisure,Supplies & Services,Provisions,BIKOLD,25/01/2024,239.31
"Communities, Customer & Commercial Services",Sport & Leisure,Supplies & Services,Provisions,BIKOLD,25/01/2024,464.40
"Communities, Customer & Commercial Services",Sport & Leisure,Premises-Related Expenditure,Clean Mats & Toilet Requisites,Border Janitorial Supplies Limited,18/01/2024,147.05
"Communities, Customer & Commercial Services",Sport & Leisure,Premises-Related Expenditure,Clean Mats & Toilet Requisites,Border Janitorial Supplies Limited,18/01/2024,507.53
"Communities, Customer & Commercial Services",Sport & Leisure,Premises-Related Expenditure,Clean Mats & Toilet Requisites,Border Janitorial Supplies Limited,18/01/2024,236.80
"Communities, Customer & Commercial Services",Sport & Leisure,Premises-Related Expenditure,Clean Mats & Toilet Requisites,Border Janitorial Supplies Limited,18/01/2024,127.70
"Communities, Customer & Commercial Services",Sport & Leisure,Premises-Related Expenditure,Clean Mats & Toilet Requisites,Border Janitorial Supplies Limited,18/01/2024,102.20
"Communities, Customer & Commercial Services",Sport & Leisure,Premises-Related Expenditure,Clean Mats & Toilet Requisites,Border Janitorial Supplies Limited,18/01/2024,168.03
"Communities, Customer & Commercial Services",Sport & Leisure,Premises-Related Expenditure,Clean Mats & Toilet Requisites,Border Janitorial Supplies Limited,08/01/2024,507.34
"Communities, Customer & Commercial Services",Sport & Leisure,Premises-Related Expenditure,Clean Mats & Toilet Requisites,Border Janitorial Supplies Limited,15/01/2024,228.87
"Communities, Customer & Commercial Services",Sport & Leisure,Premises-Related Expenditure,Clean Mats & Toilet Requisites,Border Janitorial Supplies Limited,15/01/2024,123.36
"Communities, Customer & Commercial Services",Sport & Leisure,Premises-Related Expenditure,Clean Mats & Toilet Requisites,Border Janitorial Supplies Limited,15/01/2024,298.09
"Communities, Customer & Commercial Services",Sport & Leisure,Premises-Related Expenditure,Clean Mats & Toilet Requisites,Border Janitorial Supplies Limited,15/01/2024,157.35
"Communities, Customer & Commercial Services",Sport & Leisure,Premises-Related Expenditure,Clean Mats & Toilet Requisites,Border Janitorial Supplies Limited,15/01/2024,110.30
"Communities, Customer & Commercial Services",Sport & Leisure,Premises-Related Expenditure,Clean Mats & Toilet Requisites,Border Janitorial Supplies Limited,31/01/2024,125.21
"Communities, Customer & Commercial Services",Sport & Leisure,Premises-Related Expenditure,Clean Mats & Toilet Requisites,Border Janitorial Supplies Limited,31/01/2024,259.69
"Communities, Customer & Commercial Services",Sport & Leisure,Premises-Related Expenditure,Clean Mats & Toilet Requisites,Border Janitorial Supplies Limited,31/01/2024,111.39
"Communities, Customer & Commercial Services",Sport & Leisure,Premises-Related Expenditure,Clean Mats & Toilet Requisites,Border Janitorial Supplies Limited,31/01/2024,102.15
"Communities, Customer & Commercial Services",Sport & Leisure,Premises-Related Expenditure,Clean Mats & Toilet Requisites,Border Janitorial Supplies Limited,24/01/2024,150.14
"Communities, Customer & Commercial Services",Sport & Leisure,Premises-Related Expenditure,Clean Mats & Toilet Requisites,Border Janitorial Supplies Limited,24/01/2024,286.30
"Communities, Customer & Commercial Services",Sport & Leisure,Premises-Related Expenditure,Clean Mats & Toilet Requisites,Border Janitorial Supplies Limited,24/01/2024,271.25
"Communities, Customer & Commercial Services",Sport & Leisure,Supplies & Services,Crockery/Hardware/Light Equip,Border Janitorial Supplies Limited,19/01/2024,140.27
"Communities, Customer & Commercial Services",Sport & Leisure,Supplies & Services,Provisions,Border Janitorial Supplies Limited,24/01/2024,231.08
"Communities, Customer & Commercial Services",Sport & Leisure,Supplies & Services,Provisions,J S Catering Butchers,04/01/2024,228.88
"Communities, Customer & Commercial Services",Sport & Leisure,Supplies & Services,Provisions,J S Catering Butchers,04/01/2024,110.40
"Communities, Customer & Commercial Services",Sport & Leisure,Supplies & Services,Provisions,J S Catering Butchers,04/01/2024,182.25
"Communities, Customer & Commercial Services",Sport & Leisure,Supplies & Services,Provisions,J S Catering Butchers,04/01/2024,214.45
"Communities, Customer & Commercial Services",Sport & Leisure,Supplies & Services,Provisions,J S Catering Butchers,04/01/2024,173.40
"Communities, Customer & Commercial Services",Sport & Leisure,Supplies & Services,Provisions,J S Catering Butchers,16/01/2024,104.93
"Communities, Customer & Commercial Services",Sport & Leisure,Supplies & Services,Provisions,J S Catering Butchers,16/01/2024,144.50
"Communities, Customer & Commercial Services",Sport & Leisure,Supplies & Services,Provisions,J S Catering Butchers,16/01/2024,110.88
"Communities, Customer & Commercial Services",Sport & Leisure,Supplies & Services,Provisions,J S Catering Butchers,16/01/2024,239.10
"Communities, Customer & Commercial Services",Sport & Leisure,Supplies & Services,Provisions,J S Catering Butchers,16/01/2024,110.40
"Communities, Customer & Commercial Services",Sport & Leisure,Supplies & Services,Provisions,J S Catering Butchers,16/01/2024,218.47
"Communities, Customer & Commercial Services",Sport & Leisure,Supplies & Services,Provisions,J S Catering Butchers,16/01/2024,180.63
"Communities, Customer & Commercial Services",Sport & Leisure,Supplies & Services,Provisions,J S Catering Butchers,16/01/2024,111.53
"Communities, Customer & Commercial Services",Sport & Leisure,Supplies & Services,Provisions,J S Catering Butchers,16/01/2024,155.00
"Communities, Customer & Commercial Services",Sport & Leisure,Supplies & Services,Provisions,J S Catering Butchers,29/01/2024,130.84
"Communities, Customer & Commercial Services",Sport & Leisure,Supplies & Services,Provisions,J S Catering Butchers,29/01/2024,330.92
"Communities, Customer & Commercial Services",Sport & Leisure,Supplies & Services,Provisions,J S Catering Butchers,29/01/2024,246.05
"Communities, Customer & Commercial Services",Sport & Leisure,Supplies & Services,Provisions,J S Catering Butchers,29/01/2024,123.03
"Communities, Customer & Commercial Services",Sport & Leisure,Employees,Agency Supply Costs,On A Roll,24/01/2024,226.45
"Communities, Customer & Commercial Services",Sport & Leisure,Supplies & Services,Provisions,On A Roll,08/01/2024,214.85
"Communities, Customer & Commercial Services",Sport & Leisure,Supplies & Services,Provisions,On A Roll,17/01/2024,232.50
"Communities, Customer & Commercial Services",Sport & Leisure,Supplies & Services,Provisions,ROWLANDS & COMPANY,09/01/2024,131.61
"Communities, Customer & Commercial Services",Sport & Leisure,Supplies & Services,Provisions,ROWLANDS & COMPANY,09/01/2024,192.31
"Communities, Customer & Commercial Services",Sport & Leisure,Supplies & Services,Provisions,ROWLANDS & COMPANY,09/01/2024,228.09
"Communities, Customer & Commercial Services",Sport & Leisure,Supplies & Services,Provisions,ROWLANDS & COMPANY,09/01/2024,305.39
"Communities, Customer & Commercial Services",Sport & Leisure,Supplies & Services,Provisions,ROWLANDS & COMPANY,09/01/2024,147.65
"Communities, Customer & Commercial Services",Sport & Leisure,Supplies & Services,Provisions,ROWLANDS & COMPANY,09/01/2024,112.68
"Communities, Customer & Commercial Services",Sport & Leisure,Supplies & Services,Provisions,ROWLANDS & COMPANY,09/01/2024,124.96
"Communities, Customer & Commercial Services",Sport & Leisure,Supplies & Services,Provisions,ROWLANDS & COMPANY,09/01/2024,157.82
"Communities, Customer & Commercial Services",Sport & Leisure,Supplies & Services,Provisions,ROWLANDS & COMPANY,09/01/2024,366.29
"Communities, Customer & Commercial Services",Sport & Leisure,Supplies & Services,Provisions,ROWLANDS & COMPANY,09/01/2024,275.30
"Communities, Customer & Commercial Services",Sport & Leisure,Supplies & Services,Provisions,ROWLANDS & COMPANY,09/01/2024,145.92
"Communities, Customer & Commercial Services",Sport & Leisure,Supplies & Services,Provisions,ROWLANDS & COMPANY,09/01/2024,195.64
"Communities, Customer & Commercial Services",Sport & Leisure,Supplies & Services,Provisions,ROWLANDS & COMPANY,09/01/2024,164.92
"Communities, Customer & Commercial Services",Sport & Leisure,Supplies & Services,Provisions,ROWLANDS & COMPANY,09/01/2024,188.19
"Communities, Customer & Commercial Services",Sport & Leisure,Supplies & Services,Provisions,ROWLANDS & COMPANY,09/01/2024,100.89
"Communities, Customer & Commercial Services",Sport & Leisure,Supplies & Services,Provisions,ROWLANDS & COMPANY,09/01/2024,133.80
"Communities, Customer & Commercial Services",Sport & Leisure,Supplies & Services,Provisions,ROWLANDS & COMPANY,09/01/2024,180.13
"Communities, Customer & Commercial Services",Sport & Leisure,Supplies & Services,Provisions,ROWLANDS & COMPANY,09/01/2024,118.63
"Communities, Customer & Commercial Services",Sport & Leisure,Supplies & Services,Provisions,ROWLANDS & COMPANY,09/01/2024,204.30
"Communities, Customer & Commercial Services",Sport & Leisure,Supplies & Services,Provisions,ROWLANDS & COMPANY,09/01/2024,126.57
"Communities, Customer & Commercial Services",Sport & Leisure,Supplies & Services,Provisions,ROWLANDS & COMPANY,09/01/2024,248.36
"Communities, Customer & Commercial Services",Sport & Leisure,Supplies & Services,Provisions,ROWLANDS & COMPANY,09/01/2024,169.34
"Communities, Customer & Commercial Services",Sport & Leisure,Supplies & Services,Provisions,ROWLANDS & COMPANY,09/01/2024,316.57
"Communities, Customer & Commercial Services",Sport & Leisure,Supplies & Services,Provisions,ROWLANDS & COMPANY,09/01/2024,163.55
"Communities, Customer & Commercial Services",Sport & Leisure,Supplies & Services,Provisions,ROWLANDS & COMPANY,09/01/2024,254.12
"Communities, Customer & Commercial Services",Sport & Leisure,Supplies & Services,Provisions,ROWLANDS & COMPANY,09/01/2024,209.62
"Communities, Customer & Commercial Services",Sport & Leisure,Supplies & Services,Provisions,ROWLANDS & COMPANY,09/01/2024,201.93
"Communities, Customer & Commercial Services",Sport & Leisure,Supplies & Services,Provisions,ROWLANDS & COMPANY,05/01/2024,147.97
"Communities, Customer & Commercial Services",Sport & Leisure,Supplies & Services,Provisions,ROWLANDS & COMPANY,12/01/2024,135.13
"Communities, Customer & Commercial Services",Sport & Leisure,Supplies & Services,Provisions,ROWLANDS & COMPANY,12/01/2024,142.43
"Communities, Customer & Commercial Services",Sport & Leisure,Supplies & Services,Provisions,ROWLANDS & COMPANY,12/01/2024,110.74
"Communities, Customer & Commercial Services",Sport & Leisure,Supplies & Services,Provisions,ROWLANDS & COMPANY,12/01/2024,213.34
"Communities, Customer & Commercial Services",Sport & Leisure,Supplies & Services,Provisions,ROWLANDS & COMPANY,12/01/2024,221.19
"Communities, Customer & Commercial Services",Sport & Leisure,Supplies & Services,Provisions,ROWLANDS & COMPANY,12/01/2024,130.02
"Communities, Customer & Commercial Services",Sport & Leisure,Supplies & Services,Provisions,ROWLANDS & COMPANY,12/01/2024,193.19
"Communities, Customer & Commercial Services",Sport & Leisure,Supplies & Services,Provisions,ROWLANDS & COMPANY,12/01/2024,133.67
"Communities, Customer & Commercial Services",Sport & Leisure,Supplies & Services,Provisions,ROWLANDS & COMPANY,12/01/2024,117.14
"Communities, Customer & Commercial Services",Sport & Leisure,Supplies & Services,Provisions,ROWLANDS & COMPANY,12/01/2024,212.29
"Communities, Customer & Commercial Services",Sport & Leisure,Supplies & Services,Provisions,ROWLANDS & COMPANY,12/01/2024,105.21
"Communities, Customer & Commercial Services",Sport & Leisure,Supplies & Services,Provisions,ROWLANDS & COMPANY,12/01/2024,172.03
"Communities, Customer & Commercial Services",Sport & Leisure,Supplies & Services,Provisions,ROWLANDS & COMPANY,12/01/2024,106.42
"Communities, Customer & Commercial Services",Sport & Leisure,Supplies & Services,Provisions,ROWLANDS & COMPANY,12/01/2024,245.92
"Communities, Customer & Commercial Services",Sport & Leisure,Supplies & Services,Provisions,ROWLANDS & COMPANY,12/01/2024,152.37
"Communities, Customer & Commercial Services",Sport & Leisure,Supplies & Services,Provisions,ROWLANDS & COMPANY,12/01/2024,218.27
"Communities, Customer & Commercial Services",Sport & Leisure,Supplies & Services,Provisions,ROWLANDS & COMPANY,12/01/2024,106.51
"Communities, Customer & Commercial Services",Sport & Leisure,Supplies & Services,Provisions,ROWLANDS & COMPANY,12/01/2024,157.63
"Communities, Customer & Commercial Services",Sport & Leisure,Supplies & Services,Provisions,ROWLANDS & COMPANY,12/01/2024,105.65
"Communities, Customer & Commercial Services",Sport & Leisure,Supplies & Services,Provisions,ROWLANDS & COMPANY,12/01/2024,112.31
"Communities, Customer & Commercial Services",Sport & Leisure,Supplies & Services,Provisions,ROWLANDS & COMPANY,12/01/2024,132.58
"Communities, Customer & Commercial Services",Sport & Leisure,Supplies & Services,Provisions,ROWLANDS & COMPANY,12/01/2024,134.56
"Communities, Customer & Commercial Services",Sport & Leisure,Supplies & Services,Provisions,ROWLANDS & COMPANY,12/01/2024,111.04
"Communities, Customer & Commercial Services",Sport & Leisure,Supplies & Services,Provisions,ROWLANDS & COMPANY,12/01/2024,261.35
"Communities, Customer & Commercial Services",Sport & Leisure,Supplies & Services,Provisions,ROWLANDS & COMPANY,12/01/2024,144.57
"Communities, Customer & Commercial Services",Sport & Leisure,Supplies & Services,Provisions,ROWLANDS & COMPANY,12/01/2024,158.13
"Communities, Customer & Commercial Services",Sport & Leisure,Supplies & Services,Provisions,ROWLANDS & COMPANY,12/01/2024,121.19
"Communities, Customer & Commercial Services",Sport & Leisure,Supplies & Services,Provisions,ROWLANDS & COMPANY,12/01/2024,133.88
"Communities, Customer & Commercial Services",Sport & Leisure,Supplies & Services,Provisions,ROWLANDS & COMPANY,12/01/2024,116.64
"Communities, Customer & Commercial Services",Sport & Leisure,Supplies & Services,Provisions,ROWLANDS & COMPANY,12/01/2024,104.34
"Communities, Customer & Commercial Services",Sport & Leisure,Supplies & Services,Provisions,ROWLANDS & COMPANY,12/01/2024,177.76
"Communities, Customer & Commercial Services",Sport & Leisure,Supplies & Services,Provisions,ROWLANDS & COMPANY,29/01/2024,143.28
"Communities, Customer & Commercial Services",Sport & Leisure,Supplies & Services,Provisions,ROWLANDS & COMPANY,29/01/2024,114.74
"Communities, Customer & Commercial Services",Sport & Leisure,Supplies & Services,Provisions,ROWLANDS & COMPANY,29/01/2024,155.67
"Communities, Customer & Commercial Services",Sport & Leisure,Supplies & Services,Provisions,ROWLANDS & COMPANY,29/01/2024,132.13
"Communities, Customer & Commercial Services",Sport & Leisure,Supplies & Services,Provisions,ROWLANDS & COMPANY,29/01/2024,155.63
"Communities, Customer & Commercial Services",Sport & Leisure,Supplies & Services,Provisions,ROWLANDS & COMPANY,29/01/2024,113.20
"Communities, Customer & Commercial Services",Sport & Leisure,Supplies & Services,Provisions,ROWLANDS & COMPANY,29/01/2024,113.13
"Communities, Customer & Commercial Services",Sport & Leisure,Supplies & Services,Provisions,ROWLANDS & COMPANY,29/01/2024,141.08
"Communities, Customer & Commercial Services",Sport & Leisure,Supplies & Services,Provisions,ROWLANDS & COMPANY,29/01/2024,169.55
"Communities, Customer & Commercial Services",Sport & Leisure,Supplies & Services,Provisions,ROWLANDS & COMPANY,29/01/2024,113.28
"Communities, Customer & Commercial Services",Sport & Leisure,Supplies & Services,Provisions,ROWLANDS & COMPANY,29/01/2024,188.15
"Communities, Customer & Commercial Services",Sport & Leisure,Supplies & Services,Provisions,ROWLANDS & COMPANY,29/01/2024,120.64
"Communities, Customer & Commercial Services",Sport & Leisure,Supplies & Services,Provisions,ROWLANDS & COMPANY,29/01/2024,111.68
"Communities, Customer & Commercial Services",Sport & Leisure,Supplies & Services,Provisions,ROWLANDS & COMPANY,29/01/2024,132.50
"Communities, Customer & Commercial Services",Sport & Leisure,Supplies & Services,Provisions,ROWLANDS & COMPANY,29/01/2024,163.03
"Communities, Customer & Commercial Services",Sport & Leisure,Supplies & Services,Provisions,ROWLANDS & COMPANY,29/01/2024,235.03
"Communities, Customer & Commercial Services",Sport & Leisure,Supplies & Services,Provisions,ROWLANDS & COMPANY,29/01/2024,104.11
"Communities, Customer & Commercial Services",Sport & Leisure,Supplies & Services,Provisions,ROWLANDS & COMPANY,22/01/2024,100.56
"Communities, Customer & Commercial Services",Sport & Leisure,Supplies & Services,Provisions,ROWLANDS & COMPANY,22/01/2024,159.45
"Communities, Customer & Commercial Services",Sport & Leisure,Supplies & Services,Provisions,ROWLANDS & COMPANY,22/01/2024,148.28
"Communities, Customer & Commercial Services",Sport & Leisure,Supplies & Services,Provisions,ROWLANDS & COMPANY,22/01/2024,165.03
"Communities, Customer & Commercial Services",Sport & Leisure,Supplies & Services,Provisions,ROWLANDS & COMPANY,22/01/2024,110.32
"Communities, Customer & Commercial Services",Sport & Leisure,Supplies & Services,Provisions,ROWLANDS & COMPANY,22/01/2024,123.87
"Communities, Customer & Commercial Services",Sport & Leisure,Supplies & Services,Provisions,ROWLANDS & COMPANY,22/01/2024,103.85
"Communities, Customer & Commercial Services",Sport & Leisure,Supplies & Services,Provisions,ROWLANDS & COMPANY,22/01/2024,228.80
"Communities, Customer & Commercial Services",Sport & Leisure,Supplies & Services,Provisions,ROWLANDS & COMPANY,22/01/2024,169.12
"Communities, Customer & Commercial Services",Sport & Leisure,Supplies & Services,Provisions,ROWLANDS & COMPANY,22/01/2024,130.77
"Communities, Customer & Commercial Services",Sport & Leisure,Supplies & Services,Provisions,ROWLANDS & COMPANY,22/01/2024,242.29
"Communities, Customer & Commercial Services",Sport & Leisure,Supplies & Services,Provisions,ROWLANDS & COMPANY,22/01/2024,102.64
"Communities, Customer & Commercial Services",Sport & Leisure,Supplies & Services,Provisions,ROWLANDS & COMPANY,22/01/2024,314.56
"Communities, Customer & Commercial Services",Sport & Leisure,Supplies & Services,Provisions,ROWLANDS & COMPANY,22/01/2024,136.22
"Communities, Customer & Commercial Services",Sport & Leisure,Supplies & Services,Provisions,ROWLANDS & COMPANY,22/01/2024,109.30
"Communities, Customer & Commercial Services",Sport & Leisure,Supplies & Services,Provisions,ROWLANDS & COMPANY,22/01/2024,115.44
"Communities, Customer & Commercial Services",Sport & Leisure,Supplies & Services,Provisions,ROWLANDS & COMPANY,22/01/2024,114.10
"Communities, Customer & Commercial Services",Sport & Leisure,Supplies & Services,Provisions,ROWLANDS & COMPANY,22/01/2024,103.52
"Communities, Customer & Commercial Services",Sport & Leisure,Supplies & Services,Provisions,ROWLANDS & COMPANY,22/01/2024,114.84
"Communities, Customer & Commercial Services",Sport & Leisure,Supplies & Services,Provisions,ROWLANDS & COMPANY,22/01/2024,217.49
"Communities, Customer & Commercial Services",Sport & Leisure,Supplies & Services,Provisions,ROWLANDS & COMPANY,22/01/2024,149.32
"Communities, Customer & Commercial Services",Sport & Leisure,Supplies & Services,Provisions,ROWLANDS & COMPANY,22/01/2024,153.81
"Communities, Customer & Commercial Services",Sport & Leisure,Supplies & Services,Provisions,ROWLANDS & COMPANY,22/01/2024,113.41
"Communities, Customer & Commercial Services",Sport & Leisure,Supplies & Services,Provisions,ROWLANDS & COMPANY,22/01/2024,103.40
"Communities, Customer & Commercial Services",Sport & Leisure,Supplies & Services,Provisions,ROWLANDS & COMPANY,22/01/2024,185.98
"Communities, Customer & Commercial Services",Sport & Leisure,Supplies & Services,Provisions,ROWLANDS & COMPANY,22/01/2024,151.73
"Communities, Customer & Commercial Services",Sport & Leisure,Supplies & Services,Provisions,ROWLANDS & COMPANY,29/01/2024,231.06
"Communities, Customer & Commercial Services",Sport & Leisure,Supplies & Services,Provisions,ROWLANDS & COMPANY,29/01/2024,104.00
"Communities, Customer & Commercial Services",Sport & Leisure,Supplies & Services,Provisions,ROWLANDS & COMPANY,29/01/2024,141.64
"Communities, Customer & Commercial Services",Sport & Leisure,Supplies & Services,Provisions,ROWLANDS & COMPANY,29/01/2024,103.95
"Communities, Customer & Commercial Services",Sport & Leisure,Supplies & Services,Provisions,ROWLANDS & COMPANY,29/01/2024,109.83
"Communities, Customer & Commercial Services",Sport & Leisure,Supplies & Services,Provisions,ROWLANDS & COMPANY,29/01/2024,261.70
"Communities, Customer & Commercial Services",Sport & Leisure,Supplies & Services,Provisions,ROWLANDS & COMPANY,29/01/2024,122.21
"Communities, Customer & Commercial Services",Sport & Leisure,Supplies & Services,Provisions,ROWLANDS & COMPANY,29/01/2024,159.96
"Communities, Customer & Commercial Services",Sport & Leisure,Employees,Agency Supply Costs,TOTAL CATERING SOLUTONS RECRUITMENT LTD,08/01/2024,342.40
"Communities, Customer & Commercial Services",Sport & Leisure,Employees,Agency Supply Costs,TOTAL CATERING SOLUTONS RECRUITMENT LTD,08/01/2024,342.40
"Communities, Customer & Commercial Services",Sport & Leisure,Employees,Agency Supply Costs,TOTAL CATERING SOLUTONS RECRUITMENT LTD,08/01/2024,342.40
"Communities, Customer & Commercial Services",Sport & Leisure,Employees,Agency Supply Costs,TOTAL CATERING SOLUTONS RECRUITMENT LTD,08/01/2024,273.92
"Communities, Customer & Commercial Services",Sport & Leisure,Employees,Agency Supply Costs,TOTAL CATERING SOLUTONS RECRUITMENT LTD,08/01/2024,273.92
"Communities, Customer & Commercial Services",Sport & Leisure,Employees,Agency Supply Costs,TOTAL CATERING SOLUTONS RECRUITMENT LTD,08/01/2024,339.49
"Communities, Customer & Commercial Services",Sport & Leisure,Employees,Agency Supply Costs,TOTAL CATERING SOLUTONS RECRUITMENT LTD,08/01/2024,273.92
"Communities, Customer & Commercial Services",Sport & Leisure,Employees,Agency Supply Costs,TOTAL CATERING SOLUTONS RECRUITMENT LTD,08/01/2024,273.92
"Communities, Customer & Commercial Services",Sport & Leisure,Employees,Agency Supply Costs,TOTAL CATERING SOLUTONS RECRUITMENT LTD,08/01/2024,273.92
"Communities, Customer & Commercial Services",Sport & Leisure,Employees,Agency Supply Costs,TOTAL CATERING SOLUTONS RECRUITMENT LTD,08/01/2024,342.41
"Communities, Customer & Commercial Services",Sport & Leisure,Employees,Agency Supply Costs,TOTAL CATERING SOLUTONS RECRUITMENT LTD,15/01/2024,219.65
"Communities, Customer & Commercial Services",Sport & Leisure,Employees,Agency Supply Costs,TOTAL CATERING SOLUTONS RECRUITMENT LTD,15/01/2024,342.40
"Communities, Customer & Commercial Services",Sport & Leisure,Employees,Agency Supply Costs,TOTAL CATERING SOLUTONS RECRUITMENT LTD,15/01/2024,342.40
"Communities, Customer & Commercial Services",Sport & Leisure,Employees,Agency Supply Costs,TOTAL CATERING SOLUTONS RECRUITMENT LTD,15/01/2024,273.92
"Communities, Customer & Commercial Services",Sport & Leisure,Employees,Agency Supply Costs,TOTAL CATERING SOLUTONS RECRUITMENT LTD,15/01/2024,136.96
"Communities, Customer & Commercial Services",Sport & Leisure,Employees,Agency Supply Costs,TOTAL CATERING SOLUTONS RECRUITMENT LTD,15/01/2024,119.84
"Communities, Customer & Commercial Services",Sport & Leisure,Employees,Agency Supply Costs,TOTAL CATERING SOLUTONS RECRUITMENT LTD,15/01/2024,368.08
"Communities, Customer & Commercial Services",Sport & Leisure,Employees,Agency Supply Costs,TOTAL CATERING SOLUTONS RECRUITMENT LTD,31/01/2024,342.40
"Communities, Customer & Commercial Services",Sport & Leisure,Employees,Agency Supply Costs,TOTAL CATERING SOLUTONS RECRUITMENT LTD,31/01/2024,299.60
"Communities, Customer & Commercial Services",Sport & Leisure,Employees,Agency Supply Costs,TOTAL CATERING SOLUTONS RECRUITMENT LTD,31/01/2024,271.01
"Communities, Customer & Commercial Services",Sport & Leisure,Employees,Agency Supply Costs,TOTAL CATERING SOLUTONS RECRUITMENT LTD,31/01/2024,342.40
"Communities, Customer & Commercial Services",Sport & Leisure,Employees,Agency Supply Costs,TOTAL CATERING SOLUTONS RECRUITMENT LTD,31/01/2024,342.40
"Communities, Customer & Commercial Services",Sport & Leisure,Employees,Agency Supply Costs,TOTAL CATERING SOLUTONS RECRUITMENT LTD,31/01/2024,342.40
"Communities, Customer & Commercial Services",Sport & Leisure,Supplies & Services,Provisions,BIKOLD,11/01/2024,639.91
"Communities, Customer & Commercial Services",Sport & Leisure,Supplies & Services,Provisions,BIKOLD,11/01/2024,"1,472.32"
"Communities, Customer & Commercial Services",Sport & Leisure,Supplies & Services,Provisions,BIKOLD,11/01/2024,340.40
"Communities, Customer & Commercial Services",Sport & Leisure,Supplies & Services,Provisions,BIKOLD,11/01/2024,"2,260.82"
"Communities, Customer & Commercial Services",Sport & Leisure,Supplies & Services,Provisions,BIKOLD,11/01/2024,156.83
"Communities, Customer & Commercial Services",Sport & Leisure,Supplies & Services,Provisions,BIKOLD,11/01/2024,525.45
"Communities, Customer & Commercial Services",Sport & Leisure,Supplies & Services,Provisions,BIKOLD,11/01/2024,137.51
"Communities, Customer & Commercial Services",Sport & Leisure,Supplies & Services,Provisions,BIKOLD,11/01/2024,193.60
"Communities, Customer & Commercial Services",Sport & Leisure,Supplies & Services,Provisions,BIKOLD,11/01/2024,773.88
"Communities, Customer & Commercial Services",Sport & Leisure,Supplies & Services,Provisions,BIKOLD,11/01/2024,649.36
"Communities, Customer & Commercial Services",Sport & Leisure,Supplies & Services,Provisions,BIKOLD,11/01/2024,228.00
"Communities, Customer & Commercial Services",Sport & Leisure,Supplies & Services,Provisions,BIKOLD,11/01/2024,347.24
"Communities, Customer & Commercial Services",Sport & Leisure,Supplies & Services,Provisions,BIKOLD,11/01/2024,310.17
"Communities, Customer & Commercial Services",Sport & Leisure,Supplies & Services,Provisions,BIKOLD,11/01/2024,452.19
"Communities, Customer & Commercial Services",Sport & Leisure,Supplies & Services,Provisions,BIKOLD,11/01/2024,475.74
"Communities, Customer & Commercial Services",Sport & Leisure,Supplies & Services,Provisions,BIKOLD,11/01/2024,770.46
"Communities, Customer & Commercial Services",Sport & Leisure,Supplies & Services,Provisions,BIKOLD,11/01/2024,165.91
"Communities, Customer & Commercial Services",Sport & Leisure,Supplies & Services,Provisions,BIKOLD,11/01/2024,214.82
"Communities, Customer & Commercial Services",Sport & Leisure,Supplies & Services,Provisions,BIKOLD,11/01/2024,430.98
"Communities, Customer & Commercial Services",Sport & Leisure,Supplies & Services,Provisions,BIKOLD,11/01/2024,271.97
"Communities, Customer & Commercial Services",Sport & Leisure,Supplies & Services,Provisions,BIKOLD,11/01/2024,176.44
"Communities, Customer & Commercial Services",Sport & Leisure,Supplies & Services,Provisions,BIKOLD,11/01/2024,-132.26
"Communities, Customer & Commercial Services",Sport & Leisure,Supplies & Services,Provisions,BIKOLD,11/01/2024,524.99
"Communities, Customer & Commercial Services",Sport & Leisure,Supplies & Services,Provisions,BIKOLD,18/01/2024,350.71
"Communities, Customer & Commercial Services",Sport & Leisure,Supplies & Services,Provisions,BIKOLD,18/01/2024,265.01
"Communities, Customer & Commercial Services",Sport & Leisure,Supplies & Services,Provisions,BIKOLD,18/01/2024,530.89
"Communities, Customer & Commercial Services",Sport & Leisure,Supplies & Services,Provisions,BIKOLD,18/01/2024,374.80
"Communities, Customer & Commercial Services",Sport & Leisure,Supplies & Services,Provisions,BIKOLD,18/01/2024,237.64
"Communities, Customer & Commercial Services",Sport & Leisure,Supplies & Services,Provisions,BIKOLD,18/01/2024,176.34
"Communities, Customer & Commercial Services",Sport & Leisure,Supplies & Services,Provisions,BIKOLD,18/01/2024,182.41
"Communities, Customer & Commercial Services",Sport & Leisure,Supplies & Services,Provisions,BIKOLD,18/01/2024,165.57
"Communities, Customer & Commercial Services",Sport & Leisure,Supplies & Services,Provisions,BIKOLD,18/01/2024,342.13
"Communities, Customer & Commercial Services",Sport & Leisure,Supplies & Services,Provisions,BIKOLD,18/01/2024,120.91
"Communities, Customer & Commercial Services",Sport & Leisure,Supplies & Services,Provisions,BIKOLD,18/01/2024,123.84
"Communities, Customer & Commercial Services",Sport & Leisure,Supplies & Services,Provisions,BIKOLD,18/01/2024,327.63
"Communities, Customer & Commercial Services",Sport & Leisure,Supplies & Services,Provisions,BIKOLD,18/01/2024,359.02
"Communities, Customer & Commercial Services",Sport & Leisure,Supplies & Services,Provisions,BIKOLD,18/01/2024,455.99
"Communities, Customer & Commercial Services",Sport & Leisure,Supplies & Services,Provisions,BIKOLD,18/01/2024,"1,047.58"
"Communities, Customer & Commercial Services",Sport & Leisure,Supplies & Services,Provisions,BIKOLD,18/01/2024,803.91
"Communities, Customer & Commercial Services",Sport & Leisure,Supplies & Services,Provisions,BIKOLD,18/01/2024,215.82
"Communities, Customer & Commercial Services",Sport & Leisure,Supplies & Services,Provisions,BIKOLD,18/01/2024,567.73
"Communities, Customer & Commercial Services",Sport & Leisure,Supplies & Services,Provisions,BIKOLD,18/01/2024,748.46
"Communities, Customer & Commercial Services",Sport & Leisure,Supplies & Services,Provisions,BIKOLD,18/01/2024,"1,036.48"
"Communities, Customer & Commercial Services",Sport & Leisure,Supplies & Services,Provisions,BIKOLD,25/01/2024,896.68
"Communities, Customer & Commercial Services",Sport & Leisure,Supplies & Services,Provisions,BIKOLD,25/01/2024,122.81
"Communities, Customer & Commercial Services",Sport & Leisure,Supplies & Services,Provisions,BIKOLD,25/01/2024,537.33
"Communities, Customer & Commercial Services",Sport & Leisure,Supplies & Services,Provisions,BIKOLD,25/01/2024,"1,298.34"
"Communities, Customer & Commercial Services",Sport & Leisure,Supplies & Services,Provisions,BIKOLD,25/01/2024,152.70
"Communities, Customer & Commercial Services",Sport & Leisure,Supplies & Services,Provisions,BIKOLD,25/01/2024,271.21
"Communities, Customer & Commercial Services",Sport & Leisure,Supplies & Services,Provisions,BIKOLD,25/01/2024,252.11
"Communities, Customer & Commercial Services",Sport & Leisure,Supplies & Services,Provisions,BIKOLD,25/01/2024,351.69
"Communities, Customer & Commercial Services",Sport & Leisure,Supplies & Services,Provisions,BIKOLD,25/01/2024,539.18
"Communities, Customer & Commercial Services",Sport & Leisure,Supplies & Services,Provisions,BIKOLD,25/01/2024,580.41
"Communities, Customer & Commercial Services",Sport & Leisure,Supplies & Services,Provisions,BIKOLD,25/01/2024,189.59
"Communities, Customer & Commercial Services",Sport & Leisure,Supplies & Services,Provisions,BIKOLD,25/01/2024,104.49
"Communities, Customer & Commercial Services",Sport & Leisure,Supplies & Services,Provisions,BIKOLD,25/01/2024,110.04
"Communities, Customer & Commercial Services",Sport & Leisure,Supplies & Services,Provisions,BIKOLD,25/01/2024,237.79
"Communities, Customer & Commercial Services",Sport & Leisure,Supplies & Services,Provisions,BIKOLD,25/01/2024,572.63
"Communities, Customer & Commercial Services",Sport & Leisure,Supplies & Services,Provisions,BIKOLD,25/01/2024,415.14
"Communities, Customer & Commercial Services",Sport & Leisure,Supplies & Services,Provisions,BIKOLD,25/01/2024,144.67
"Communities, Customer & Commercial Services",Sport & Leisure,Supplies & Services,Provisions,BIKOLD,25/01/2024,439.46
"Communities, Customer & Commercial Services",Sport & Leisure,Supplies & Services,Provisions,BIKOLD,25/01/2024,146.85
"Communities, Customer & Commercial Services",Sport & Leisure,Supplies & Services,Provisions,BIKOLD,25/01/2024,177.69
"Communities, Customer & Commercial Services",Sport & Leisure,Supplies & Services,Provisions,BIKOLD,25/01/2024,615.76
"Communities, Customer & Commercial Services",Sport & Leisure,Supplies & Services,Provisions,BIKOLD,25/01/2024,389.58
"Communities, Customer & Commercial Services",Sport & Leisure,Supplies & Services,Provisions,BIKOLD,25/01/2024,"1,426.80"
"Communities, Customer & Commercial Services",Sport & Leisure,Premises-Related Expenditure,Clean Mats & Toilet Requisites,Border Janitorial Supplies Limited,15/01/2024,137.57
"Communities, Customer & Commercial Services",Sport & Leisure,Supplies & Services,Provisions,Delice de France,17/01/2024,198.00
"Communities, Customer & Commercial Services",Sport & Leisure,Supplies & Services,Provisions,Delice de France,15/01/2024,485.84
"Communities, Customer & Commercial Services",Sport & Leisure,Supplies & Services,Provisions,Delice de France,15/01/2024,-485.84
"Communities, Customer & Commercial Services",Sport & Leisure,Supplies & Services,Provisions,Delice de France,15/01/2024,495.56
"Communities, Customer & Commercial Services",Sport & Leisure,Supplies & Services,Provisions,Delice de France,19/01/2024,237.06
"Communities, Customer & Commercial Services",Sport & Leisure,Supplies & Services,Provisions,J S Catering Butchers,29/01/2024,143.10
"Communities, Customer & Commercial Services",Sport & Leisure,Supplies & Services,Provisions,J S Catering Butchers,29/01/2024,157.20
"Communities, Customer & Commercial Services",Sport & Leisure,Employees,Agency Supply Costs,On A Roll,24/01/2024,125.16
"Communities, Customer & Commercial Services",Sport & Leisure,Employees,Agency Supply Costs,On A Roll,24/01/2024,187.33
"Communities, Customer & Commercial Services",Sport & Leisure,Supplies & Services,Provisions,On A Roll,08/01/2024,154.44
"Communities, Customer & Commercial Services",Sport & Leisure,Supplies & Services,Provisions,On A Roll,08/01/2024,187.33
"Communities, Customer & Commercial Services",Sport & Leisure,Supplies & Services,Provisions,On A Roll,17/01/2024,125.16
"Communities, Customer & Commercial Services",Sport & Leisure,Supplies & Services,Provisions,On A Roll,17/01/2024,187.33
"Communities, Customer & Commercial Services",Sport & Leisure,Supplies & Services,Provisions,On A Roll,31/01/2024,118.51
"Communities, Customer & Commercial Services",Sport & Leisure,Supplies & Services,Provisions,On A Roll,31/01/2024,227.38
"Communities, Customer & Commercial Services",Sport & Leisure,Supplies & Services,Provisions,On A Roll,31/01/2024,226.95
"Communities, Customer & Commercial Services",Sport & Leisure,Supplies & Services,Provisions,PASTA KING (UK) LIMITED,08/01/2024,450.72
"Communities, Customer & Commercial Services",Sport & Leisure,Supplies & Services,Provisions,PASTA KING (UK) LIMITED,08/01/2024,450.72
"Communities, Customer & Commercial Services",Sport & Leisure,Supplies & Services,Provisions,PASTA KING (UK) LIMITED,08/01/2024,338.04
"Communities, Customer & Commercial Services",Sport & Leisure,Supplies & Services,Provisions,PASTA KING (UK) LIMITED,17/01/2024,187.80
"Communities, Customer & Commercial Services",Sport & Leisure,Supplies & Services,Provisions,PASTA KING (UK) LIMITED,15/01/2024,174.96
"Communities, Customer & Commercial Services",Sport & Leisure,Supplies & Services,Provisions,PASTA KING (UK) LIMITED,24/01/2024,375.60
"Communities, Customer & Commercial Services",Sport & Leisure,Supplies & Services,Provisions,PASTA KING (UK) LIMITED,24/01/2024,413.16
"Communities, Customer & Commercial Services",Sport & Leisure,Supplies & Services,Provisions,PASTA KING (UK) LIMITED,24/01/2024,450.72
"Communities, Customer & Commercial Services",Sport & Leisure,Supplies & Services,Provisions,ROWLANDS & COMPANY,09/01/2024,199.68
"Communities, Customer & Commercial Services",Sport & Leisure,Supplies & Services,Provisions,ROWLANDS & COMPANY,05/01/2024,223.63
"Communities, Customer & Commercial Services",Sport & Leisure,Supplies & Services,Provisions,ROWLANDS & COMPANY,12/01/2024,130.71
"Communities, Customer & Commercial Services",Sport & Leisure,Supplies & Services,Provisions,ROWLANDS & COMPANY,12/01/2024,264.68
"Communities, Customer & Commercial Services",Sport & Leisure,Supplies & Services,Provisions,ROWLANDS & COMPANY,22/01/2024,351.16
"Communities, Customer & Commercial Services",Sport & Leisure,Supplies & Services,Provisions,ROWLANDS & COMPANY,29/01/2024,213.92
"Communities, Customer & Commercial Services",Sport & Leisure,Supplies & Services,Provisions,THEOS FOOD SERVICE LTD,08/01/2024,525.90
"Communities, Customer & Commercial Services",Sport & Leisure,Supplies & Services,Provisions,THEOS FOOD SERVICE LTD,15/01/2024,177.95
"Communities, Customer & Commercial Services",Sport & Leisure,Supplies & Services,Provisions,THEOS FOOD SERVICE LTD,15/01/2024,"1,118.91"
"Communities, Customer & Commercial Services",Sport & Leisure,Supplies & Services,Provisions,THEOS FOOD SERVICE LTD,15/01/2024,396.33
"Communities, Customer & Commercial Services",Sport & Leisure,Supplies & Services,Provisions,TROPICAL ICE,31/01/2024,344.50
"Communities, Customer & Commercial Services",Sport & Leisure,Supplies & Services,Provisions,TROPICAL ICE,31/01/2024,316.00
"Communities, Customer & Commercial Services",Sport & Leisure,Supplies & Services,Crockery/Hardware/Light Equip,Vegware,19/01/2024,165.94
"Communities, Customer & Commercial Services",Sport & Leisure,Employees,Training Expenses,WENLOCK HEALTH & SAFETY LTD,02/01/2024,346.00
"Communities, Customer & Commercial Services",Sport & Leisure,Premises-Related Expenditure,Clean Mats & Toilet Requisites,Border Janitorial Supplies Limited,02/01/2024,113.32
"Communities, Customer & Commercial Services",Sport & Leisure,Premises-Related Expenditure,Clean Mats & Toilet Requisites,Border Janitorial Supplies Limited,02/01/2024,288.58
"Communities, Customer & Commercial Services",Sport & Leisure,Premises-Related Expenditure,Clean Mats & Toilet Requisites,Border Janitorial Supplies Limited,02/01/2024,225.90
"Communities, Customer & Commercial Services",Sport & Leisure,Premises-Related Expenditure,Clean Mats & Toilet Requisites,Border Janitorial Supplies Limited,02/01/2024,244.44
"Communities, Customer & Commercial Services",Sport & Leisure,Premises-Related Expenditure,Clean Mats & Toilet Requisites,Border Janitorial Supplies Limited,02/01/2024,133.78
"Communities, Customer & Commercial Services",Sport & Leisure,Premises-Related Expenditure,Clean Mats & Toilet Requisites,Border Janitorial Supplies Limited,02/01/2024,262.17
"Communities, Customer & Commercial Services",Sport & Leisure,Premises-Related Expenditure,Clean Mats & Toilet Requisites,Border Janitorial Supplies Limited,02/01/2024,209.30
"Communities, Customer & Commercial Services",Sport & Leisure,Premises-Related Expenditure,Clean Mats & Toilet Requisites,Border Janitorial Supplies Limited,02/01/2024,105.85
"Communities, Customer & Commercial Services",Sport & Leisure,Premises-Related Expenditure,Clean Mats & Toilet Requisites,Border Janitorial Supplies Limited,02/01/2024,245.14
"Communities, Customer & Commercial Services",Sport & Leisure,Premises-Related Expenditure,Clean Mats & Toilet Requisites,Border Janitorial Supplies Limited,02/01/2024,144.37
"Communities, Customer & Commercial Services",Sport & Leisure,Premises-Related Expenditure,Clean Mats & Toilet Requisites,Border Janitorial Supplies Limited,02/01/2024,219.72
"Communities, Customer & Commercial Services",Sport & Leisure,Premises-Related Expenditure,Clean Mats & Toilet Requisites,Border Janitorial Supplies Limited,02/01/2024,132.62
"Communities, Customer & Commercial Services",Sport & Leisure,Premises-Related Expenditure,Clean Mats & Toilet Requisites,Border Janitorial Supplies Limited,02/01/2024,262.17
"Communities, Customer & Commercial Services",Sport & Leisure,Premises-Related Expenditure,Clean Mats & Toilet Requisites,Border Janitorial Supplies Limited,02/01/2024,644.35
"Communities, Customer & Commercial Services",Sport & Leisure,Premises-Related Expenditure,Clean Mats & Toilet Requisites,Border Janitorial Supplies Limited,02/01/2024,319.47
"Communities, Customer & Commercial Services",Sport & Leisure,Premises-Related Expenditure,Clean Mats & Toilet Requisites,Border Janitorial Supplies Limited,02/01/2024,178.93
"Communities, Customer & Commercial Services",Sport & Leisure,Premises-Related Expenditure,Clean Mats & Toilet Requisites,Border Janitorial Supplies Limited,02/01/2024,426.54
"Communities, Customer & Commercial Services",Sport & Leisure,Premises-Related Expenditure,Clean Mats & Toilet Requisites,Border Janitorial Supplies Limited,05/01/2024,233.64
"Communities, Customer & Commercial Services",Sport & Leisure,Premises-Related Expenditure,Clean Mats & Toilet Requisites,Border Janitorial Supplies Limited,18/01/2024,174.96
"Communities, Customer & Commercial Services",Sport & Leisure,Premises-Related Expenditure,Clean Mats & Toilet Requisites,Border Janitorial Supplies Limited,18/01/2024,335.42
"Communities, Customer & Commercial Services",Sport & Leisure,Premises-Related Expenditure,Clean Mats & Toilet Requisites,Border Janitorial Supplies Limited,15/01/2024,433.44
"Communities, Customer & Commercial Services",Sport & Leisure,Premises-Related Expenditure,Clean Mats & Toilet Requisites,Border Janitorial Supplies Limited,15/01/2024,267.58
"Communities, Customer & Commercial Services",Sport & Leisure,Premises-Related Expenditure,Clean Mats & Toilet Requisites,Border Janitorial Supplies Limited,15/01/2024,155.91
"Communities, Customer & Commercial Services",Sport & Leisure,Premises-Related Expenditure,Clean Mats & Toilet Requisites,Border Janitorial Supplies Limited,23/01/2024,190.60
"Communities, Customer & Commercial Services",Sport & Leisure,Premises-Related Expenditure,Clean Mats & Toilet Requisites,Border Janitorial Supplies Limited,23/01/2024,102.65
"Communities, Customer & Commercial Services",Sport & Leisure,Premises-Related Expenditure,Clean Mats & Toilet Requisites,Border Janitorial Supplies Limited,23/01/2024,116.28
"Communities, Customer & Commercial Services",Sport & Leisure,Premises-Related Expenditure,Clean Mats & Toilet Requisites,Border Janitorial Supplies Limited,23/01/2024,136.81
"Communities, Customer & Commercial Services",Sport & Leisure,Premises-Related Expenditure,Clean Mats & Toilet Requisites,Border Janitorial Supplies Limited,23/01/2024,136.81
"Communities, Customer & Commercial Services",Sport & Leisure,Premises-Related Expenditure,Clean Mats & Toilet Requisites,Border Janitorial Supplies Limited,23/01/2024,136.81
"Communities, Customer & Commercial Services",Sport & Leisure,Premises-Related Expenditure,Clean Mats & Toilet Requisites,Border Janitorial Supplies Limited,02/01/2024,114.48
"Communities, Customer & Commercial Services",Sport & Leisure,Premises-Related Expenditure,Clean Mats & Toilet Requisites,Border Janitorial Supplies Limited,18/01/2024,153.34
"Communities, Customer & Commercial Services",Sport & Leisure,Premises-Related Expenditure,Clean Mats & Toilet Requisites,Border Janitorial Supplies Limited,18/01/2024,352.85
"Communities, Customer & Commercial Services",Sport & Leisure,Premises-Related Expenditure,Clean Mats & Toilet Requisites,Border Janitorial Supplies Limited,18/01/2024,217.95
"Communities, Customer & Commercial Services",Sport & Leisure,Premises-Related Expenditure,Clean Mats & Toilet Requisites,Border Janitorial Supplies Limited,15/01/2024,254.38
"Communities, Customer & Commercial Services",Sport & Leisure,Premises-Related Expenditure,Clean Mats & Toilet Requisites,Border Janitorial Supplies Limited,15/01/2024,164.93
"Communities, Customer & Commercial Services",Sport & Leisure,Premises-Related Expenditure,Clean Mats & Toilet Requisites,Border Janitorial Supplies Limited,15/01/2024,123.84
"Communities, Customer & Commercial Services",Sport & Leisure,Premises-Related Expenditure,Clean Mats & Toilet Requisites,Border Janitorial Supplies Limited,15/01/2024,434.36
"Communities, Customer & Commercial Services",Sport & Leisure,Premises-Related Expenditure,Clean Mats & Toilet Requisites,Border Janitorial Supplies Limited,15/01/2024,163.43
"Communities, Customer & Commercial Services",Sport & Leisure,Premises-Related Expenditure,Clean Mats & Toilet Requisites,Border Janitorial Supplies Limited,15/01/2024,122.26
"Communities, Customer & Commercial Services",Sport & Leisure,Premises-Related Expenditure,Clean Mats & Toilet Requisites,Border Janitorial Supplies Limited,15/01/2024,215.34
"Communities, Customer & Commercial Services",Sport & Leisure,Premises-Related Expenditure,Clean Mats & Toilet Requisites,Border Janitorial Supplies Limited,15/01/2024,251.03
"Communities, Customer & Commercial Services",Sport & Leisure,Premises-Related Expenditure,Clean Mats & Toilet Requisites,Border Janitorial Supplies Limited,15/01/2024,423.88
"Communities, Customer & Commercial Services",Sport & Leisure,Premises-Related Expenditure,Clean Mats & Toilet Requisites,Border Janitorial Supplies Limited,15/01/2024,132.69
"Communities, Customer & Commercial Services",Sport & Leisure,Premises-Related Expenditure,Clean Mats & Toilet Requisites,Border Janitorial Supplies Limited,23/01/2024,136.74
"Communities, Customer & Commercial Services",Sport & Leisure,Premises-Related Expenditure,Clean Mats & Toilet Requisites,Border Janitorial Supplies Limited,23/01/2024,145.31
"Communities, Customer & Commercial Services",Sport & Leisure,Premises-Related Expenditure,Clean Mats & Toilet Requisites,Border Janitorial Supplies Limited,23/01/2024,255.52
"Communities, Customer & Commercial Services",Sport & Leisure,Supplies & Services,Protective Clothing,MYWORKWEAR,23/01/2024,102.32
"Communities, Customer & Commercial Services",Sport & Leisure,Premises-Related Expenditure,Clean Mats & Toilet Requisites,Border Janitorial Supplies Limited,02/01/2024,"1,151.64"
"Communities, Customer & Commercial Services",Sport & Leisure,Premises-Related Expenditure,Clean Mats & Toilet Requisites,Border Janitorial Supplies Limited,23/01/2024,105.68
"Communities, Customer & Commercial Services",Sport & Leisure,Supplies & Services,Provisions,BIKOLD,18/01/2024,115.21
"Communities, Customer & Commercial Services",Sport & Leisure,Supplies & Services,Provisions,BIKOLD,18/01/2024,163.01
"Communities, Customer & Commercial Services",Sport & Leisure,Supplies & Services,Provisions,BIKOLD,25/01/2024,101.89
"Communities, Customer & Commercial Services",Sport & Leisure,Premises-Related Expenditure,R&M -Building Other,COOL SERVICES LTD,31/01/2024,"1,235.89"
"Communities, Customer & Commercial Services",Sport & Leisure,Supplies & Services,Sub Contractors,BUSINESS WATCH GUARDING LIMITED,11/01/2024,574.06
"Communities, Customer & Commercial Services",Sport & Leisure,Supplies & Services,Sub Contractors,GRANVILLE CONSTRUCTION & MAINTENANCE LTD,17/01/2024,"1,800.00"
"Communities, Customer & Commercial Services",Sport & Leisure,Supplies & Services,Sub Contractors,GRANVILLE CONSTRUCTION & MAINTENANCE LTD,17/01/2024,"1,582.00"
"Communities, Customer & Commercial Services",Sport & Leisure,Supplies & Services,Other Materials,Medway Galvanising Company Ltd,24/01/2024,225.00
"Communities, Customer & Commercial Services",Sport & Leisure,Supplies & Services,Other Materials,Medway Galvanising Company Ltd,24/01/2024,225.00
"Communities, Customer & Commercial Services",Sport & Leisure,Supplies & Services,Sub Contractors,MSM Hire Ltd,11/01/2024,316.89
"Communities, Customer & Commercial Services",Sport & Leisure,Supplies & Services,Sub Contractors,MSM Hire Ltd,23/01/2024,"2,822.08"
"Communities, Customer & Commercial Services",Sport & Leisure,Supplies & Services,Sub Contractors,MSM Hire Ltd,23/01/2024,"4,197.22"
"Communities, Customer & Commercial Services",Sport & Leisure,Supplies & Services,Sub Contractors,MSM Hire Ltd,23/01/2024,"1,032.50"
"Communities, Customer & Commercial Services",Sport & Leisure,Premises-Related Expenditure,Electricity,West Mercia Energy (WME),12/01/2024,739.85
"Communities, Customer & Commercial Services",Sport & Leisure,Premises-Related Expenditure,Electricity,West Mercia Energy (WME),19/01/2024,785.39
"Communities, Customer & Commercial Services",Sport & Leisure,Supplies & Services,Items For Resale,Splash About International Limited,22/01/2024,409.80
"Communities, Customer & Commercial Services",Sport & Leisure,Supplies & Services,Items For Resale,SWIM ENGLAND TRADING LIMITED ,19/01/2024,399.51
"Communities, Customer & Commercial Services",Sport & Leisure,Supplies & Services,Registration / Licence Fees,UK Active,17/01/2024,115.00
"Communities, Customer & Commercial Services",Sport & Leisure,Supplies & Services,Equipment - Purchase,CCS MEDIA LIMITED,05/01/2024,"1,344.00"
"Communities, Customer & Commercial Services",Sport & Leisure,Premises-Related Expenditure,Hire Of Rooms,PARK LANE CENTRE,31/01/2024,110.00
"Communities, Customer & Commercial Services",Sport & Leisure,Premises-Related Expenditure,Hire Of Rooms,PARK LANE CENTRE,31/01/2024,110.00
"Communities, Customer & Commercial Services",Sport & Leisure,Supplies & Services,Registration / Licence Fees,UK Active,17/01/2024,115.00
"Communities, Customer & Commercial Services",Sport & Leisure,Supplies & Services,Protective Clothing,CORPORATE TOGS LTD,19/01/2024,335.07
"Communities, Customer & Commercial Services",Sport & Leisure,Supplies & Services,Protective Clothing,CORPORATE TOGS LTD,19/01/2024,335.07
"Communities, Customer & Commercial Services",Sport & Leisure,Supplies & Services,Chemicals/Cleaning Products,Border Janitorial Supplies Limited,25/01/2024,162.47
"Communities, Customer & Commercial Services",Sport & Leisure,Supplies & Services,Protective Clothing,CORPORATE TOGS LTD,03/01/2024,333.00
"Communities, Customer & Commercial Services",Sport & Leisure,Supplies & Services,Licences,Les Mills Fitness UK Ltd,10/01/2024,682.50
"Communities, Customer & Commercial Services",Sport & Leisure,Supplies & Services,Registration / Licence Fees,UK Active,17/01/2024,115.00
"Communities, Customer & Commercial Services",Sport & Leisure,Supplies & Services,Equipment - Purchase,M H Ltd,16/01/2024,561.67
"Communities, Customer & Commercial Services",Sport & Leisure,Supplies & Services,Equipment - Purchase,We Do Tennis CIC,30/01/2024,499.00
"Communities, Customer & Commercial Services",Sport & Leisure,Supplies & Services,Advertising,CAN Digital Solutions Ltd T/A Council Advertising Network,08/01/2024,"3,000.00"
"Communities, Customer & Commercial Services",Sport & Leisure,Supplies & Services,Registration / Licence Fees,Gladstone MRM Ltd,22/01/2024,-800.00
"Communities, Customer & Commercial Services",Sport & Leisure,Supplies & Services,Equipment - Purchase,CONTINENTAL SPORTS PRODUCTS CO,15/01/2024,484.00
"Communities, Customer & Commercial Services",Sport & Leisure,Supplies & Services,Equipment - Purchase,CONTINENTAL SPORTS PRODUCTS CO,26/01/2024,183.00
"Communities, Customer & Commercial Services",Sport & Leisure,Supplies & Services,Protective Clothing,CORPORATE TOGS LTD,25/01/2024,455.90
"Communities, Customer & Commercial Services",Sport & Leisure,Supplies & Services,Registration / Licence Fees,UK Active,17/01/2024,115.00
"Communities, Customer & Commercial Services",Sport & Leisure,Supplies & Services,Equipment - Purchase,NOBRIDGE LTD,08/01/2024,600.00
"Communities, Customer & Commercial Services",Sport & Leisure,Supplies & Services,Registration / Licence Fees,UK Active,17/01/2024,115.00
"Communities, Customer & Commercial Services",Sport & Leisure,Transport-Related Expenditure,Servicing & Repairs V&P,Charlies AG & Turf,10/01/2024,186.12
"Communities, Customer & Commercial Services",Sport & Leisure,Transport-Related Expenditure,Servicing & Repairs V&P,Charlies AG & Turf,10/01/2024,907.25
"Communities, Customer & Commercial Services",Sport & Leisure,Supplies & Services,Provisions,BIKOLD,04/01/2024,129.46
"Communities, Customer & Commercial Services",Sport & Leisure,Supplies & Services,Provisions,BIKOLD,04/01/2024,422.72
"Communities, Customer & Commercial Services",Sport & Leisure,Supplies & Services,Provisions,BIKOLD,04/01/2024,513.00
"Communities, Customer & Commercial Services",Sport & Leisure,Supplies & Services,Provisions,BIKOLD,04/01/2024,264.50
"Communities, Customer & Commercial Services",Sport & Leisure,Supplies & Services,Provisions,BIKOLD,04/01/2024,932.75
"Communities, Customer & Commercial Services",Sport & Leisure,Supplies & Services,Provisions,BIKOLD,04/01/2024,213.90
"Communities, Customer & Commercial Services",Sport & Leisure,Supplies & Services,Provisions,BIKOLD,04/01/2024,377.19
"Communities, Customer & Commercial Services",Sport & Leisure,Supplies & Services,Provisions,BIKOLD,04/01/2024,875.74
"Communities, Customer & Commercial Services",Sport & Leisure,Supplies & Services,Provisions,BIKOLD,11/01/2024,159.05
"Communities, Customer & Commercial Services",Sport & Leisure,Supplies & Services,Provisions,BIKOLD,11/01/2024,149.58
"Communities, Customer & Commercial Services",Sport & Leisure,Supplies & Services,Provisions,BIKOLD,11/01/2024,221.39
"Communities, Customer & Commercial Services",Sport & Leisure,Supplies & Services,Provisions,BIKOLD,11/01/2024,303.08
"Communities, Customer & Commercial Services",Sport & Leisure,Supplies & Services,Provisions,BIKOLD,11/01/2024,248.85
"Communities, Customer & Commercial Services",Sport & Leisure,Supplies & Services,Provisions,BIKOLD,11/01/2024,302.33
"Communities, Customer & Commercial Services",Sport & Leisure,Supplies & Services,Provisions,BIKOLD,18/01/2024,161.40
"Communities, Customer & Commercial Services",Sport & Leisure,Supplies & Services,Provisions,BIKOLD,18/01/2024,383.33
"Communities, Customer & Commercial Services",Sport & Leisure,Supplies & Services,Provisions,BIKOLD,18/01/2024,443.30
"Communities, Customer & Commercial Services",Sport & Leisure,Supplies & Services,Provisions,BIKOLD,18/01/2024,677.37
"Communities, Customer & Commercial Services",Sport & Leisure,Supplies & Services,Provisions,BIKOLD,18/01/2024,459.81
"Communities, Customer & Commercial Services",Sport & Leisure,Supplies & Services,Provisions,BIKOLD,25/01/2024,219.71
"Communities, Customer & Commercial Services",Sport & Leisure,Supplies & Services,Provisions,BIKOLD,25/01/2024,134.13
"Communities, Customer & Commercial Services",Sport & Leisure,Supplies & Services,Provisions,BIKOLD,25/01/2024,380.15
"Communities, Customer & Commercial Services",Sport & Leisure,Supplies & Services,Provisions,BIKOLD,25/01/2024,376.17
"Communities, Customer & Commercial Services",Sport & Leisure,Supplies & Services,Provisions,Delice de France,31/01/2024,542.73
"Communities, Customer & Commercial Services",Sport & Leisure,Supplies & Services,Provisions,Delice de France,19/01/2024,654.12
"Communities, Customer & Commercial Services",Sport & Leisure,Supplies & Services,Provisions,Handmade Speciality Products Ltd,16/01/2024,423.26
"Communities, Customer & Commercial Services",Sport & Leisure,Supplies & Services,Provisions,TROPICAL ICE,31/01/2024,590.00
"Communities, Customer & Commercial Services",Sport & Leisure,Supplies & Services,Provisions,TROPICAL ICE,31/01/2024,"1,072.50"
"Communities, Customer & Commercial Services",Sport & Leisure,Supplies & Services,Provisions,TROPICAL ICE,31/01/2024,559.50
"Communities, Customer & Commercial Services",Sport & Leisure,Supplies & Services,Payment Of Income Collected,Telford Tigers Limited,03/01/2024,"8,911.68"
"Communities, Customer & Commercial Services",Sport & Leisure,Supplies & Services,Payment Of Income Collected,Telford Tigers Limited,15/01/2024,"5,466.24"
"Communities, Customer & Commercial Services",Sport & Leisure,Supplies & Services,Payment Of Income Collected,Telford Tigers Limited,11/01/2024,"7,489.92"
"Communities, Customer & Commercial Services",Sport & Leisure,Supplies & Services,Payment Of Income Collected,Telford Tigers Limited,23/01/2024,"5,621.76"
"Communities, Customer & Commercial Services",Sport & Leisure,Supplies & Services,Payment Of Income Collected,Telford Tigers Limited,29/01/2024,"7,051.66"
"Communities, Customer & Commercial Services",Sport & Leisure,Premises-Related Expenditure,R&M Fixed Plant Other,HOOD AIRPORT & ICE LTD,19/01/2024,"4,182.00"
"Communities, Customer & Commercial Services",Sport & Leisure,Supplies & Services,Equipment - Purchase,ICTn Limited,24/01/2024,324.40
"Communities, Customer & Commercial Services",Sport & Leisure,Supplies & Services,Equipment - Purchase,MARSHALLS INTERNATIONAL LTD,18/01/2024,166.00
"Communities, Customer & Commercial Services",Sport & Leisure,Supplies & Services,Equipment - Purchase,MARSHALLS INTERNATIONAL LTD,17/01/2024,"3,450.00"
"Communities, Customer & Commercial Services",Sport & Leisure,Supplies & Services,Carriage/Delivery Charge,MARSHALLS INTERNATIONAL LTD,17/01/2024,250.00
"Communities, Customer & Commercial Services",Sport & Leisure,Supplies & Services,Equipment - Purchase,PODS,18/01/2024,900.00
"Communities, Customer & Commercial Services",Sport & Leisure,Third Party Payments,Contribution To Other La�s,PS PROMOTIONS LTD,08/01/2024,480.00
"Communities, Customer & Commercial Services",Sport & Leisure,Supplies & Services,Equipment - Hire,SLIDERS SKATE SHOP,31/01/2024,300.00
"Communities, Customer & Commercial Services",Sport & Leisure,Supplies & Services,Equipment - Hire,SLIDERS SKATE SHOP,31/01/2024,300.00
"Communities, Customer & Commercial Services",Sport & Leisure,Supplies & Services,Licences,UK Active,17/01/2024,115.00
"Communities, Customer & Commercial Services",Sport & Leisure,Supplies & Services,Equipment - Purchase,RLSS UK Enterprises Ltd,05/01/2024,708.00
"Communities, Customer & Commercial Services",Sport & Leisure,Supplies & Services,Equipment - Purchase,RLSS UK Enterprises Ltd,05/01/2024,150.50
"Communities, Customer & Commercial Services",Sport & Leisure,Supplies & Services,Equipment - Purchase,RLSS UK Enterprises Ltd,18/01/2024,168.00
"Communities, Customer & Commercial Services",Sport & Leisure,Supplies & Services,Equipment - Purchase,RLSS UK Enterprises Ltd,18/01/2024,192.00
"Communities, Customer & Commercial Services",Sport & Leisure,Supplies & Services,Equipment - Purchase,RLSS UK Enterprises Ltd,23/01/2024,250.00
"Communities, Customer & Commercial Services",Sport & Leisure,Supplies & Services,Chemicals/Cleaning Products,BRENNTAG UK LIMITED,22/01/2024,645.00
"Communities, Customer & Commercial Services",Sport & Leisure,Supplies & Services,Carriage/Delivery Charge,BRENNTAG UK LIMITED,22/01/2024,103.00
"Communities, Customer & Commercial Services",Sport & Leisure,Employees,Staff Training,INSTITUTE OF SWIMMING ,09/01/2024,319.00
"Communities, Customer & Commercial Services",Sport & Leisure,Supplies & Services,Items For Resale,Splash About International Limited,22/01/2024,451.24
"Communities, Customer & Commercial Services",Sport & Leisure,Supplies & Services,Licences,Les Mills Fitness UK Ltd,09/01/2024,"1,097.25"
"Communities, Customer & Commercial Services",Sport & Leisure,Supplies & Services,Registration / Licence Fees,UK Active,16/01/2024,875.00
"Communities, Customer & Commercial Services",Sport & Leisure,Supplies & Services,Licences,UK Active,16/01/2024,525.00
"Communities, Customer & Commercial Services",Sport & Leisure,Supplies & Services,Licences,UK Active,16/01/2024,"1,560.00"
"Communities, Customer & Commercial Services",Sport & Leisure,Supplies & Services,Licences,UK Active,17/01/2024,115.00
"Communities, Customer & Commercial Services",Sport & Leisure,Employees,Staff Training,INSTITUTE OF SWIMMING ,11/01/2024,425.00
"Communities, Customer & Commercial Services",Sport & Leisure,Supplies & Services,Chemicals/Cleaning Products,BRENNTAG UK LIMITED,08/01/2024,"1,032.00"
"Communities, Customer & Commercial Services",Sport & Leisure,Supplies & Services,Chemicals/Cleaning Products,BRENNTAG UK LIMITED,08/01/2024,251.40
"Communities, Customer & Commercial Services",Sport & Leisure,Supplies & Services,Protective Clothing,CORPORATE TOGS LTD,11/01/2024,"2,915.35"
"Communities, Customer & Commercial Services",Sport & Leisure,Supplies & Services,Equipment - Purchase,J P LENNARD LTD,23/01/2024,237.16
"Communities, Customer & Commercial Services",Sport & Leisure,Supplies & Services,Chemicals/Cleaning Products,JAK WATER SYSTEMS LTD,11/01/2024,198.40
"Communities, Customer & Commercial Services",Sport & Leisure,Supplies & Services,Items For Resale,RLSS UK Enterprises Ltd,04/01/2024,105.00
"Communities, Customer & Commercial Services",Sport & Leisure,Supplies & Services,Equipment - Purchase,RLSS UK Enterprises Ltd,22/01/2024,130.50
"Communities, Customer & Commercial Services",Sport & Leisure,Supplies & Services,Items For Resale,Splash About International Limited,11/01/2024,482.30
"Communities, Customer & Commercial Services",Sport & Leisure,Supplies & Services,Stationery,THE TILL ROLL CO LTD,10/01/2024,122.95
"Communities, Customer & Commercial Services",Sport & Leisure,Supplies & Services,Fees,Austin Mix Ltd,10/01/2024,"1,124.00"
"Communities, Customer & Commercial Services",Sport & Leisure,Capital Expenditure,Fixtures & Fittings & Equipment,Head UK Limited,16/01/2024,"8,523.39"
Corporate Communications,Communications & Marketing,Supplies & Services,Graphic Design Charges,The Curious Agency T/A The Curiuous Way,03/01/2024,325.00
Corporate Items,Corporate Codes,Capital Financing Costs,Unitary Charge,PYRAMID SCHOOLS (HADLEY) LTD,12/01/2024,"1,031,046.45"
Corporate Items,Corporate Codes,Employees,Agency Supply Costs,Matrix SCM,03/01/2024,"33,916.35"
Corporate Items,Corporate Codes,Employees,Agency Supply Costs,Matrix SCM,04/01/2024,"19,949.57"
Corporate Items,Corporate Codes,Employees,Agency Supply Costs,Matrix SCM,12/01/2024,"5,103.77"
Corporate Items,Corporate Codes,Employees,Agency Supply Costs,Matrix SCM,18/01/2024,"2,130.85"
Corporate Items,Corporate Codes,Employees,Agency Supply Costs,Opus People Solutions Limited,12/01/2024,"20,853.45"
Corporate Items,Corporate Codes,Employees,Agency Supply Costs,Opus People Solutions Limited,17/01/2024,"34,058.15"
Corporate Items,Corporate Codes,Employees,Agency Supply Costs,Opus People Solutions Limited,17/01/2024,"6,697.06"
Corporate Items,Corporate Codes,Employees,Agency Supply Costs,Opus People Solutions Limited,25/01/2024,"33,794.57"
Corporate Items,Corporate Codes,Employees,Agency Supply Costs,Opus People Solutions Limited,31/01/2024,"45,479.83"
Education & Skills,Consultancy & Advisory Services,Premises-Related Expenditure,Hire Of Rooms,MEETING POINT TRUST LTD,20/01/2024,225.00
Education & Skills,Consultancy & Advisory Services,Premises-Related Expenditure,Hire Of Rooms,MEETING POINT TRUST LTD,11/01/2024,110.00
Education & Skills,Consultancy & Advisory Services,Supplies & Services,Other Grants (Expenses),Genius Tuition,11/01/2024,"7,916.25"
Education & Skills,Education & Skills,Capital Expenditure,Payments to Contractor,Inspectas Compliance Ltd,29/01/2024,360.00
Education & Skills,Education & Skills,Capital Expenditure,Payments to Contractor,Inspectas Compliance Ltd,29/01/2024,420.00
Education & Skills,Education & Skills,Capital Expenditure,Payments to Contractor,Inspectas Compliance Ltd,29/01/2024,420.00
Education & Skills,Education & Skills,Capital Expenditure,Payments to Contractor,Inspectas Compliance Ltd,29/01/2024,360.00
Education & Skills,Education & Skills,Capital Expenditure,Payments to Contractor,Inspectas Compliance Ltd,29/01/2024,360.00
Education & Skills,Education & Skills,Capital Expenditure,Payments to Contractor,R G STONES (BUILDINGS) LTD,17/01/2024,450.00
Education & Skills,Education & Skills,Capital Expenditure,Payments to Contractor,WELLINGTON INSULATION CO. LTD,04/01/2024,586.00
Education & Skills,Education & Skills,Capital Expenditure,Payments to Contractor,GRANVILLE CONSTRUCTION & MAINTENANCE LTD,04/01/2024,293.60
Education & Skills,Education & Skills,Capital Expenditure,Payments to Contractor,TAYLORS MECHANICAL H & P SERVICES LTD,04/01/2024,148.00
Education & Skills,Education & Skills,Capital Expenditure,Payments to Contractor,WARD HADAWAY SOLICITORS,17/01/2024,471.20
Education & Skills,Education & Skills,Capital Expenditure,Payments to Contractor,WARD HADAWAY SOLICITORS,30/01/2024,-471.20
Education & Skills,Education & Skills,Capital Expenditure,Payments to Contractor,BATTLEFIELD LAND SURVEYS LTD,09/01/2024,"1,800.00"
Education & Skills,Education & Skills,Capital Expenditure,Payments to Contractor,Badnell Heating Services Ltd,24/01/2024,"9,000.00"
Education & Skills,Education & Skills,Capital Expenditure,Legal Fees,Gowling WLG,09/01/2024,"1,250.00"
Education & Skills,Education & Skills,Capital Expenditure,Legal Fees,Gowling WLG,09/01/2024,"1,250.00"
Education & Skills,Education & Skills,Capital Expenditure,Payments to Contractor,WINDOW & DOOR CONTRACT SERVICES,25/01/2024,"23,464.96"
Education & Skills,Education & Skills,Capital Expenditure,Payments to Contractor,ASLES (TOOL HIRE & SALES) LTD,30/01/2024,"5,830.00"
Education & Skills,Education & Skills,Capital Expenditure,Payments to Contractor,Robell Maintenance Services Ltd,29/01/2024,"22,919.57"
Education & Skills,Education & Skills,Capital Expenditure,Payments to Contractor,TDR Heating & Ventilation Engineers,18/01/2024,"24,406.36"
Education & Skills,Pupil Support Services,Third Party Payments,Misc. Education Payments to T&W Schools (incl Academies),CAT - Telford Priory School,03/01/2024,840.80
Education & Skills,Pupil Support Services,Third Party Payments,DSG - High Needs Block,Telford Park School,08/01/2024,"23,217.00"
Education & Skills,Pupil Support Services,Supplies & Services,Equipment - Purchase,NORMANS MUSICAL INSTRUMENTS,16/01/2024,542.50
Education & Skills,Pupil Support Services,Supplies & Services,Equipment - Purchase,NORMANS MUSICAL INSTRUMENTS,04/01/2024,"1,382.50"
Education & Skills,Pupil Support Services,Supplies & Services,Equipment - Purchase,Mission Printwear Ltd,16/01/2024,238.75
Education & Skills,Pupil Support Services,Supplies & Services,Artistes Fees,Redated Personal Information ,23/01/2024,"2,000.00"
Education & Skills,Pupil Support Services,Supplies & Services,Artistes Fees,Redated Personal Information ,23/01/2024,"2,290.41"
Education & Skills,SEND (0-25),Transport-Related Expenditure,Taxi Costs,24X7 Ltd,16/01/2024,"2,144.64"
Education & Skills,SEND (0-25),Transport-Related Expenditure,Taxi Costs,More Than Care Telford,18/01/2024,720.00
Education & Skills,SEND (0-25),Transport-Related Expenditure,Taxi Costs,Telford Taxi Hire Limited,16/01/2024,990.00
Education & Skills,SEND (0-25),Premises-Related Expenditure,Hire Of Rooms,Mercure Telford Centre Hotel,16/01/2024,149.35
Education & Skills,SEND (0-25),Premises-Related Expenditure,Hire Of Rooms,Mercure Telford Centre Hotel,16/01/2024,124.46
Education & Skills,SEND (0-25),Third Party Payments,DSG - High Needs Block,ABC Day Nursery (LIGHTMOOR),16/01/2024,229.51
Education & Skills,SEND (0-25),Third Party Payments,DSG - High Needs Block,Busy Bees Day Nursery Telford,16/01/2024,229.51
Education & Skills,SEND (0-25),Third Party Payments,DSG - High Needs Block,EARLYWORLD LIMITED,16/01/2024,229.51
Education & Skills,SEND (0-25),Third Party Payments,DSG - High Needs Block,PLAY-DAYS CORPORATION LTD,16/01/2024,497.27
Education & Skills,SEND (0-25),Third Party Payments,DSG - High Needs Block,TRENCH TOTS NEIGHBOURHOOD NURSERY LTD,16/01/2024,459.02
Education & Skills,SEND (0-25),Third Party Payments,DSG - High Needs Block,TRENCH TOTS NEIGHBOURHOOD NURSERY LTD,16/01/2024,229.51
Education & Skills,SEND (0-25),Supplies & Services,Other Services,EDEN BROWN LTD,16/01/2024,"2,200.00"
Education & Skills,SEND (0-25),Supplies & Services,Other Services,EDEN BROWN LTD,16/01/2024,"2,200.00"
Education & Skills,SEND (0-25),Supplies & Services,Other Services,LINQ Healthcare Recruitment  Specialists Ltd,16/01/2024,"2,550.00"
Education & Skills,SEND (0-25),Supplies & Services,Other Services,NonStop Consulting Ltd,09/01/2024,"1,150.00"
Education & Skills,SEND (0-25),Third Party Payments,Health Funded Services,SHROPSHIRE COMMUNITY HEALTH NHS TRUST,08/01/2024,"5,012.25"
Education & Skills,SEND (0-25),Third Party Payments,DSG - High Needs Block,Speakaboo,08/01/2024,250.00
Education & Skills,SEND (0-25),Third Party Payments,DSG - High Needs Block,Speakaboo,16/01/2024,200.00
Education & Skills,SEND (0-25),Third Party Payments,DSG - High Needs Block,Crudgington Primary School,17/01/2024,610.69
Education & Skills,SEND (0-25),Third Party Payments,DSG - High Needs Block,Dawley C of E Primary Academy,17/01/2024,610.69
Education & Skills,SEND (0-25),Third Party Payments,DSG - High Needs Block,Grange Park Primary School - Community Academies Trust,17/01/2024,"4,013.07"
Education & Skills,SEND (0-25),Third Party Payments,DSG - High Needs Block,Lawley Village Academy,17/01/2024,610.69
Education & Skills,SEND (0-25),Third Party Payments,DSG - High Needs Block,PRIORSLEE ACADEMY,17/01/2024,"2,617.22"
Education & Skills,SEND (0-25),Third Party Payments,DSG - High Needs Block,Redhill Primary Academy,17/01/2024,"3,140.67"
Education & Skills,SEND (0-25),Third Party Payments,DSG - High Needs Block,St Peter�s Bratton C of E Academy,17/01/2024,"1,832.06"
Education & Skills,SEND (0-25),Third Party Payments,DSG - High Needs Block,Windmill Primary School Academy,17/01/2024,"2,966.18"
Education & Skills,SEND (0-25),Third Party Payments,DSG - High Needs Block,Wrekin View Primary School,17/01/2024,"3,925.83"
Education & Skills,SEND (0-25),Third Party Payments,DSG - High Needs Block,ABRAHAM DARBY ACADEMY ,17/01/2024,"6,455.82"
Education & Skills,SEND (0-25),Third Party Payments,DSG - High Needs Block,CAT - Telford Priory School,17/01/2024,"6,892.02"
Education & Skills,SEND (0-25),Third Party Payments,DSG - High Needs Block,Charlton Academy,17/01/2024,"4,623.76"
Education & Skills,SEND (0-25),Third Party Payments,DSG - High Needs Block,Ercall Wood Academy,17/01/2024,"9,160.28"
Education & Skills,SEND (0-25),Third Party Payments,DSG - High Needs Block,Hadley Learning Community Academy,17/01/2024,"1,483.09"
Education & Skills,SEND (0-25),Third Party Payments,DSG - High Needs Block,Hadley Learning Community Academy,17/01/2024,"18,931.24"
Education & Skills,SEND (0-25),Third Party Payments,DSG - High Needs Block,MADELEY ACADEMY TRUST LTD,17/01/2024,"4,711.00"
Education & Skills,SEND (0-25),Third Party Payments,DSG - High Needs Block,NEWPORT GIRLS HIGH SCHOOL ACADEMY TRUST,17/01/2024,610.69
Education & Skills,SEND (0-25),Third Party Payments,DSG - High Needs Block,Telford Park School,17/01/2024,"9,596.49"
Education & Skills,SEND (0-25),Third Party Payments,DSG - High Needs Block,The Telford Langley School ,17/01/2024,"6,892.02"
Education & Skills,SEND (0-25),Third Party Payments,DSG - High Needs Block,Queensway HLC,08/01/2024,"44,701.96"
Education & Skills,SEND (0-25),Third Party Payments,DSG - High Needs Block,Queensway HLC,08/01/2024,"50,236.15"
Education & Skills,SEND (0-25),Third Party Payments,DSG - High Needs Block,Queensway HLC,08/01/2024,"26,936.97"
Education & Skills,SEND (0-25),Third Party Payments,DSG - High Needs Block,Queensway HLC,08/01/2024,"44,745.92"
Education & Skills,SEND (0-25),Third Party Payments,DSG - High Needs Block,Kickstart Academy,15/01/2024,"6,461.00"
Education & Skills,SEND (0-25),Third Party Payments,DSG - High Needs Block,Kickstart Academy,15/01/2024,"105,690.00"
Education & Skills,SEND (0-25),Third Party Payments,DSG - High Needs Block,Acorn Care & Education Ltd,16/01/2024,"35,715.83"
Education & Skills,SEND (0-25),Third Party Payments,DSG - High Needs Block,Acorn Care & Education Ltd,16/01/2024,"24,913.33"
Education & Skills,SEND (0-25),Third Party Payments,DSG - High Needs Block,Acorn Care & Education Ltd,16/01/2024,"24,578.67"
Education & Skills,SEND (0-25),Third Party Payments,DSG - High Needs Block,Acorn Education & Care Ltd,16/01/2024,"20,075.00"
Education & Skills,SEND (0-25),Third Party Payments,DSG - High Needs Block,Aspris Telford School,16/01/2024,"-25,478.66"
Education & Skills,SEND (0-25),Third Party Payments,DSG - High Needs Block,Bredon School Ltd,16/01/2024,"15,750.00"
Education & Skills,SEND (0-25),Third Party Payments,DSG - High Needs Block,Brightstar Futures Ltd,26/01/2024,"1,900.00"
Education & Skills,SEND (0-25),Third Party Payments,DSG - High Needs Block,HORIZON CARE & EDUCATION GROUP LTD,26/01/2024,"4,997.90"
Education & Skills,SEND (0-25),Third Party Payments,DSG - High Needs Block,Keys PCE Limited,08/01/2024,"2,720.00"
Education & Skills,SEND (0-25),Third Party Payments,DSG - High Needs Block,Keys PCE Limited,16/01/2024,"14,750.00"
Education & Skills,SEND (0-25),Third Party Payments,DSG - High Needs Block,Keys PCE Limited,16/01/2024,"21,250.00"
Education & Skills,SEND (0-25),Third Party Payments,DSG - High Needs Block,Keys PCE Limited,16/01/2024,"14,750.00"
Education & Skills,SEND (0-25),Third Party Payments,DSG - High Needs Block,Keys PCE Limited,08/01/2024,"3,740.00"
Education & Skills,SEND (0-25),Third Party Payments,DSG - High Needs Block,M T Support Ltd,26/01/2024,"2,353.41"
Education & Skills,SEND (0-25),Third Party Payments,DSG - High Needs Block,Monarch Education,16/01/2024,420.00
Education & Skills,SEND (0-25),Third Party Payments,DSG - High Needs Block,Monarch Education,08/01/2024,420.00
Education & Skills,SEND (0-25),Third Party Payments,DSG - High Needs Block,Monarch Education,26/01/2024,420.00
Education & Skills,SEND (0-25),Third Party Payments,DSG - High Needs Block,Prestfelde School Ltd,26/01/2024,"2,786.26"
Education & Skills,SEND (0-25),Third Party Payments,DSG - High Needs Block,SHROPSHIRE COUNCIL ,08/01/2024,"17,111.20"
Education & Skills,SEND (0-25),Third Party Payments,DSG - High Needs Block,St David�s College,08/01/2024,"16,602.05"
Education & Skills,SEND (0-25),Third Party Payments,DSG - High Needs Block,St Mary�s School T/A Westbury School,16/01/2024,187.32
Education & Skills,SEND (0-25),Third Party Payments,DSG - High Needs Block,St Mary�s School T/A Westbury School,17/01/2024,-187.32
Education & Skills,SEND (0-25),Third Party Payments,DSG - High Needs Block,St Mary�s School T/A Westbury School,26/01/2024,"18,732.00"
Education & Skills,SEND (0-25),Third Party Payments,DSG - High Needs Block,The Girls� Day School Trust,08/01/2024,"5,248.75"
Education & Skills,SEND (0-25),Third Party Payments,DSG - High Needs Block,Young Foundations Ltd,26/01/2024,"5,685.77"
Education & Skills,SEND (0-25),Third Party Payments,DSG - High Needs Block,BIRMINGHAM CITY COUNCIL,16/01/2024,"17,913.18"
Education & Skills,SEND (0-25),Third Party Payments,DSG - High Needs Block,BIRMINGHAM CITY COUNCIL,16/01/2024,"-4,841.40"
Education & Skills,SEND (0-25),Third Party Payments,DSG - High Needs Block,Pine Green Academy,08/01/2024,"8,551.00"
Education & Skills,SEND (0-25),Third Party Payments,DSG - High Needs Block,ABC DAY NURSERY LTD ,16/01/2024,"1,425.96"
Education & Skills,SEND (0-25),Third Party Payments,DSG - High Needs Block,Busy Bees Day Nursery Telford,16/01/2024,"1,310.35"
Education & Skills,SEND (0-25),Third Party Payments,DSG - High Needs Block,LITTLE CHICKS PRE-SCHOOL LTD,16/01/2024,"2,001.20"
Education & Skills,SEND (0-25),Third Party Payments,DSG - High Needs Block,LITTLE DRAGONS PRE-SCHOOL,16/01/2024,"1,347.46"
Education & Skills,SEND (0-25),Supplies & Services,Equipment - Purchase,CONNEVANS LIMITED,23/01/2024,147.02
Education & Skills,SEND (0-25),Employees,Agency Supply Costs,Guide Dogs for the Blind,16/01/2024,"1,487.25"
Education & Skills,SEND (0-25),Supplies & Services,Equipment - Purchase,OTICON LIMITED,05/01/2024,249.00
Education & Skills,SEND (0-25),Supplies & Services,Equipment - Purchase,PHONAK UK LTD,05/01/2024,437.34
Education & Skills,SEND (0-25),Supplies & Services,Equipment - Purchase,PHONAK UK LTD,16/01/2024,588.71
Education & Skills,SEND (0-25),Supplies & Services,Equipment - Purchase,SOUNDBYTE SOLUTIONS (UK) LTD,10/01/2024,110.00
Education & Skills,SEND (0-25),Supplies & Services,Other Services,Kids Ltd,26/01/2024,"2,893.00"
Education & Skills,SEND (0-25),Supplies & Services,Translation Services,Premium Linguistic Services,23/01/2024,150.00
Education & Skills,SEND (0-25),Supplies & Services,Other Services,Together Trust,26/01/2024,153.02
Education & Skills,SEND (0-25),Third Party Payments,DSG - High Needs Block,ABRAHAM DARBY ACADEMY ,16/01/2024,"17,189.58"
Education & Skills,SEND (0-25),Third Party Payments,DSG - High Needs Block,Allscott Meads Primary School & Nursery,16/01/2024,"2,158.21"
Education & Skills,SEND (0-25),Third Party Payments,DSG - High Needs Block,Charlton Academy,16/01/2024,"8,450.15"
Education & Skills,SEND (0-25),Third Party Payments,DSG - High Needs Block,Dawley C of E Primary Academy,16/01/2024,"5,995.03"
Education & Skills,SEND (0-25),Third Party Payments,DSG - High Needs Block,Ercall Wood Academy,16/01/2024,"7,940.10"
Education & Skills,SEND (0-25),Third Party Payments,DSG - High Needs Block,Haberdashers Adams,16/01/2024,"1,610.10"
Education & Skills,SEND (0-25),Third Party Payments,DSG - High Needs Block,Hadley Learning Community Academy,16/01/2024,"9,076.31"
Education & Skills,SEND (0-25),Third Party Payments,DSG - High Needs Block,Hadley Learning Community Academy,16/01/2024,"2,271.93"
Education & Skills,SEND (0-25),Third Party Payments,DSG - High Needs Block,Lantern Academy,16/01/2024,"4,636.17"
Education & Skills,SEND (0-25),Third Party Payments,DSG - High Needs Block,Lawley Village Academy,16/01/2024,"3,151.68"
Education & Skills,SEND (0-25),Third Party Payments,DSG - High Needs Block,PRIORSLEE ACADEMY,16/01/2024,"20,370.97"
Education & Skills,SEND (0-25),Third Party Payments,DSG - High Needs Block,Redhill Primary Academy,16/01/2024,"2,018.33"
Education & Skills,SEND (0-25),Third Party Payments,DSG - High Needs Block,Telford Park School,16/01/2024,"10,021.00"
Education & Skills,SEND (0-25),Third Party Payments,DSG - High Needs Block,The Telford Langley School ,16/01/2024,"10,440.64"
Education & Skills,SEND (0-25),Third Party Payments,DSG - High Needs Block,THOMAS TELFORD SCHOOL ,16/01/2024,"4,274.80"
Education & Skills,SEND (0-25),Third Party Payments,DSG - High Needs Block,Windmill Primary School Academy,16/01/2024,"12,469.69"
Education & Skills,SEND (0-25),Third Party Payments,DSG - High Needs Block,Windmill Primary School Academy,16/01/2024,"2,286.68"
Education & Skills,SEND (0-25),Third Party Payments,DSG - High Needs Block,Wrekin View Primary School,16/01/2024,790.78
Education & Skills,SEND (0-25),Third Party Payments,DSG - High Needs Block,Chalkline Education & Support Ltd,08/01/2024,337.50
Education & Skills,SEND (0-25),Third Party Payments,DSG - High Needs Block,Chalkline Education & Support Ltd,08/01/2024,720.00
Education & Skills,SEND (0-25),Third Party Payments,DSG - High Needs Block,Chalkline Education & Support Ltd,08/01/2024,720.00
Education & Skills,SEND (0-25),Third Party Payments,DSG - High Needs Block,Chalkline Education & Support Ltd,08/01/2024,300.00
Education & Skills,SEND (0-25),Third Party Payments,DSG - High Needs Block,Chalkline Education & Support Ltd,16/01/2024,500.00
Education & Skills,SEND (0-25),Third Party Payments,DSG - High Needs Block,Chalkline Education & Support Ltd,16/01/2024,450.00
Education & Skills,SEND (0-25),Third Party Payments,DSG - High Needs Block,Chalkline Education & Support Ltd,16/01/2024,720.00
Education & Skills,SEND (0-25),Third Party Payments,DSG - High Needs Block,Chalkline Education & Support Ltd,08/01/2024,500.00
Education & Skills,SEND (0-25),Third Party Payments,DSG - High Needs Block,Chalkline Education & Support Ltd,08/01/2024,720.00
Education & Skills,SEND (0-25),Third Party Payments,DSG - High Needs Block,Chalkline Education & Support Ltd,08/01/2024,500.00
Education & Skills,SEND (0-25),Third Party Payments,DSG - High Needs Block,Chalkline Education & Support Ltd,08/01/2024,300.00
Education & Skills,SEND (0-25),Third Party Payments,DSG - High Needs Block,Chalkline Education & Support Ltd,08/01/2024,500.00
Education & Skills,SEND (0-25),Third Party Payments,DSG - High Needs Block,Chalkline Education & Support Ltd,26/01/2024,312.50
Education & Skills,SEND (0-25),Third Party Payments,DSG - High Needs Block,Chalkline Education & Support Ltd,26/01/2024,720.00
Education & Skills,SEND (0-25),Third Party Payments,DSG - High Needs Block,Chalkline Education & Support Ltd,26/01/2024,500.00
Education & Skills,SEND (0-25),Third Party Payments,DSG - High Needs Block,ESWB Tutoring and Support Ltd,08/01/2024,780.00
Education & Skills,SEND (0-25),Third Party Payments,DSG - High Needs Block,ESWB Tutoring and Support Ltd,08/01/2024,"1,248.00"
Education & Skills,SEND (0-25),Third Party Payments,DSG - High Needs Block,ESWB Tutoring and Support Ltd,08/01/2024,780.00
Education & Skills,SEND (0-25),Third Party Payments,DSG - High Needs Block,ESWB Tutoring and Support Ltd,08/01/2024,780.00
Education & Skills,SEND (0-25),Third Party Payments,DSG - High Needs Block,ESWB Tutoring and Support Ltd,08/01/2024,780.00
Education & Skills,SEND (0-25),Third Party Payments,DSG - High Needs Block,ESWB Tutoring and Support Ltd,08/01/2024,780.00
Education & Skills,SEND (0-25),Third Party Payments,DSG - High Needs Block,ESWB Tutoring and Support Ltd,16/01/2024,114.00
Education & Skills,SEND (0-25),Third Party Payments,DSG - High Needs Block,ESWB Tutoring and Support Ltd,16/01/2024,285.00
Education & Skills,SEND (0-25),Third Party Payments,DSG - High Needs Block,ESWB Tutoring and Support Ltd,16/01/2024,"1,470.00"
Education & Skills,SEND (0-25),Third Party Payments,DSG - High Needs Block,ESWB Tutoring and Support Ltd,16/01/2024,780.00
Education & Skills,SEND (0-25),Third Party Payments,DSG - High Needs Block,ESWB Tutoring and Support Ltd,16/01/2024,624.00
Education & Skills,SEND (0-25),Third Party Payments,DSG - High Needs Block,ESWB Tutoring and Support Ltd,16/01/2024,780.00
Education & Skills,SEND (0-25),Third Party Payments,DSG - High Needs Block,ESWB Tutoring and Support Ltd,16/01/2024,456.00
Education & Skills,SEND (0-25),Third Party Payments,DSG - High Needs Block,ESWB Tutoring and Support Ltd,16/01/2024,513.00
Education & Skills,SEND (0-25),Third Party Payments,DSG - High Needs Block,ESWB Tutoring and Support Ltd,16/01/2024,"1,470.00"
Education & Skills,SEND (0-25),Third Party Payments,DSG - High Needs Block,ESWB Tutoring and Support Ltd,16/01/2024,342.00
Education & Skills,SEND (0-25),Third Party Payments,DSG - High Needs Block,ESWB Tutoring and Support Ltd,08/01/2024,780.00
Education & Skills,SEND (0-25),Third Party Payments,DSG - High Needs Block,ESWB Tutoring and Support Ltd,08/01/2024,780.00
Education & Skills,SEND (0-25),Third Party Payments,DSG - High Needs Block,ESWB Tutoring and Support Ltd,08/01/2024,285.00
Education & Skills,SEND (0-25),Third Party Payments,DSG - High Needs Block,ESWB Tutoring and Support Ltd,08/01/2024,780.00
Education & Skills,SEND (0-25),Third Party Payments,DSG - High Needs Block,ESWB Tutoring and Support Ltd,08/01/2024,285.00
Education & Skills,SEND (0-25),Third Party Payments,DSG - High Needs Block,ESWB Tutoring and Support Ltd,08/01/2024,456.00
Education & Skills,SEND (0-25),Third Party Payments,DSG - High Needs Block,ESWB Tutoring and Support Ltd,08/01/2024,456.00
Education & Skills,SEND (0-25),Third Party Payments,DSG - High Needs Block,ESWB Tutoring and Support Ltd,26/01/2024,399.00
Education & Skills,SEND (0-25),Third Party Payments,DSG - High Needs Block,ESWB Tutoring and Support Ltd,26/01/2024,285.00
Education & Skills,SEND (0-25),Third Party Payments,DSG - High Needs Block,ESWB Tutoring and Support Ltd,26/01/2024,171.00
Education & Skills,SEND (0-25),Third Party Payments,DSG - High Needs Block,ESWB Tutoring and Support Ltd,26/01/2024,"1,425.00"
Education & Skills,SEND (0-25),Third Party Payments,DSG - High Needs Block,ESWB Tutoring and Support Ltd,26/01/2024,285.00
Education & Skills,SEND (0-25),Supplies & Services,Health & Safety Expenses,Activate for Kids Ltd,18/01/2024,"4,343.04"
Education & Skills,SEND (0-25),Supplies & Services,Health & Safety Expenses,Etac Limited,16/01/2024,"2,688.00"
Education & Skills,SEND (0-25),Supplies & Services,Health & Safety Expenses,G & S SMIRTHWAITE LTD,18/01/2024,679.00
Education & Skills,SEND (0-25),Supplies & Services,Aids & Appliances,Humanware,16/01/2024,"2,540.00"
Education & Skills,SEND (0-25),Supplies & Services,Health & Safety Expenses,Jiraffe,05/01/2024,"2,223.00"
Education & Skills,SEND (0-25),Third Party Payments,DSG - High Needs Block,ABRAHAM DARBY ACADEMY ,16/01/2024,"2,282.88"
Education & Skills,SEND (0-25),Third Party Payments,DSG - High Needs Block,ABRAHAM DARBY ACADEMY ,17/01/2024,204.22
Education & Skills,SEND (0-25),Third Party Payments,DSG - High Needs Block,Charlton Academy,16/01/2024,"5,001.34"
Education & Skills,SEND (0-25),Third Party Payments,DSG - High Needs Block,Grange Park Primary School - Community Academies Trust,17/01/2024,141.04
Education & Skills,SEND (0-25),Third Party Payments,DSG - High Needs Block,Hadley Learning Community Academy,16/01/2024,316.88
Education & Skills,SEND (0-25),Third Party Payments,DSG - High Needs Block,Lawley Village Academy,16/01/2024,534.09
Education & Skills,SEND (0-25),Third Party Payments,DSG - High Needs Block,Lawley Village Academy,17/01/2024,120.65
Education & Skills,SEND (0-25),Third Party Payments,DSG - High Needs Block,MADELEY ACADEMY TRUST LTD,16/01/2024,"2,226.73"
Education & Skills,SEND (0-25),Third Party Payments,DSG - High Needs Block,PRIORSLEE ACADEMY,16/01/2024,"2,347.58"
Education & Skills,SEND (0-25),Third Party Payments,DSG - High Needs Block,PRIORSLEE ACADEMY,17/01/2024,272.29
Education & Skills,SEND (0-25),Third Party Payments,DSG - High Needs Block,St Peter�s Bratton C of E Academy,16/01/2024,376.83
Education & Skills,SEND (0-25),Third Party Payments,DSG - High Needs Block,The Telford Langley School ,16/01/2024,610.69
Education & Skills,SEND (0-25),Third Party Payments,DSG - High Needs Block,Windmill Primary School Academy,17/01/2024,176.18
Education & Skills,SEND (0-25),Third Party Payments,DSG - High Needs Block,Acorn Care & Education Ltd,16/01/2024,"33,522.95"
Education & Skills,SEND (0-25),Third Party Payments,DSG - High Needs Block,Aspris Telford School,26/01/2024,"2,844.90"
Education & Skills,SEND (0-25),Third Party Payments,DSG - High Needs Block,CROSSBAR COACHING,16/01/2024,"7,800.00"
Education & Skills,SEND (0-25),Third Party Payments,DSG - High Needs Block,CROSSBAR COACHING,16/01/2024,"7,800.00"
Education & Skills,SEND (0-25),Third Party Payments,DSG - High Needs Block,CROSSBAR COACHING,16/01/2024,"6,825.00"
Education & Skills,SEND (0-25),Third Party Payments,DSG - High Needs Block,CROSSBAR COACHING,16/01/2024,"6,825.00"
Education & Skills,SEND (0-25),Third Party Payments,DSG - High Needs Block,CROSSBAR COACHING,16/01/2024,"6,825.00"
Education & Skills,SEND (0-25),Third Party Payments,DSG - High Needs Block,CROSSBAR COACHING,16/01/2024,"8,775.00"
Education & Skills,SEND (0-25),Third Party Payments,DSG - High Needs Block,CROSSBAR COACHING,16/01/2024,"7,800.00"
Education & Skills,SEND (0-25),Third Party Payments,DSG - High Needs Block,CROSSBAR COACHING,16/01/2024,"6,825.00"
Education & Skills,SEND (0-25),Third Party Payments,DSG - High Needs Block,CROSSBAR COACHING,16/01/2024,"6,825.00"
Education & Skills,SEND (0-25),Third Party Payments,DSG - High Needs Block,CROSSBAR COACHING,26/01/2024,"6,825.00"
Education & Skills,SEND (0-25),Third Party Payments,DSG - High Needs Block,CROSSBAR COACHING,26/01/2024,"6,825.00"
Education & Skills,SEND (0-25),Third Party Payments,DSG - High Needs Block,CROSSBAR COACHING,26/01/2024,"6,825.00"
Education & Skills,SEND (0-25),Third Party Payments,DSG - High Needs Block,CROSSBAR COACHING,26/01/2024,"6,825.00"
Education & Skills,SEND (0-25),Third Party Payments,DSG - High Needs Block,CROSSBAR COACHING,26/01/2024,"6,825.00"
Education & Skills,SEND (0-25),Third Party Payments,DSG - High Needs Block,CROSSBAR COACHING,26/01/2024,"7,800.00"
Education & Skills,SEND (0-25),Third Party Payments,DSG - High Needs Block,CROSSBAR COACHING,26/01/2024,"3,675.00"
Education & Skills,SEND (0-25),Third Party Payments,DSG - High Needs Block,CROSSBAR COACHING,26/01/2024,"5,850.00"
Education & Skills,SEND (0-25),Third Party Payments,DSG - High Needs Block,CROSSBAR COACHING,26/01/2024,"7,800.00"
Education & Skills,SEND (0-25),Third Party Payments,DSG - High Needs Block,CROSSBAR COACHING,26/01/2024,"5,850.00"
Education & Skills,SEND (0-25),Third Party Payments,DSG - High Needs Block,CROSSBAR COACHING,26/01/2024,"6,825.00"
Education & Skills,SEND (0-25),Third Party Payments,DSG - High Needs Block,CROSSBAR COACHING,26/01/2024,"7,800.00"
Education & Skills,SEND (0-25),Third Party Payments,DSG - High Needs Block,CROSSBAR COACHING,26/01/2024,"5,850.00"
Education & Skills,SEND (0-25),Third Party Payments,DSG - High Needs Block,Ruskin Mill Trust,16/01/2024,"27,498.33"
Education & Skills,SEND (0-25),Third Party Payments,DSG - High Needs Block,The Really NEET Project Ltd,08/01/2024,"7,319.42"
Education & Skills,Skills,Supplies & Services,Advertising,Bauer Radio Ltd,08/01/2024,800.00
Education & Skills,Skills,Supplies & Services,Advertising,Bauer Radio Ltd,08/01/2024,800.00
Education & Skills,Skills,Supplies & Services,Advertising,Bauer Radio Ltd,08/01/2024,"1,747.96"
Education & Skills,Skills,Supplies & Services,Advertising,Bauer Radio Ltd,08/01/2024,800.00
Education & Skills,Skills,Third Party Payments,Childminders,CHILDCARE SOS,08/01/2024,"1,673.25"
Education & Skills,Skills,Third Party Payments,Childminders,CHILDCARE SOS,08/01/2024,310.50
Education & Skills,Skills,Third Party Payments,Childminders,CHILDCARE SOS,08/01/2024,345.00
Education & Skills,Skills,Third Party Payments,Childminders,CHILDCARE SOS,17/01/2024,"1,138.50"
Education & Skills,Skills,Third Party Payments,Childminders,CHILDCARE SOS,17/01/2024,258.75
Education & Skills,Skills,Supplies & Services,Exam Fees,CITY & GUILDS,08/01/2024,"1,186.50"
Education & Skills,Skills,Supplies & Services,Exam Fees,CITY & GUILDS,17/01/2024,714.00
Education & Skills,Skills,Supplies & Services,Exam Fees,CITY & GUILDS,17/01/2024,105.00
Education & Skills,Skills,Supplies & Services,Exam Fees,CITY & GUILDS,17/01/2024,392.00
Education & Skills,Skills,Premises-Related Expenditure,Hire Of Rooms,DONNINGTON PARTNERSHIP CIO,17/01/2024,493.00
Education & Skills,Skills,Supplies & Services,Research Surveys,JISC SERVICES LTD ,03/01/2024,"1,690.00"
Education & Skills,Skills,Premises-Related Expenditure,Hire Of Rooms,MEETING POINT TRUST LTD,22/01/2024,110.00
Education & Skills,Skills,Premises-Related Expenditure,Hire Of Rooms,MEETING POINT TRUST LTD,22/01/2024,110.00
Education & Skills,Skills,Premises-Related Expenditure,Hire Of Rooms,MEETING POINT TRUST LTD,22/01/2024,140.00
Education & Skills,Skills,Premises-Related Expenditure,Hire Of Rooms,MEETING POINT TRUST LTD,22/01/2024,110.00
Education & Skills,Skills,Premises-Related Expenditure,Hire Of Rooms,MEETING POINT TRUST LTD,22/01/2024,200.00
Education & Skills,Skills,Premises-Related Expenditure,Hire Of Rooms,MEETING POINT TRUST LTD,22/01/2024,110.00
Education & Skills,Skills,Premises-Related Expenditure,Hire Of Rooms,MEETING POINT TRUST LTD,22/01/2024,115.00
Education & Skills,Skills,Premises-Related Expenditure,Hire Of Rooms,MEETING POINT TRUST LTD,22/01/2024,110.00
Education & Skills,Skills,Premises-Related Expenditure,Hire Of Rooms,MEETING POINT TRUST LTD,22/01/2024,110.00
Education & Skills,Skills,Premises-Related Expenditure,Hire Of Rooms,MEETING POINT TRUST LTD,22/01/2024,140.00
Education & Skills,Skills,Premises-Related Expenditure,Hire Of Rooms,MEETING POINT TRUST LTD,17/01/2024,110.00
Education & Skills,Skills,Premises-Related Expenditure,Hire Of Rooms,MEETING POINT TRUST LTD,17/01/2024,110.00
Education & Skills,Skills,Premises-Related Expenditure,Hire Of Rooms,MEETING POINT TRUST LTD,17/01/2024,110.00
Education & Skills,Skills,Premises-Related Expenditure,Hire Of Rooms,MEETING POINT TRUST LTD,17/01/2024,110.00
Education & Skills,Skills,Premises-Related Expenditure,Hire Of Rooms,MEETING POINT TRUST LTD,17/01/2024,110.00
Education & Skills,Skills,Premises-Related Expenditure,Hire Of Rooms,MEETING POINT TRUST LTD,17/01/2024,110.00
Education & Skills,Skills,Premises-Related Expenditure,Hire Of Rooms,MEETING POINT TRUST LTD,17/01/2024,110.00
Education & Skills,Skills,Premises-Related Expenditure,Hire Of Rooms,MEETING POINT TRUST LTD,17/01/2024,110.00
Education & Skills,Skills,Premises-Related Expenditure,Hire Of Rooms,MEETING POINT TRUST LTD,17/01/2024,200.00
Education & Skills,Skills,Premises-Related Expenditure,Hire Of Rooms,OAKENGATES TOWN COUNCIL,10/01/2024,324.00
Education & Skills,Skills,Premises-Related Expenditure,Hire Of Rooms,OAKENGATES TOWN COUNCIL,10/01/2024,324.00
Education & Skills,Skills,Premises-Related Expenditure,Hire Of Rooms,PARK LANE CENTRE,22/01/2024,112.50
Education & Skills,Skills,Employees,Course Fees,UNIVERSITY OF WOLVERHAMPTON ,22/01/2024,"3,050.00"
Education & Skills,Skills,Premises-Related Expenditure,Hire Of Rooms,Parkway Medical Services Ltd,11/01/2024,160.00
Education & Skills,Skills,Third Party Payments,Childminders,CHILDCARE SOS,17/01/2024,232.88
Education & Skills,Skills,Premises-Related Expenditure,Hire Of Rooms,MEETING POINT TRUST LTD,08/01/2024,126.00
Education & Skills,Skills,Supplies & Services,Mgmt Advice & Support Services,TELFORD COLLEGE,17/01/2024,"10,000.00"
Finance & Human Resources,Finance,Supplies & Services,External Audit Fees,KPMG LLP,26/01/2024,"77,767.25"
Finance & Human Resources,"Finance Manager (Business, Education & Care)",Employees,Professional Subs,AAT,19/01/2024,184.00
Finance & Human Resources,"Finance Manager (Business, Education & Care)",Employees,Professional Subs,ASSOCIATION OF CHARTERED CERTIFIED ACCOUNTANTS (ACCA),19/01/2024,297.00
Finance & Human Resources,"Finance Manager (Business, Education & Care)",Premises-Related Expenditure,Hire Of Rooms,MEETING POINT TRUST LTD,23/01/2024,115.00
Finance & Human Resources,"Finance Manager (Business, Education & Care)",Premises-Related Expenditure,Hire Of Rooms,MEETING POINT TRUST LTD,29/01/2024,129.17
Finance & Human Resources,Finance Manager (Corporate & Capital),Employees,Professional Subs,ASSOCIATION OF CHARTERED CERTIFIED ACCOUNTANTS (ACCA),18/01/2024,297.00
Finance & Human Resources,Finance Manager (Corporate & Capital),Employees,Professional Subs,C I P F A,05/01/2024,380.00
Finance & Human Resources,Finance Manager (Corporate & Capital),Supplies & Services,Publications,CIPFA BUSINESS LTD,29/01/2024,"1,090.00"
